Body Name,Body,Service Level,Expense Type,Expense Code,Narrative,Date,Transaction Number,Amount,Capital and Revenue,Supplier Name,Supplier ID
South Ribble Council,http://statistics.data.gov.uk/doc/local-authority/30UN,Property Services,Rep & Maint Premises,2024,Annual contract 2011/2012 for electrical testing at sports pavilions,04/04/2012,79770,685.16,Revenue,BELEC,130290
South Ribble Council,http://statistics.data.gov.uk/doc/local-authority/30UN,Healthy Communities,Licence Fees,488B,oct-dec management fee,04/04/2012,66664,"1,125.00",Revenue,Carr Street Community Centre,130312
South Ribble Council,http://statistics.data.gov.uk/doc/local-authority/30UN,Healthy Communities,Licence Fees,488B,1st qtr mgmt fee apr-jun12,04/04/2012,85101,"1,125.00",Revenue,Carr Street Community Centre,130312
South Ribble Council,http://statistics.data.gov.uk/doc/local-authority/30UN,Planning,Professional Fees,4510,LDF staffing - one third of Julian Jackson. Over spend on LDF staffing V Hunter and J D Porter,04/04/2012,85163,"22,212.00",Revenue,CHORLEY BOROUGH COUNCIL,17352
South Ribble Council,http://statistics.data.gov.uk/doc/local-authority/30UN,Information Services,Peripherals,4244,5 x Optiplex 745,04/04/2012,85119,560.00,Revenue,COMPUTER REMARKETING SERVICE,75763
South Ribble Council,http://statistics.data.gov.uk/doc/local-authority/30UN,Information Services,Peripherals,4244,5 x Upgrade RAM to 2GB,04/04/2012,85119,150.00,Revenue,COMPUTER REMARKETING SERVICE,75763
South Ribble Council,http://statistics.data.gov.uk/doc/local-authority/30UN,Information Services,Peripherals,4244,Carriage & packing,04/04/2012,85119,39.86,Revenue,COMPUTER REMARKETING SERVICE,75763
South Ribble Council,http://statistics.data.gov.uk/doc/local-authority/30UN,Neighbourhood Admin & Support,Vehicle Running Costs,3134,1200ltrs Gas Oil for Moss Side Depot,04/04/2012,85126,853.20,Revenue,CROWN OIL,65906
South Ribble Council,http://statistics.data.gov.uk/doc/local-authority/30UN,Neighbourhood Admin & Support,Vehicle Running Costs,3132,"12,000ltrs Diesel for Moss Side Depot",04/04/2012,85127,"14,124.00",Revenue,CROWN OIL,65906
South Ribble Council,http://statistics.data.gov.uk/doc/local-authority/30UN,Healthy Communities,Licence Fees,488B,1st qtr apr-jun 12,04/04/2012,85102,"1,000.00",Revenue,HIGHER WALTON COMMUNITY CENT,70535
South Ribble Council,http://statistics.data.gov.uk/doc/local-authority/30UN,Property Services,Rep & Maint Premises,2020,Remove all floor tiles from the landings at the Civic Centre and supply a waste transfer certificate,04/04/2012,85190,"5,000.00",Revenue,HYDE FLOORING CO LTD,23605
South Ribble Council,http://statistics.data.gov.uk/doc/local-authority/30UN,Property Services,Rep & Maint Premises,2020,Remove floor tiles to 2 rear staircases at the Civic Centre as per your quotation.,04/04/2012,85191,"16,320.00",Revenue,HYDE FLOORING CO LTD,23605
South Ribble Council,http://statistics.data.gov.uk/doc/local-authority/30UN,Property Services,Consultancy Fees,4541,Consultancy Fees 2011/2012,04/04/2012,85132,"1,080.97",Revenue,K J PROPERTY CONSULTANCY (LAN,100816
South Ribble Council,http://statistics.data.gov.uk/doc/local-authority/30UN,Property Services,Capital Expenditure,C230,LABOUR - Cover the fascias & soffits in accordance with the Councils tender documents dated 3rd January 2012,04/04/2012,85189,"2,444.50",Revenue,MAINCOAT LTD,99244
South Ribble Council,http://statistics.data.gov.uk/doc/local-authority/30UN,Property Services,Capital Expenditure,C230,materials,04/04/2012,85189,"2,300.00",Revenue,MAINCOAT LTD,99244
South Ribble Council,http://statistics.data.gov.uk/doc/local-authority/30UN,Environmental Health,Agency Fees,1121,Env Health Consultancy from 30.1.12 - 30.3.12.,04/04/2012,85138,"2,719.90",Revenue,MARTIN ENVIRONMENTAL SOLUTION,130120
South Ribble Council,http://statistics.data.gov.uk/doc/local-authority/30UN,Healthy Communities,Licence Fees,488B,mgmt fee apr-jun-12,04/04/2012,85099,"1,375.00",Revenue,MOSS SIDE COMMUNITY FORUM,98724
South Ribble Council,http://statistics.data.gov.uk/doc/local-authority/30UN,Planning,Professional Fees,4510,Residential Design SPD,04/04/2012,85152,803.25,Revenue,MR S KILMARTIN,130211
South Ribble Council,http://statistics.data.gov.uk/doc/local-authority/30UN,Property Services,Agency Fees,1121,Consultancy Fees 2011/2012,04/04/2012,85144,"3,525.00",Revenue,ROGER HANDSCOMBE FRICS CHART,104634
South Ribble Council,http://statistics.data.gov.uk/doc/local-authority/30UN,Healthy Communities,Sports Dev Expenses,4894,coaching,04/04/2012,85103,500.00,Revenue,SOUTH RIBBLE RUGBY LEAGUE DEV ,53235
South Ribble Council,http://statistics.data.gov.uk/doc/local-authority/30UN,Benefits,Agency Fees,1121,Agency staff - period engaged 16.1.12 to 30.3.12,04/04/2012,80252,803.25,Revenue,VENN GROUP LTD,92762
South Ribble Council,http://statistics.data.gov.uk/doc/local-authority/30UN,Information Services,Peripherals,4244,ADtoolkit6 w / 1 yr support. Support includes maintenance and phone support for 1 year from date of purchase,04/04/2012,85151,895.00,Revenue,Zosterops Ltd,130396
South Ribble Council,http://statistics.data.gov.uk/doc/local-authority/30UN,Revenues,Financial,4811,post office and pay point transactions,11/04/2012,85372,753.53,Revenue,ALLPAY LTD,122276
South Ribble Council,http://statistics.data.gov.uk/doc/local-authority/30UN,Revenues,Financial,4811,webconnect,11/04/2012,85372,31.50,Revenue,ALLPAY LTD,122276
South Ribble Council,http://statistics.data.gov.uk/doc/local-authority/30UN,Property Services,Rep & Maint Premises,2021,2011/2012 annual contract for servicing of gas catering equipment at Civic Centre,11/04/2012,85376,566.02,Revenue,BRITISH GAS SERVICES (COMMERCI,16214
South Ribble Council,http://statistics.data.gov.uk/doc/local-authority/30UN,Information Services,Peripherals,4269,"ISDN lines, various line rentals and call charges April 2012 - March 2013",11/04/2012,85160,"1,562.75",Revenue,CABLE & WIRELESS,114381
South Ribble Council,http://statistics.data.gov.uk/doc/local-authority/30UN,Housing,Contributions,4730,Supply additional 16 X 2 KW WATT Thermostatic Heat Setting Oil Heaters to Penwortham Fire Station.,11/04/2012,85170,920.24,Revenue,CITY ELECTRICAL FACTORS LIMITED,112383
South Ribble Council,http://statistics.data.gov.uk/doc/local-authority/30UN,Housing,Contributions,4730,Enhanced Housing Options Module,11/04/2012,85175,955.59,Revenue,COMMUNITY GATEWAY HOUSING AS,101682
South Ribble Council,http://statistics.data.gov.uk/doc/local-authority/30UN,Area 2 - Waste & Transport/Eastern & Central Teams,External Contractors Charges,4570,BULKY WASTE COLLECTIONS MARCH 2012,11/04/2012,85330,"1,894.00",Revenue,EXSEL (INT) COMMUNITY INTEREST ,130150
South Ribble Council,http://statistics.data.gov.uk/doc/local-authority/30UN,Area 2 - Waste & Transport/Eastern & Central Teams,Materials General,4040,ASSORTED FILTERS - AS PER LIST ON INVOICE 063286,11/04/2012,85120,512.70,Revenue,H & J SERVICES LTD,114446
South Ribble Council,http://statistics.data.gov.uk/doc/local-authority/30UN,Area 2 - Waste & Transport/Eastern & Central Teams,Materials General,4040,Air fillter 2x handle Bars 2x wear skirts KX09 ASZ VM 51096,11/04/2012,85220,782.53,Revenue,HAKO MACHINES LTD,57972
South Ribble Council,http://statistics.data.gov.uk/doc/local-authority/30UN,Community Safety,Other Misc,4851,Circles of Trust Conference - Printing Resources,11/04/2012,85130,526.00,Revenue,HASLAM PRINTERS LTD,101608
South Ribble Council,http://statistics.data.gov.uk/doc/local-authority/30UN,Shared Financial Services,Balance Sheet,140,,11/04/2012,79189,542.85,Revenue,HM REVENUE & CUSTOMS,24837
South Ribble Council,http://statistics.data.gov.uk/doc/local-authority/30UN,Shared Financial Services,Balance Sheet,140,,11/04/2012,85235,553.85,Revenue,HM REVENUE & CUSTOMS,24837
South Ribble Council,http://statistics.data.gov.uk/doc/local-authority/30UN,Housing,Contributions,4730,tenancies and licences training,11/04/2012,85176,"1,349.20",Revenue,HOUSING QUALITY NETWORK,119810
South Ribble Council,http://statistics.data.gov.uk/doc/local-authority/30UN,Risk,Employee Related Insurance,1801,1st jan 12-31 dec 12,11/04/2012,78935,808.91,Revenue,JARDINE LLOYD THOMPSON,121125
South Ribble Council,http://statistics.data.gov.uk/doc/local-authority/30UN,Risk,Employee Related Insurance,1801,1 jan to 31 dec 12,11/04/2012,78938,"1,897.63",Revenue,JARDINE LLOYD THOMPSON,121125
South Ribble Council,http://statistics.data.gov.uk/doc/local-authority/30UN,Risk,Employee Related Insurance,1801,1st jan -31st dec2012,11/04/2012,78939,"54,740.40",Revenue,JARDINE LLOYD THOMPSON,121125
South Ribble Council,http://statistics.data.gov.uk/doc/local-authority/30UN,Risk,Employee Related Insurance,1801,1st jan 2012-31st dec 2012,11/04/2012,78940,"2,071.53",Revenue,JARDINE LLOYD THOMPSON,121125
South Ribble Council,http://statistics.data.gov.uk/doc/local-authority/30UN,Neighbourhood Admin & Support,Waste Disposal Charges,5112,January 2012 - Incineration of clinical waste.,11/04/2012,85183,564.30,Revenue,LANCASHIRE TEACHING FT,120715
South Ribble Council,http://statistics.data.gov.uk/doc/local-authority/30UN,Neighbourhood Admin & Support,Waste Disposal Charges,5112,February 2012 - Incineration of clinical waste.,11/04/2012,85184,571.90,Revenue,LANCASHIRE TEACHING FT,120715
South Ribble Council,http://statistics.data.gov.uk/doc/local-authority/30UN,Property Services,Rep & Maint Premises,2020,LABOUR - Carry out work at Moss Side depot as per your quotation ref JEH/E/5237,11/04/2012,85233,"2,260.00",Revenue,MAINCOAT LTD,99244
South Ribble Council,http://statistics.data.gov.uk/doc/local-authority/30UN,Property Services,Rep & Maint Premises,2020,materials,11/04/2012,85233,"2,260.00",Revenue,MAINCOAT LTD,99244
South Ribble Council,http://statistics.data.gov.uk/doc/local-authority/30UN,Housing,Contributions,4730,Funding for start up cost and staff costs,11/04/2012,85187,"2,500.00",Revenue,METHODIST ACTION (A PLACE TO LIV,130329
South Ribble Council,http://statistics.data.gov.uk/doc/local-authority/30UN,Benefits,Agency Fees,1121,Agency Staff - Period engaged - 12.3.12 to 30.3.12,11/04/2012,85139,777.00,Revenue,MORGAN HUNT PUBLIC SECTOR LTD,120401
South Ribble Council,http://statistics.data.gov.uk/doc/local-authority/30UN,Revenues,Agency Fees,1121,Agency Staff - Period engaged - 1.4.12 to 30.6.12,11/04/2012,85228,703.00,Revenue,MORGAN HUNT PUBLIC SECTOR LTD,120401
South Ribble Council,http://statistics.data.gov.uk/doc/local-authority/30UN,Benefits,Agency Fees,1121,Agency Staff - Period engaged - 12.3.12 to 30.3.12,11/04/2012,85319,777.00,Revenue,MORGAN HUNT PUBLIC SECTOR LTD,120401
South Ribble Council,http://statistics.data.gov.uk/doc/local-authority/30UN,Housing,Equipment,C280,Grant payment for roofing works at REDACTED,11/04/2012,85097,"1,000.00",Revenue,REDACTED,130369
South Ribble Council,http://statistics.data.gov.uk/doc/local-authority/30UN,Housing,Equipment,C280,Repairs Grant Reference 12/00042/HABO for boiler replacement at REDACTED,11/04/2012,85147,751.20,Revenue,REDACTED,130361
South Ribble Council,http://statistics.data.gov.uk/doc/local-authority/30UN,Area 2 - Waste & Transport/Eastern & Central Teams,Training Expense-Course Fees,1402,B + E Driver Training Plus Test,11/04/2012,85194,"1,130.00",Revenue,MYERSCOUGH COLLEGE,26453
South Ribble Council,http://statistics.data.gov.uk/doc/local-authority/30UN,Property Services,Energy Costs,2303,1/3/12 to 31/3/12,11/04/2012,85377,"3,725.97",Revenue,NPOWER LTD,63814
South Ribble Council,http://statistics.data.gov.uk/doc/local-authority/30UN,Property Services,Energy Costs,2307,levy,11/04/2012,85377,208.86,Revenue,NPOWER LTD,63814
South Ribble Council,http://statistics.data.gov.uk/doc/local-authority/30UN,Information Services,External Contractors Charges,4570,5 Directed days,11/04/2012,85229,"4,115.00",Revenue,NVIRON LTD,28781
South Ribble Council,http://statistics.data.gov.uk/doc/local-authority/30UN,Area 2 - Waste & Transport/Eastern & Central Teams,Materials General,4040,700 LITRES HYDRAULIC 32 OIL,11/04/2012,85206,729.22,Revenue,PILKINGTON OILS,113531
South Ribble Council,http://statistics.data.gov.uk/doc/local-authority/30UN,Area 2 - Waste & Transport/Eastern & Central Teams,Materials General,4040,205 LITRES HYDRAULIC 46 OIL,11/04/2012,85206,221.40,Revenue,PILKINGTON OILS,113531
South Ribble Council,http://statistics.data.gov.uk/doc/local-authority/30UN,Healthy Communities,Consultancy Fees,4536,Repairs and Maintenance Fee - 2011/12.,11/04/2012,85337,"12,132.82",Revenue,SERCO LEISURE (OP) LTD,94906
South Ribble Council,http://statistics.data.gov.uk/doc/local-authority/30UN,Information Services,Peripherals,4247,"Moss Side link, internet & router April 2012 - March 2013",13/04/2012,85384,"1,664.00",Revenue,CABLE & WIRELESS,114381
South Ribble Council,http://statistics.data.gov.uk/doc/local-authority/30UN,Legal,Professional Fees,4520,LEGAL - CRB Checks x19 @ 44.00,13/04/2012,85224,836.00,Revenue,CRIMINAL RECORDS BUREAU,61984
South Ribble Council,http://statistics.data.gov.uk/doc/local-authority/30UN,Legal,Professional Fees,4520,HR - CRB Checks x 4 @ 44.00 and 1 @ 26.00,13/04/2012,85224,202.00,Revenue,CRIMINAL RECORDS BUREAU,61984
South Ribble Council,http://statistics.data.gov.uk/doc/local-authority/30UN,Area 2 - Waste & Transport/Eastern & Central Teams,External Contractors Charges,4570,DOMESTIC COLLECTIONS MARCH 1.3.12 - 31.3.12,13/04/2012,85474,"81,083.43",Revenue,ENTERPRISE,26408
South Ribble Council,http://statistics.data.gov.uk/doc/local-authority/30UN,Area 2 - Waste & Transport/Eastern & Central Teams,External Contractors Charges,4570,COMMERCIAL COLLECTIONS 1.3.12 - 31.3.12,13/04/2012,85474,"6,296.13",Revenue,ENTERPRISE,26408
South Ribble Council,http://statistics.data.gov.uk/doc/local-authority/30UN,Area 2 - Waste & Transport/Eastern & Central Teams,External Contractors Charges,4570,FOOD WASTE COLLECTIONS 1.3.12 - 31.3.12,13/04/2012,85474,"6,003.07",Revenue,ENTERPRISE,26408
South Ribble Council,http://statistics.data.gov.uk/doc/local-authority/30UN,Area 2 - Waste & Transport/Eastern & Central Teams,External Contractors Charges,4570,DRY RECYCLABLE COLLECTIONS 1.3.12 - 31.3.12,13/04/2012,85474,"67,387.38",Revenue,ENTERPRISE,26408
South Ribble Council,http://statistics.data.gov.uk/doc/local-authority/30UN,Healthy Communities,Energy Costs,2301,oil for worden april 2012,13/04/2012,85230,"2,458.50",Revenue,GEO BROUGHTON & CO,102555
South Ribble Council,http://statistics.data.gov.uk/doc/local-authority/30UN,Property Services,Rep & Maint Premises,2020,Replace the heater in the Civic Centre kitchen as per your quotation,13/04/2012,85442,"1,252.55",Revenue,GEORGE MORRISON (ELP) LTD,118442
South Ribble Council,http://statistics.data.gov.uk/doc/local-authority/30UN,Property Services,Rep & Maint Premises,2020,Remove the floor tiles in the cleaners cupboards x 8. supply a separate waste transfer note.,13/04/2012,85460,778.00,Revenue,HYDE FLOORING CO LTD,23605
South Ribble Council,http://statistics.data.gov.uk/doc/local-authority/30UN,Neighbourhood Admin & Support,Materials General,4040,QC10  10mm  Quickset,13/04/2012,85389,"1,135.68",Revenue,INSTARMAC GROUP PLC,24905
South Ribble Council,http://statistics.data.gov.uk/doc/local-authority/30UN,Area 1 - Penwortham & Western Parishes,Materials General,4040,"90,000 Car Park Pay & Display Tickets @ 6.95 per 1000",13/04/2012,85198,632.45,Revenue,PAPERWORK UK LTD,108834
South Ribble Council,http://statistics.data.gov.uk/doc/local-authority/30UN,Area 1 - Penwortham & Western Parishes,Materials General,4040,1000 PARKING PERMITS  @ 931.45/1000,13/04/2012,85203,931.45,Revenue,PARKING SHOP LTD,84547
South Ribble Council,http://statistics.data.gov.uk/doc/local-authority/30UN,Area 2 - Waste & Transport/Eastern & Central Teams,Vehicle Running Costs,3137,car tax,13/04/2012,85363,30.00,Revenue,POST OFFICE LTD,31354
South Ribble Council,http://statistics.data.gov.uk/doc/local-authority/30UN,Area 2 - Waste & Transport/Eastern & Central Teams,Vehicle Running Costs,3137,road tax,13/04/2012,85363,210.00,Revenue,POST OFFICE LTD,31354
South Ribble Council,http://statistics.data.gov.uk/doc/local-authority/30UN,Area 2 - Waste & Transport/Eastern & Central Teams,Vehicle Running Costs,3137,road tax,13/04/2012,85363,420.00,Revenue,POST OFFICE LTD,31354
South Ribble Council,http://statistics.data.gov.uk/doc/local-authority/30UN,Area 2 - Waste & Transport/Eastern & Central Teams,Vehicle Running Costs,3137,road tax,13/04/2012,85363,420.00,Revenue,POST OFFICE LTD,31354
South Ribble Council,http://statistics.data.gov.uk/doc/local-authority/30UN,Area 2 - Waste & Transport/Eastern & Central Teams,Vehicle Running Costs,3137,road tax,13/04/2012,85363,210.00,Revenue,POST OFFICE LTD,31354
South Ribble Council,http://statistics.data.gov.uk/doc/local-authority/30UN,Area 2 - Waste & Transport/Eastern & Central Teams,Vehicle Running Costs,3137,road tax,13/04/2012,85363,238.00,Revenue,POST OFFICE LTD,31354
South Ribble Council,http://statistics.data.gov.uk/doc/local-authority/30UN,Information Services,Peripherals,4244,2 x Catalyst 3750X 48 Port PoE LANBase WS-C3750X-48P-L,13/04/2012,85339,"7,043.30",Revenue,RICOH (UK) LTD,82976
South Ribble Council,http://statistics.data.gov.uk/doc/local-authority/30UN,Information Services,Peripherals,4246,6 x Network Assistance days,13/04/2012,85340,"5,640.00",Revenue,RICOH (UK) LTD,82976
South Ribble Council,http://statistics.data.gov.uk/doc/local-authority/30UN,Information Services,Consultancy Fees,4541,Network Audit,13/04/2012,85341,950.00,Revenue,RICOH (UK) LTD,82976
South Ribble Council,http://statistics.data.gov.uk/doc/local-authority/30UN,Area 2 - Waste & Transport/Eastern & Central Teams,External Contractors Charges,4570,SPEC REPAIR - VX55 CNE - VM50990 - GA,13/04/2012,85382,570.00,Revenue,S MCMASTER,112079
South Ribble Council,http://statistics.data.gov.uk/doc/local-authority/30UN,Property Services,Client Internal Charges,4590,Schedlued service for Leyland Market from 1/2/12 to 2/5/12,13/04/2012,85395,669.86,Revenue,SITA UK LTD Acc Ref;60000440,38920
South Ribble Council,http://statistics.data.gov.uk/doc/local-authority/30UN,Healthy Communities,Balance Sheet,140,DD`s collected for Mar 12,13/04/2012,85392,"13,143.62",Revenue,SOUTH RIBBLE COMMUNITY LEISUR,94210
South Ribble Council,http://statistics.data.gov.uk/doc/local-authority/30UN,Property Services,Rep & Maint Premises,2021,Annual contract for electric doors at Leyland Market 2011/2012,13/04/2012,85401,560.00,Revenue,THE AUTOMATIC DOOR COMPANY L,108533
South Ribble Council,http://statistics.data.gov.uk/doc/local-authority/30UN,Property Services,Rep & Maint Premises,2021,Annual contract for door maintenance at Civic Centre - main entrance(outer),13/04/2012,85401,140.00,Revenue,THE AUTOMATIC DOOR COMPANY L,108533
South Ribble Council,http://statistics.data.gov.uk/doc/local-authority/30UN,Property Services,Rep & Maint Premises,2021,Annual maintenance contract for Civic Cente main entrance (Middle),13/04/2012,85401,140.00,Revenue,THE AUTOMATIC DOOR COMPANY L,108533
South Ribble Council,http://statistics.data.gov.uk/doc/local-authority/30UN,Property Services,Rep & Maint Premises,2021,Annual maintenance contract for Civic Centre main entrance (Inner),13/04/2012,85401,140.00,Revenue,THE AUTOMATIC DOOR COMPANY L,108533
South Ribble Council,http://statistics.data.gov.uk/doc/local-authority/30UN,Property Services,Rep & Maint Premises,2021,Annual contract for service of doors at staff rear entrance at the civic centre,13/04/2012,85401,190.00,Revenue,THE AUTOMATIC DOOR COMPANY L,108533
South Ribble Council,http://statistics.data.gov.uk/doc/local-authority/30UN,Property Services,Rep & Maint Premises,2020,Please carry out repairs to the doors at the Civic Centre as per your quotation ref 10207/AGF,13/04/2012,85450,890.00,Revenue,THE AUTOMATIC DOOR COMPANY L,108533
South Ribble Council,http://statistics.data.gov.uk/doc/local-authority/30UN,Area 3 - Parks/Leyland East & West,Grounds Maint Cntrctrs Chgs,4657,"Stump grinding at Hutton, Croston Road and Worden Park. As per quote emailed 29.2.12",13/04/2012,85381,"1,125.00",Revenue,WESTFIELD TREE SERVICES LTD,114226
South Ribble Council,http://statistics.data.gov.uk/doc/local-authority/30UN,Area 1 - Penwortham & Western Parishes,External Contractors Charges,4570,Re-surfacing of zebra crossing at South Ribble Borough Council depot at Bison Place.,13/04/2012,85217,"2,170.00",Revenue,WILLIAM PYE LTD,31590
South Ribble Council,http://statistics.data.gov.uk/doc/local-authority/30UN,Housing,Licence Fees,4884,Consultancy and training,18/04/2012,85437,"1,950.42",Revenue,ANDY GALE HOUSING CONSULTANC,130403
South Ribble Council,http://statistics.data.gov.uk/doc/local-authority/30UN,Property Services,Rep & Maint Premises,2020,Please re-wire the building to the right hand side known as the NHS Office,18/04/2012,85510,"1,971.42",Revenue,BELEC,130290
South Ribble Council,http://statistics.data.gov.uk/doc/local-authority/30UN,Housing,Contractors Charges 5,5311,Placements in REDACTED to end of year,18/04/2012,85412,"1,240.00",Revenue,REDACTED,130219
South Ribble Council,http://statistics.data.gov.uk/doc/local-authority/30UN,Housing,Contractors Charges 5,5311,Placements in REDACTED to end of year,18/04/2012,85413,"2,325.00",Revenue,REDACTED,130219
South Ribble Council,http://statistics.data.gov.uk/doc/local-authority/30UN,Housing,Contractors Charges 5,5311,Placements in REDACTED to end of year,18/04/2012,85414,840.00,Revenue,REDACTED,130219
South Ribble Council,http://statistics.data.gov.uk/doc/local-authority/30UN,Human Resources,Balance Sheet,30,CHILDCARE VOUCHERS APRIL 2012 - MARCH 2013,18/04/2012,85928,"1,811.00",Revenue,COMPUTERSHARE VOUCHER SERVI,116499
South Ribble Council,http://statistics.data.gov.uk/doc/local-authority/30UN,Human Resources,Training Expense-Course Fees,1407,Employee Eye Tests Friday 30th March 2012,18/04/2012,85954,520.00,Revenue,DAVIES OPTICAL - EYE TESTS AT WO,130380
South Ribble Council,http://statistics.data.gov.uk/doc/local-authority/30UN,Revenues,Professional Fees,4525,Fees,18/04/2012,85458,"1,300.00",Revenue,EXPERIAN LTD,94045
South Ribble Council,http://statistics.data.gov.uk/doc/local-authority/30UN,Housing,Equipment,C280,repairs grant,18/04/2012,85925,925.00,Revenue,REDACTED,130405
South Ribble Council,http://statistics.data.gov.uk/doc/local-authority/30UN,Regeneration,Other Misc,4851,"Supply of plants, clearing of ground etc.",18/04/2012,85933,"1,275.00",Revenue,GARDEN SCENE,130409
South Ribble Council,http://statistics.data.gov.uk/doc/local-authority/30UN,Property Services,Rep & Maint Premises,2020,"Please install individual flues to 8 No boilers at the Civic Centre, Leyland",18/04/2012,85495,"1,736.00",Revenue,GEORGE MORRISON (ELP) LTD,118442
South Ribble Council,http://statistics.data.gov.uk/doc/local-authority/30UN,Property Services,Rep & Maint Premises,2020,Please install new twin pump set to constant temp circuit  at the Civic Centre,18/04/2012,85495,"1,742.00",Revenue,GEORGE MORRISON (ELP) LTD,118442
South Ribble Council,http://statistics.data.gov.uk/doc/local-authority/30UN,Neighbourhood Admin & Support,Materials General,4040,Ear Defenders  233,18/04/2012,85544,15.60,Revenue,GUARDSMAN LTD,130321
South Ribble Council,http://statistics.data.gov.uk/doc/local-authority/30UN,Neighbourhood Admin & Support,Materials General,4040,waterproof Pants Size Medium HVTPU,18/04/2012,85544,137.40,Revenue,GUARDSMAN LTD,130321
South Ribble Council,http://statistics.data.gov.uk/doc/local-authority/30UN,Neighbourhood Admin & Support,Materials General,4040,waterproof Jackets Size Medium HVJPU,18/04/2012,85544,234.60,Revenue,GUARDSMAN LTD,130321
South Ribble Council,http://statistics.data.gov.uk/doc/local-authority/30UN,Neighbourhood Admin & Support,Materials General,4040,waterproof Jackets Size Large HVJPU,18/04/2012,85544,234.60,Revenue,GUARDSMAN LTD,130321
South Ribble Council,http://statistics.data.gov.uk/doc/local-authority/30UN,Property Services,Rep & Maint Premises,2020,Supply & fit new flooring to the passsageway from the clock machine through to office services at the Civic Centre.,18/04/2012,85421,"1,058.00",Revenue,HYDE FLOORING CO LTD,23605
South Ribble Council,http://statistics.data.gov.uk/doc/local-authority/30UN,Property Services,Rep & Maint Premises,2020,"Please extend the fire alarm services into the hayloft at worden park, Leyland",18/04/2012,73617,964.00,Revenue,INTEGRATED FIRE DEFENCE SYSTE,56902
South Ribble Council,http://statistics.data.gov.uk/doc/local-authority/30UN,Property Services,Rep & Maint Premises,2021,Annual contract 2012/2013 for fire alarm & emergency lighting monitoring at the Civic Centre,18/04/2012,79622,504.70,Revenue,INTEGRATED FIRE DEFENCE SYSTE,56902
South Ribble Council,http://statistics.data.gov.uk/doc/local-authority/30UN,Human Resources,Training Expense-Course Fees,1408,Pre Employment & Employee Screenings JAN 2012 - MARCH 2012,18/04/2012,85932,489.00,Revenue,LANCASHIRE TEACHING FT,120715
South Ribble Council,http://statistics.data.gov.uk/doc/local-authority/30UN,Human Resources,Training Expense-Course Fees,1408,,18/04/2012,85932,170.10,Revenue,LANCASHIRE TEACHING FT,120715
South Ribble Council,http://statistics.data.gov.uk/doc/local-authority/30UN,Legal,Other Local Authorities,4530,MARCH LANDCHARGES,18/04/2012,85400,"1,561.50",Revenue,LANCS COUNTY COUNCIL,41645
South Ribble Council,http://statistics.data.gov.uk/doc/local-authority/30UN,Revenues,Agency Fees,1121,Agency Staff -  Period engaged - 1.4.12 to 30.6.12,18/04/2012,85318,779.00,Revenue,MORGAN HUNT PUBLIC SECTOR LTD,120401
South Ribble Council,http://statistics.data.gov.uk/doc/local-authority/30UN,Revenues,Agency Fees,1121,w/e 08/04/12,18/04/2012,85484,703.00,Revenue,MORGAN HUNT PUBLIC SECTOR LTD,120401
South Ribble Council,http://statistics.data.gov.uk/doc/local-authority/30UN,Revenues,Agency Fees,1121,Settlement Fee,18/04/2012,85485,"2,844.52",Revenue,MORGAN HUNT PUBLIC SECTOR LTD,120401
South Ribble Council,http://statistics.data.gov.uk/doc/local-authority/30UN,Housing,Peripherals,4271,south ribble lifelines,18/04/2012,85503,668.52,Revenue,NEW PROGRESS HOUSING ASS ref:D,30135
South Ribble Council,http://statistics.data.gov.uk/doc/local-authority/30UN,Housing,Peripherals,4271,chorley lifelines,18/04/2012,85504,690.38,Revenue,NEW PROGRESS HOUSING ASS ref:D,30135
South Ribble Council,http://statistics.data.gov.uk/doc/local-authority/30UN,Neighbourhood Admin & Support,Vehicle Running Costs,3132,Fuel charges for March 2012,18/04/2012,85957,597.87,Revenue,PETROMEX MILLBROOK WAY SERVI,62572
South Ribble Council,http://statistics.data.gov.uk/doc/local-authority/30UN,Democratic Services,Postage,4291,POSTAGE FOR CANCELATION NOTICES STAGE OF POSTAL VOTE IDENTIFIERS,18/04/2012,85465,712.54,Revenue,PRINT IMAGE NETWORK LTD,89199
South Ribble Council,http://statistics.data.gov.uk/doc/local-authority/30UN,Regeneration,Other Misc,485A,8 Metal Signs per Quote ref 1920.,18/04/2012,85427,"1,195.05",Revenue,PRYOR SIGN,109312
South Ribble Council,http://statistics.data.gov.uk/doc/local-authority/30UN,Housing,Contributions,4730,Cost for delivering Energy Training for Wrms Homes Bid,18/04/2012,85934,"2,825.00",Revenue,RIVERSIDE GROUP LTD,130226
South Ribble Council,http://statistics.data.gov.uk/doc/local-authority/30UN,Property Services,Energy Costs,2304,7/3/12 to 5/4/12,18/04/2012,85930,"2,348.96",Revenue,SCOTTISH HYDRO ELECTRIC,130051
South Ribble Council,http://statistics.data.gov.uk/doc/local-authority/30UN,Property Services,Energy Costs,2307,levy,18/04/2012,85930,102.59,Revenue,SCOTTISH HYDRO ELECTRIC,130051
South Ribble Council,http://statistics.data.gov.uk/doc/local-authority/30UN,Regeneration,Other Misc,485A,Provide 8 no Timber Notice boards as per drawing No REG5100/01 (except with wider top rail & sapele timber),18/04/2012,85446,"2,000.00",Revenue,SHAW TRUST,101802
South Ribble Council,http://statistics.data.gov.uk/doc/local-authority/30UN,Benefits,Agency Fees,1121,k melia w/e 31/03/12,18/04/2012,85479,735.00,Revenue,VENN GROUP LTD,92762
South Ribble Council,http://statistics.data.gov.uk/doc/local-authority/30UN,Policy,Other Misc,486A,3rd party contribution towards walled garden projrct,18/04/2012,85325,"10,204.00",Revenue,VEOLIA ES LANDFILL LIMITED,130415
South Ribble Council,http://statistics.data.gov.uk/doc/local-authority/30UN,Information Services,Peripherals,4248,Second annual payment - Capita Revenues and Benefits System Development Fund,20/04/2012,85921,"3,400.00",Revenue,CAPITA BUSINESS SERVICES LTD,19127
South Ribble Council,http://statistics.data.gov.uk/doc/local-authority/30UN,Information Services,Peripherals,4248,Annual Remote Access maintenance renewal for period 01/04/12 - 31/03/13,20/04/2012,86027,"2,092.37",Revenue,CAPITA BUSINESS SERVICES LTD,19127
South Ribble Council,http://statistics.data.gov.uk/doc/local-authority/30UN,Benefits,Professional Fees,4520,Capita Subsidy Seminar 23.2.12 Manchester Delegate,20/04/2012,85966,350.00,Revenue,CAPITA SOFTWARE SERVICS,122179
South Ribble Council,http://statistics.data.gov.uk/doc/local-authority/30UN,Benefits,Stationery,4130,Capita Subsidy Seminar 23.2.12 Manchester - Delegate,20/04/2012,85966,350.00,Revenue,CAPITA SOFTWARE SERVICS,122179
South Ribble Council,http://statistics.data.gov.uk/doc/local-authority/30UN,Information Services,Peripherals,4248,Annual renewal of Experian Bank Wizard 3 due 20/05/12,20/04/2012,85499,"3,429.51",Revenue,EXPERIAN LTD,94045
South Ribble Council,http://statistics.data.gov.uk/doc/local-authority/30UN,Shared Financial Services,Other Misc,4851,Parish Precept 2012/13,20/04/2012,85993,"50,000.00",Revenue,FARINGTON PARISH COUNCIL,31105
South Ribble Council,http://statistics.data.gov.uk/doc/local-authority/30UN,Neighbourhood Admin & Support,Vehicle Running Costs,3132,12000 ltrs diesel @ 115.8p per ltr,20/04/2012,85968,"13,897.16",Revenue,GEO BROUGHTON & CO,102555
South Ribble Council,http://statistics.data.gov.uk/doc/local-authority/30UN,Neighbourhood Admin & Support,Vehicle Running Costs,3134,2000 ltrs gas oil @ 68.45p per ltr,20/04/2012,85969,"1,382.69",Revenue,GEO BROUGHTON & CO,102555
South Ribble Council,http://statistics.data.gov.uk/doc/local-authority/30UN,Revenues,Agency Fees,1121,Agency Staff - Period engaged - 1.4.12 to 30.9.12,20/04/2012,85970,502.50,Revenue,GRADEWELL LIMITED,130411
South Ribble Council,http://statistics.data.gov.uk/doc/local-authority/30UN,Shared Financial Services,Other Misc,4851,Parish Precept 2012/13,20/04/2012,85994,"16,000.00",Revenue,HUTTON PARISH COUNCIL,23566
South Ribble Council,http://statistics.data.gov.uk/doc/local-authority/30UN,Information Services,Publications,4142,garners env law-loose leaf 1/5/12 to 30/4/13,20/04/2012,85391,879.00,Revenue,LEXISNEXIS BUTTERWORTHS,37138
South Ribble Council,http://statistics.data.gov.uk/doc/local-authority/30UN,Shared Financial Services,Other Misc,4851,Parish precept 2012/13,20/04/2012,85997,"9,000.00",Revenue,LITTLE HOOLE PARISH COUNCIL,26709
South Ribble Council,http://statistics.data.gov.uk/doc/local-authority/30UN,Shared Financial Services,Other Misc,4851,Parish Precept 2012/13,20/04/2012,85995,"21,100.00",Revenue,LONGTON PARISH COUNCIL,26673
South Ribble Council,http://statistics.data.gov.uk/doc/local-authority/30UN,Shared Financial Services,Other Misc,4851,parish precept 2012/13,20/04/2012,85998,"9,000.00",Revenue,MUCH HOOLE PARISH COUNCIL,28383
South Ribble Council,http://statistics.data.gov.uk/doc/local-authority/30UN,Area 1 - Penwortham & Western Parishes,Professional Fees,4514,DEPLOYMENT OF OFFICERS NOVEMBER 2011,20/04/2012,85507,"1,211.28",Revenue,NSL LTD,116868
South Ribble Council,http://statistics.data.gov.uk/doc/local-authority/30UN,Area 1 - Penwortham & Western Parishes,Other Misc,4855,CASH COLLECTION NOVEMBER 2011,20/04/2012,85507,236.88,Revenue,NSL LTD,116868
South Ribble Council,http://statistics.data.gov.uk/doc/local-authority/30UN,Shared Financial Services,Other Misc,4851,Parish Precept 2012/13,20/04/2012,85996,"127,600.00",Revenue,PENWORTHAM TOWN COUNCIL,31257
South Ribble Council,http://statistics.data.gov.uk/doc/local-authority/30UN,Information Services,Postage,4292,franking funds,20/04/2012,85965,"8,998.26",Revenue,POSTAGE BY PHONE,93923
South Ribble Council,http://statistics.data.gov.uk/doc/local-authority/30UN,Information Services,Peripherals,4246,PS Internal Grade 5 Consultancy Full day,20/04/2012,86021,650.00,Revenue,RICOH (UK) LTD,82976
South Ribble Council,http://statistics.data.gov.uk/doc/local-authority/30UN,Shared Financial Services,Other Misc,4851,parish precept 2012/13,20/04/2012,85999,"4,350.00",Revenue,SAMLESBURY & CUERDALE PARISH ,31118
South Ribble Council,http://statistics.data.gov.uk/doc/local-authority/30UN,Area 2 - Waste & Transport/Eastern & Central Teams,External Contractors Charges,4570,LEASE DAMAGES TO VX04 SXL - OW1060 (TO BE RE-CHARGED TO ENTERPRISE) BC,20/04/2012,85959,825.00,Revenue,SG EQUIPMENT FINANCE LTD,43821
South Ribble Council,http://statistics.data.gov.uk/doc/local-authority/30UN,Property Services,Rep & Maint Premises,2021,"Contract for electric doors at Moss Side Depot unit 81 Bison Place, Leyland",20/04/2012,86007,910.00,Revenue,THE AUTOMATIC DOOR COMPANY L,108533
South Ribble Council,http://statistics.data.gov.uk/doc/local-authority/30UN,Planning,Operational Furniture & Equip,4010,Emergency Planning law and practice 9V LL SVC - Renewal Ref: 4100547669 - Annual Subscription,20/04/2012,85972,"1,092.00",Revenue,THOMSON REUTERS,34979
South Ribble Council,http://statistics.data.gov.uk/doc/local-authority/30UN,Shared Financial Services,Professional Fees,4512,2011-12 fee instalment 10 of 12,25/04/2012,86031,"8,009.00",Revenue,AUDIT COMMISSION,6075
South Ribble Council,http://statistics.data.gov.uk/doc/local-authority/30UN,Property Services,Rep & Maint Premises,2020,"Please repair the leaks in the roof at 124 Clydesdale Place, Walton Summit",25/04/2012,86036,"1,890.00",Revenue,CASTLE CONTRACTORS LTD,130218
South Ribble Council,http://statistics.data.gov.uk/doc/local-authority/30UN,Healthy Communities,Operational Furniture & Equip,4013,repair to two screens in civic march 2012,25/04/2012,86215,966.00,Revenue,DORMA UK LTD,103305
South Ribble Council,http://statistics.data.gov.uk/doc/local-authority/30UN,Revenues,Agency Fees,1121,Agency Staff - Period engaged - 1.4.12 to 30.9.12,25/04/2012,86222,600.00,Revenue,GRADEWELL LIMITED,130411
South Ribble Council,http://statistics.data.gov.uk/doc/local-authority/30UN,Area 2 - Waste & Transport/Eastern & Central Teams,Materials General,4040,TO COVER INVOICE 9000451775 ,25/04/2012,85222,609.83,Revenue,HAKO MACHINES LTD,57972
South Ribble Council,http://statistics.data.gov.uk/doc/local-authority/30UN,Information Services,Capital Expenditure,C234,WinSvrEnt 2008R2 SNGL MVL - Select Agreement,25/04/2012,85956,973.94,Revenue,INSIGHT UK,120744
South Ribble Council,http://statistics.data.gov.uk/doc/local-authority/30UN,Information Services,Capital Expenditure,C234,SQLSvrStd ALNG LicSAPk MVL - Enterprise Agreement,25/04/2012,86223,629.80,Revenue,INSIGHT UK,120744
South Ribble Council,http://statistics.data.gov.uk/doc/local-authority/30UN,Information Services,Capital Expenditure,C234,SQLCAL ALNG LicSAPk MVL UsrCAL - Enterprise Agreement,25/04/2012,86223,115.13,Revenue,INSIGHT UK,120744
South Ribble Council,http://statistics.data.gov.uk/doc/local-authority/30UN,Healthy Communities,Provisions,4311,supply of drinks for bar at civic on 190412,25/04/2012,86245,"1,544.55",Revenue,MATTHEW CLARK WHOLESALE LTD,47720
South Ribble Council,http://statistics.data.gov.uk/doc/local-authority/30UN,Revenues,Agency Fees,1121,Agency Staff - Period engaged - 1.4.12 to 30.6.12,25/04/2012,86224,703.00,Revenue,MORGAN HUNT PUBLIC SECTOR LTD,120401
South Ribble Council,http://statistics.data.gov.uk/doc/local-authority/30UN,Area 2 - Waste & Transport/Eastern & Central Teams,External Contractors Charges,4570,STEAM CLEAN - VM50913 - MH04 GSZ - BC,25/04/2012,86034,75.00,Revenue,NAYLORS TRANSPORT (LEYLAND) ltd,114828
South Ribble Council,http://statistics.data.gov.uk/doc/local-authority/30UN,Area 2 - Waste & Transport/Eastern & Central Teams,External Contractors Charges,4570,STEAM CLEAN - VM50924 - VN10 DKL - BC,25/04/2012,86034,75.00,Revenue,NAYLORS TRANSPORT (LEYLAND) ltd,114828
South Ribble Council,http://statistics.data.gov.uk/doc/local-authority/30UN,Area 2 - Waste & Transport/Eastern & Central Teams,External Contractors Charges,4570,STEAM CLEAN - VM50898 - X327 JFR - BC,25/04/2012,86034,60.00,Revenue,NAYLORS TRANSPORT (LEYLAND) ltd,114828
South Ribble Council,http://statistics.data.gov.uk/doc/local-authority/30UN,Area 2 - Waste & Transport/Eastern & Central Teams,External Contractors Charges,4570,STEAM CLEAN - VM50901 - NX58 FJZ - BC,25/04/2012,86034,60.00,Revenue,NAYLORS TRANSPORT (LEYLAND) ltd,114828
South Ribble Council,http://statistics.data.gov.uk/doc/local-authority/30UN,Area 2 - Waste & Transport/Eastern & Central Teams,External Contractors Charges,4570,STEAM CLEAN - VM50902 - VN10 DKO - BC,25/04/2012,86034,60.00,Revenue,NAYLORS TRANSPORT (LEYLAND) ltd,114828
South Ribble Council,http://statistics.data.gov.uk/doc/local-authority/30UN,Area 2 - Waste & Transport/Eastern & Central Teams,External Contractors Charges,4570,STEAM CLEAN - VM50906 - VN58 GFU - BC,25/04/2012,86034,60.00,Revenue,NAYLORS TRANSPORT (LEYLAND) ltd,114828
South Ribble Council,http://statistics.data.gov.uk/doc/local-authority/30UN,Area 2 - Waste & Transport/Eastern & Central Teams,External Contractors Charges,4570,STEAM CLEAN - VM50907 - VN10 DKL - BC,25/04/2012,86034,60.00,Revenue,NAYLORS TRANSPORT (LEYLAND) ltd,114828
South Ribble Council,http://statistics.data.gov.uk/doc/local-authority/30UN,Area 2 - Waste & Transport/Eastern & Central Teams,External Contractors Charges,4570,STEAM CLEAN - VM50908 - VX55 CNF - BC,25/04/2012,86034,60.00,Revenue,NAYLORS TRANSPORT (LEYLAND) ltd,114828
South Ribble Council,http://statistics.data.gov.uk/doc/local-authority/30UN,Area 2 - Waste & Transport/Eastern & Central Teams,External Contractors Charges,4570,STEAM CLEAN - VM50909 - P721 DVN - BC,25/04/2012,86034,60.00,Revenue,NAYLORS TRANSPORT (LEYLAND) ltd,114828
South Ribble Council,http://statistics.data.gov.uk/doc/local-authority/30UN,Area 2 - Waste & Transport/Eastern & Central Teams,External Contractors Charges,4570,STEAM CLEAN - VM50911 - VX55 CNA - BC,25/04/2012,86034,60.00,Revenue,NAYLORS TRANSPORT (LEYLAND) ltd,114828
South Ribble Council,http://statistics.data.gov.uk/doc/local-authority/30UN,Area 2 - Waste & Transport/Eastern & Central Teams,External Contractors Charges,4570,STEAM CLEAN - VM50912 - VN58 GFV - BC,25/04/2012,86034,60.00,Revenue,NAYLORS TRANSPORT (LEYLAND) ltd,114828
South Ribble Council,http://statistics.data.gov.uk/doc/local-authority/30UN,Area 2 - Waste & Transport/Eastern & Central Teams,External Contractors Charges,4570,STEAM CLEAN - VM50914 - VX55 CNC - BC,25/04/2012,86034,60.00,Revenue,NAYLORS TRANSPORT (LEYLAND) ltd,114828
South Ribble Council,http://statistics.data.gov.uk/doc/local-authority/30UN,Area 2 - Waste & Transport/Eastern & Central Teams,External Contractors Charges,4570,STEAM CLEAN - VM50915 - PN57 NXX - BC,25/04/2012,86034,60.00,Revenue,NAYLORS TRANSPORT (LEYLAND) ltd,114828
South Ribble Council,http://statistics.data.gov.uk/doc/local-authority/30UN,Area 2 - Waste & Transport/Eastern & Central Teams,External Contractors Charges,4570,STEAM CLEAN - VM50918 - VN58 GFX - BC,25/04/2012,86034,60.00,Revenue,NAYLORS TRANSPORT (LEYLAND) ltd,114828
South Ribble Council,http://statistics.data.gov.uk/doc/local-authority/30UN,Area 2 - Waste & Transport/Eastern & Central Teams,External Contractors Charges,4570,STEAM CLEAN - VM50919 - VX55 CNJ - BC,25/04/2012,86034,60.00,Revenue,NAYLORS TRANSPORT (LEYLAND) ltd,114828
South Ribble Council,http://statistics.data.gov.uk/doc/local-authority/30UN,Area 2 - Waste & Transport/Eastern & Central Teams,External Contractors Charges,4570,STEAM CLEAN - VM50926 - VX55 CNN - BC,25/04/2012,86034,60.00,Revenue,NAYLORS TRANSPORT (LEYLAND) ltd,114828
South Ribble Council,http://statistics.data.gov.uk/doc/local-authority/30UN,Area 2 - Waste & Transport/Eastern & Central Teams,External Contractors Charges,4570,STEAM CLEAN - VM50929 - OU04 DBV - BC,25/04/2012,86034,60.00,Revenue,NAYLORS TRANSPORT (LEYLAND) ltd,114828
South Ribble Council,http://statistics.data.gov.uk/doc/local-authority/30UN,Area 2 - Waste & Transport/Eastern & Central Teams,External Contractors Charges,4570,TR98,25/04/2012,86054,553.32,Revenue,PRESTON TYRE SPECIALISTS,109516
South Ribble Council,http://statistics.data.gov.uk/doc/local-authority/30UN,Area 3 - Parks/Leyland East & West,Materials General,4040,Trustee Amenity (28.00 per 5ltrs),25/04/2012,85548,560.00,Revenue,RIGBY TAYLOR LTD,33145
South Ribble Council,http://statistics.data.gov.uk/doc/local-authority/30UN,Property Services,Energy Costs,2303,3/3/12 to 3/4/12,25/04/2012,86236,"1,597.88",Revenue,SCOTTISH HYDRO ELECTRIC,130051
South Ribble Council,http://statistics.data.gov.uk/doc/local-authority/30UN,Property Services,Energy Costs,2303,levy,25/04/2012,86236,88.63,Revenue,SCOTTISH HYDRO ELECTRIC,130051
South Ribble Council,http://statistics.data.gov.uk/doc/local-authority/30UN,Information Services,Office Machines Maintenance,4026,Annual Service & Maintenance Contract for period 16/05/12 - 15/05/13,25/04/2012,86227,"8,159.04",Revenue,SIEMENS ENTERPRISE COMMUNICA,109765
South Ribble Council,http://statistics.data.gov.uk/doc/local-authority/30UN,Area 3 - Parks/Leyland East & West,Grounds Maint Cntrctrs Chgs,4657,Survey of playground area of farington Park and end of Parkgate Drive,25/04/2012,85958,500.00,Revenue,SITE SURVEYING SERVICES LIMITED,130394
South Ribble Council,http://statistics.data.gov.uk/doc/local-authority/30UN,Area 2 - Waste & Transport/Eastern & Central Teams,Materials General,4040,40T Toptrek,25/04/2012,85429,688.35,Revenue,TARMAC LTD,53057
South Ribble Council,http://statistics.data.gov.uk/doc/local-authority/30UN,Property Services,Rep & Maint Premises,2020,Remove the ACM sheets from the 3 toilets at the Civic Centre.,25/04/2012,86230,"3,296.20",Revenue,WELDLAG (PRESTON) LTD,99299
South Ribble Council,http://statistics.data.gov.uk/doc/local-authority/30UN,Area 2 - Waste & Transport/Eastern & Central Teams,External Contractors Charges,4570,TO COVER INVOICE 56103084,30/04/2012,79621,"1,126.53",Revenue,CICELEY COMMERCIALS LTD,59381
South Ribble Council,http://statistics.data.gov.uk/doc/local-authority/30UN,Housing,Contractors Charges 5,5311,Placements in REDACTED to end of year,30/04/2012,86237,"1,280.00",Revenue,REDACTED,130219
South Ribble Council,http://statistics.data.gov.uk/doc/local-authority/30UN,Area 2 - Waste & Transport/Eastern & Central Teams,External Contractors Charges,4570,RE CONTRACT WM5100 - 4TH QUARTER HARMONISATION ( 1.1.12 - 31.3.12),30/04/2012,86293,"19,468.25",Revenue,ENTERPRISE,26408
South Ribble Council,http://statistics.data.gov.uk/doc/local-authority/30UN,Housing,Equipment,C280,repairs grant,30/04/2012,86242,"1,000.00",Revenue,REDACTED,130388
South Ribble Council,http://statistics.data.gov.uk/doc/local-authority/30UN,Area 2 - Waste & Transport/Eastern & Central Teams,External Contractors Charges,4570,Spec repair VX55 CAN VM:51278,30/04/2012,86295,"2,441.50",Revenue,NORTH HYDRAULIC SERVICES LTD,119551
South Ribble Council,http://statistics.data.gov.uk/doc/local-authority/30UN,Housing,Contractors Charges 5,5311,6 months for 4 rooms at Old Steam mill 1/4/2012 to 30/9/2012,30/04/2012,86250,"1,646.66",Revenue,REDDY & CO,108177
South Ribble Council,http://statistics.data.gov.uk/doc/local-authority/30UN,Regeneration,Other Misc,4851,Friday night fooball Activities Jan 2012.,30/04/2012,66656,"2,244.00",Revenue,SOUTH RIBBLE COMMUNITY LEISUR,94210
South Ribble Council,http://statistics.data.gov.uk/doc/local-authority/30UN,Healthy Communities,Cost of Food,4310,first order to coppice on 240412,04/05/2012,91276,617.80,Capital,3663,130430
South Ribble Council,http://statistics.data.gov.uk/doc/local-authority/30UN,Revenues,Bank ac Unident Income,8,money sent in error,02/05/2012,91242,961.80,Revenue,AGE UK,130437
South Ribble Council,http://statistics.data.gov.uk/doc/local-authority/30UN,Human Resources,Amount Paid,30,CHILDCARE VOUCHERS APRIL 2012 - MARCH 2013,16/05/2012,92098,"1,920.00",Revenue,COMPUTERSHARE VOUCHER SERVI,116499
South Ribble Council,http://statistics.data.gov.uk/doc/local-authority/30UN,Revenues,Manual Control,1,,30/05/2012,92504,"1,427.35",Revenue,CONNECT POWER LIMITED,130473
South Ribble Council,http://statistics.data.gov.uk/doc/local-authority/30UN,Shared Financial Services,Amount Received,140,,11/05/2012,85390,566.20,Revenue,HM REVENUE & CUSTOMS,24837
South Ribble Council,http://statistics.data.gov.uk/doc/local-authority/30UN,Healthy Communities,Amount Paid,30,"Joint use - Monthly Payment on Account 2012 -2013, 3000.00 per calendar month",09/05/2012,91254,"36,000.00",Revenue,LCC PRIORY SPORTS AND TECHNOL,62103
South Ribble Council,http://statistics.data.gov.uk/doc/local-authority/30UN,Democratic Services,Other Costs,404,Parliamentary Elections 6/05/12: Recharge for Cost to Conduct SR constituency Election West Lancs,02/05/2012,91257,"5,783.36",Revenue,ONECONNECT,5610
South Ribble Council,http://statistics.data.gov.uk/doc/local-authority/30UN,Property Services,Amount Paid,32,rent march,16/05/2012,91629,672.82,Revenue,S R B C,35224
South Ribble Council,http://statistics.data.gov.uk/doc/local-authority/30UN,Property Services,Amount Paid,32,rent due apr & may,16/05/2012,91630,674.66,Revenue,S R B C,35224
South Ribble Council,http://statistics.data.gov.uk/doc/local-authority/30UN,Healthy Communities,Amount Received,140,DDs collected for apr-12,16/05/2012,91398,"13,776.86",Revenue,SOUTH RIBBLE COMMUNITY LEISUR,94210
South Ribble Council,http://statistics.data.gov.uk/doc/local-authority/30UN,Environmental Health,External Contractors Charges,4570,"Invoices SRBC00125, SRBC00126, SRBC00127, SRBC00124, SRBC00128.",03/05/2012,86252,"7,137.76",Revenue,REID CONSTRUCTION & LANDSCAPE ,115542
South Ribble Council,http://statistics.data.gov.uk/doc/local-authority/30UN,Environmental Health,External Contractors Charges,4570,"Invoices SRBC00125, SRBC00126, SRBC00127, SRBC00124, SRBC00128.",03/05/2012,86253,506.00,Revenue,REID CONSTRUCTION & LANDSCAPE ,115542
South Ribble Council,http://statistics.data.gov.uk/doc/local-authority/30UN,Environmental Health,External Contractors Charges,4570,"Invoices SRBC00125, SRBC00126, SRBC00127, SRBC00124, SRBC00128.",03/05/2012,86254,"2,541.00",Revenue,REID CONSTRUCTION & LANDSCAPE ,115542
South Ribble Council,http://statistics.data.gov.uk/doc/local-authority/30UN,Environmental Health,External Contractors Charges,4570,"Invoices SRBC00125, SRBC00126, SRBC00127, SRBC00124, SRBC00128.",03/05/2012,86255,506.00,Revenue,REID CONSTRUCTION & LANDSCAPE ,115542
South Ribble Council,http://statistics.data.gov.uk/doc/local-authority/30UN,Environmental Health,External Contractors Charges,4570,"Invoices SRBC00125, SRBC00126, SRBC00127, SRBC00124, SRBC00128.",03/05/2012,86256,986.00,Revenue,REID CONSTRUCTION & LANDSCAPE ,115542
South Ribble Council,http://statistics.data.gov.uk/doc/local-authority/30UN,Environmental Health,External Contractors Charges,4570,Lodge Lane Culvert.,30/05/2012,92427,"8,102.00",Revenue,REID CONSTRUCTION & LANDSCAPE ,115542
South Ribble Council,http://statistics.data.gov.uk/doc/local-authority/30UN,Shared Financial Services,Consultancy Fees,4541,subscription service 2012/13,16/05/2012,92095,"2,000.00",Revenue,BDO LLP,130272
South Ribble Council,http://statistics.data.gov.uk/doc/local-authority/30UN,Property Services,Changing Accommodation -R&M,2024,Annual contract 2011/2012 for electrical testing at sports pavilions,02/05/2012,91192,504.79,Revenue,BELEC,130290
South Ribble Council,http://statistics.data.gov.uk/doc/local-authority/30UN,Property Services,Reactive Repair & Maintenance,2020,Please provide a full electrical test & certificate at Leyland Market,16/05/2012,92060,697.69,Revenue,BELEC,130290
South Ribble Council,http://statistics.data.gov.uk/doc/local-authority/30UN,Property Services,Gas,2304,30/12/11 to 13/04/12,11/05/2012,86231,578.56,Revenue,BRITISH GAS BUSINESS,102458
South Ribble Council,http://statistics.data.gov.uk/doc/local-authority/30UN,Property Services,Electricity,2303,31/3/12 to 30/4/12,11/05/2012,91620,524.53,Revenue,BRITISH GAS BUSINESS,99707
South Ribble Council,http://statistics.data.gov.uk/doc/local-authority/30UN,Property Services,Electricity,2303,Electric 16/2/2003 - 09/02/2012 and 09/02/2012 22/03/2012,02/05/2012,80145,"1,201.59",Revenue,E.ON ENERGY,84356
South Ribble Council,http://statistics.data.gov.uk/doc/local-authority/30UN,Property Services,Electricity,2303,2/3/12 to 5/4/12,02/05/2012,91220,984.85,Revenue,E.ON ENERGY,84356
South Ribble Council,http://statistics.data.gov.uk/doc/local-authority/30UN,Property Services,Electricity,2303,5/4/12 to 3/5/12,16/05/2012,91645,722.71,Revenue,E.ON ENERGY,84356
South Ribble Council,http://statistics.data.gov.uk/doc/local-authority/30UN,Property Services,Reactive Repair & Maintenance,2020,"Construct new gas housing, remove the rotten unit & discard, fit new painted unit, fit to the floor.",25/05/2012,92068,625.00,Revenue,FAIRCLOUGH FABRICATIONS,21856
South Ribble Council,http://statistics.data.gov.uk/doc/local-authority/30UN,Property Services,Reactive Repair & Maintenance,2020,Install gas heater,09/05/2012,91461,"5,872.00",Revenue,GEORGE MORRISON (ELP) LTD,118442
South Ribble Council,http://statistics.data.gov.uk/doc/local-authority/30UN,Property Services,Reactive Repair & Maintenance,2020,supply and fit new flooring,04/05/2012,85420,804.00,Revenue,HYDE FLOORING CO LTD,23605
South Ribble Council,http://statistics.data.gov.uk/doc/local-authority/30UN,Property Services,Reactive Repair & Maintenance,2020,Supply & fix 3 sets of flooring the the 3 toilets at the Civic Centre,23/05/2012,92136,"1,560.00",Revenue,HYDE FLOORING CO LTD,23605
South Ribble Council,http://statistics.data.gov.uk/doc/local-authority/30UN,Shared Financial Services,Corp Subs to Professional Bodies,4720,annual subscription 2012/13,16/05/2012,92033,"1,250.00",Revenue,LG FUTURES,121138
South Ribble Council,http://statistics.data.gov.uk/doc/local-authority/30UN,Property Services,Electricity,2303,14/2/12 to 30/4/12,16/05/2012,92030,"3,791.11",Revenue,NPOWER LTD,63814
South Ribble Council,http://statistics.data.gov.uk/doc/local-authority/30UN,Property Services,Climate Change Levy,2307,levy,16/05/2012,92030,198.07,Revenue,NPOWER LTD,63814
South Ribble Council,http://statistics.data.gov.uk/doc/local-authority/30UN,Property Services,Planned Repair & Maintenance,2020,strip out toilets,16/05/2012,80200,"1,085.00",Revenue,PHIL CRAVEN PLUMBING & HEATING ,130381
South Ribble Council,http://statistics.data.gov.uk/doc/local-authority/30UN,Property Services,Reactive Repair & Maintenance,2020,materials,16/05/2012,80200,555.37,Revenue,PHIL CRAVEN PLUMBING & HEATING ,130381
South Ribble Council,http://statistics.data.gov.uk/doc/local-authority/30UN,Property Services,Electricity,2303,7/3/12 to 5/4/12,16/05/2012,86274,"1,025.56",Revenue,SCOTTISH HYDRO ELECTRIC,130051
South Ribble Council,http://statistics.data.gov.uk/doc/local-authority/30UN,Property Services,Climate Change Levy,2307,levy,16/05/2012,86274,54.00,Revenue,SCOTTISH HYDRO ELECTRIC,130051
South Ribble Council,http://statistics.data.gov.uk/doc/local-authority/30UN,Property Services,Gas,2304,6/4/12 to 8/5/12,16/05/2012,92021,"1,764.33",Revenue,SCOTTISH HYDRO ELECTRIC,130051
South Ribble Council,http://statistics.data.gov.uk/doc/local-authority/30UN,Property Services,Climate Change Levy,2307,levy,16/05/2012,92021,80.42,Revenue,SCOTTISH HYDRO ELECTRIC,130051
South Ribble Council,http://statistics.data.gov.uk/doc/local-authority/30UN,Property Services,Electricity,2303,4/4/12 to 4/5/12,23/05/2012,92410,"1,542.40",Revenue,SCOTTISH HYDRO ELECTRIC,130051
South Ribble Council,http://statistics.data.gov.uk/doc/local-authority/30UN,Property Services,Climate Change Levy,2307,levy,23/05/2012,92410,89.87,Revenue,SCOTTISH HYDRO ELECTRIC,130051
South Ribble Council,http://statistics.data.gov.uk/doc/local-authority/30UN,Property Services,Electricity,2303,6/4/12 to 8/5/12,23/05/2012,92456,"1,814.24",Revenue,SCOTTISH HYDRO ELECTRIC,130051
South Ribble Council,http://statistics.data.gov.uk/doc/local-authority/30UN,Property Services,Climate Change Levy,2307,levy,23/05/2012,92456,99.71,Revenue,SCOTTISH HYDRO ELECTRIC,130051
South Ribble Council,http://statistics.data.gov.uk/doc/local-authority/30UN,Property Services,Bulk Containers,4590,April & May pick up for Leyland Market,11/05/2012,91588,716.83,Revenue,SITA UK LTD Acc Ref;60000440,38920
South Ribble Council,http://statistics.data.gov.uk/doc/local-authority/30UN,Property Services,Burglar Alarm Premises,2034,2012/2013 annual contract for platinum maintenance and redcare monitoring at Leyland Market,09/05/2012,91308,569.00,Revenue,SWIFT FIRE & SECURITY,41933
South Ribble Council,http://statistics.data.gov.uk/doc/local-authority/30UN,Property Services,Burglar Alarm Premises,2034,2012/2013 annual contract for platinum maintenance and redcare monitoring at Longton Brickcroft,11/05/2012,91309,600.00,Revenue,SWIFT FIRE & SECURITY,41933
South Ribble Council,http://statistics.data.gov.uk/doc/local-authority/30UN,Property Services,Water Charges(Metered),2511,1/4/12 to 321/03/13,11/05/2012,79703,"1,343.88",Revenue,UNITED UTILITIES WATER PLC,29845
South Ribble Council,http://statistics.data.gov.uk/doc/local-authority/30UN,Property Services,Water Charges(Metered),2511,1/4/12 to 31/3/13,11/05/2012,79764,671.94,Revenue,UNITED UTILITIES WATER PLC,29845
South Ribble Council,http://statistics.data.gov.uk/doc/local-authority/30UN,Property Services,Reactive Repair & Maintenance,2020,Repair the 2 boilers in the main boiler house.,25/05/2012,91256,625.00,Revenue,VAILLANT,130288
South Ribble Council,http://statistics.data.gov.uk/doc/local-authority/30UN,Property Services,Alarm Service Contract,2035,2012 / 2013 annual contract for CCTV maintenance at Leyland Market,09/05/2012,91238,"1,189.00",Revenue,VIDEO TEC LTD,79196
South Ribble Council,http://statistics.data.gov.uk/doc/local-authority/30UN,Property Services,Alarm Service Contract,2035,2012 / 2013 annual contract for CCTV maintenance at Moss Side Depot unit 81 Bison Place,09/05/2012,91240,"2,500.00",Revenue,VIDEO TEC LTD,79196
South Ribble Council,http://statistics.data.gov.uk/doc/local-authority/30UN,Property Services,Alarm Service Contract,2035,Monitoring of CCTV at Moss Side Depot. 01/04/2012 - 31/03/2013,11/05/2012,91610,"2,388.10",Revenue,VISUAL VERIFICATION LTD,79992
South Ribble Council,http://statistics.data.gov.uk/doc/local-authority/30UN,Property Services,Reactive Repair & Maintenance,2020,"Please carry out environmental survey at Worden Park, Leyland",30/05/2012,92038,"2,350.00",Revenue,WELDLAG (PRESTON) LTD,99299
South Ribble Council,http://statistics.data.gov.uk/doc/local-authority/30UN,Property Services,Reactive Repair & Maintenance,2020,Please supply & fit a re-conditioned hot water boiler in Higher Walton Community Centre,18/05/2012,92126,556.20,Revenue,ZIP HEATERS (UK) LTD,68259
South Ribble Council,http://statistics.data.gov.uk/doc/local-authority/30UN,Area 2 - Waste & Transport/Eastern & Central Teams,Operational Equip & Tools,4010,PURCHASE OF 2 X JOHN DEERE MULCHING MOWERS (JS63VC),02/05/2012,85494,"1,174.00",Revenue,BALMERS GARDEN MACHINERY,16023
South Ribble Council,http://statistics.data.gov.uk/doc/local-authority/30UN,Area 1 - Penwortham & Western Parishes,Materials General,4040,43 x DERBY SLIMLINE LITTER BIN @ 230.00,11/05/2012,91212,"9,660.00",Revenue,BROXAP LTD,28736
South Ribble Council,http://statistics.data.gov.uk/doc/local-authority/30UN,Area 2 - Waste & Transport/Eastern & Central Teams,Publicity & Promotion,4842,5000 WASTE SERVICE LEAFLETS,02/05/2012,91271,659.00,Revenue,CDC PRINTING,96564
South Ribble Council,http://statistics.data.gov.uk/doc/local-authority/30UN,Neighbourhood Admin & Support,Materials General,4040,Red cardboard bin lids 05110411000,09/05/2012,91466,640.50,Revenue,CONTAINER CARE SOLUTIONS,106742
South Ribble Council,http://statistics.data.gov.uk/doc/local-authority/30UN,Area 2 - Waste & Transport/Eastern & Central Teams,Repair Costs General,4050,10 x 1100 litre ORANGE TRADE BINS TO BE REFURBISHED AND SPRAYED RED,09/05/2012,91467,700.00,Revenue,CONTAINER CARE SOLUTIONS,106742
South Ribble Council,http://statistics.data.gov.uk/doc/local-authority/30UN,Neighbourhood Admin & Support,Gas Oil,3134,1500l gas oil at 69.25p per litre,23/05/2012,91469,"1,038.75",Revenue,CROWN OIL,65906
South Ribble Council,http://statistics.data.gov.uk/doc/local-authority/30UN,Neighbourhood Admin & Support,Diesel Fuel,3132,15000l diesel at 115.50p per litre,23/05/2012,91470,"17,325.00",Revenue,CROWN OIL,65906
South Ribble Council,http://statistics.data.gov.uk/doc/local-authority/30UN,Neighbourhood Admin & Support,Gas Oil,3134,2000 LITRES GAS OIL @ 0.649 PER LITRE,23/05/2012,92408,"1,298.00",Revenue,CROWN OIL,65906
South Ribble Council,http://statistics.data.gov.uk/doc/local-authority/30UN,Neighbourhood Admin & Support,Diesel Fuel,3132,"12,000 LITRES DIESEL @ 1.1195 PER LITRE",23/05/2012,92409,"14,340.00",Revenue,CROWN OIL,65906
South Ribble Council,http://statistics.data.gov.uk/doc/local-authority/30UN,Area 3 - Parks/Leyland East & West,GM Refurbishment,4657,Lay 232m of boundary hedge between Hurst Grange Park and Penwortham Girls High School.,04/05/2012,86247,"1,740.00",Revenue,DAMON PEACOCK,130347
South Ribble Council,http://statistics.data.gov.uk/doc/local-authority/30UN,Area 2 - Waste & Transport/Eastern & Central Teams,External Contractors Charges,4570,SPEC REPAIR - VM51388 - VX55 CNF - GA,30/05/2012,92066,773.40,Revenue,DENNIS EAGLE LTD,19774
South Ribble Council,http://statistics.data.gov.uk/doc/local-authority/30UN,Area 2 - Waste & Transport/Eastern & Central Teams,External Contractors Charges,4570,ADDN BINS & BOXES,02/05/2012,91214,"1,924.66",Revenue,ENTERPRISE,26408
South Ribble Council,http://statistics.data.gov.uk/doc/local-authority/30UN,Area 2 - Waste & Transport/Eastern & Central Teams,External Contractors Charges,4570,DOMESTIC WASTE COLLECTIONS 1.4.12 - 30.4.12,23/05/2012,91487,"78,467.84",Revenue,ENTERPRISE,26408
South Ribble Council,http://statistics.data.gov.uk/doc/local-authority/30UN,Area 2 - Waste & Transport/Eastern & Central Teams,External Contractors Charges,4570,COMMERCIAL WASTE COLLECTIONS 1.4.12 - 30.4.12,23/05/2012,91487,"6,093.03",Revenue,ENTERPRISE,26408
South Ribble Council,http://statistics.data.gov.uk/doc/local-authority/30UN,Area 2 - Waste & Transport/Eastern & Central Teams,External Contractors Charges,4570,FOOD WASTE COLLECTIONS 1.4.12 - 30.4.12,23/05/2012,91487,"5,809.43",Revenue,ENTERPRISE,26408
South Ribble Council,http://statistics.data.gov.uk/doc/local-authority/30UN,Area 2 - Waste & Transport/Eastern & Central Teams,External Contractors Charges,4570,DRY RECYCLABLE COLLECTIONS 1.4.12 - 30.4.12,23/05/2012,91487,"65,213.59",Revenue,ENTERPRISE,26408
South Ribble Council,http://statistics.data.gov.uk/doc/local-authority/30UN,Area 2 - Waste & Transport/Eastern & Central Teams,External Contractors Charges,4570,BULKY WASTE COLLECTIONS APRIL 2012,11/05/2012,91541,"1,737.00",Revenue,EXSEL (INT) COMMUNITY INTEREST ,130150
South Ribble Council,http://statistics.data.gov.uk/doc/local-authority/30UN,Area 2 - Waste & Transport/Eastern & Central Teams,Computer Maintenance,4211,"Fleetcheck Registration &  account setup, annual licence fee & ongoing support",30/05/2012,92492,"5,900.00",Revenue,FLEETCHECK LTD,130457
South Ribble Council,http://statistics.data.gov.uk/doc/local-authority/30UN,Area 2 - Waste & Transport/Eastern & Central Teams,Materials General,4040,1 NEUTRAL SWITCH PN02 ZRP VM51099,23/05/2012,92174,54.77,Revenue,GIBSONS GARDEN MACHINERY LTD,59051
South Ribble Council,http://statistics.data.gov.uk/doc/local-authority/30UN,Area 2 - Waste & Transport/Eastern & Central Teams,Materials General,4040,"1 CLUTCH ASSY, 1 THRUST BEARING, - H988 XCW - VM50779 - BN",23/05/2012,92174,"1,087.82",Revenue,GIBSONS GARDEN MACHINERY LTD,59051
South Ribble Council,http://statistics.data.gov.uk/doc/local-authority/30UN,Neighbourhood Admin & Support,Materials General,4040,3 in 1 site jacket size S WEMJ + logo,02/05/2012,91224,149.70,Revenue,GUARDSMAN LTD,130321
South Ribble Council,http://statistics.data.gov.uk/doc/local-authority/30UN,Neighbourhood Admin & Support,Materials General,4040,3 in 1 site jacket size M  WEMJ + logo,02/05/2012,91224,149.70,Revenue,GUARDSMAN LTD,130321
South Ribble Council,http://statistics.data.gov.uk/doc/local-authority/30UN,Neighbourhood Admin & Support,Materials General,4040,3 in 1 site jacket Size L  WEMJ + logo,02/05/2012,91224,149.70,Revenue,GUARDSMAN LTD,130321
South Ribble Council,http://statistics.data.gov.uk/doc/local-authority/30UN,Neighbourhood Admin & Support,Materials General,4040,3 in 1 site jacket size XL  WEMJ + logo,02/05/2012,91224,149.70,Revenue,GUARDSMAN LTD,130321
South Ribble Council,http://statistics.data.gov.uk/doc/local-authority/30UN,Neighbourhood Admin & Support,Materials General,4040,Drivers gloves FHCHFG,02/05/2012,91224,93.10,Revenue,GUARDSMAN LTD,130321
South Ribble Council,http://statistics.data.gov.uk/doc/local-authority/30UN,Neighbourhood Admin & Support,Materials General,4040,Thermal kevlar size 8  TNG-O,02/05/2012,91224,10.44,Revenue,GUARDSMAN LTD,130321
South Ribble Council,http://statistics.data.gov.uk/doc/local-authority/30UN,Neighbourhood Admin & Support,Materials General,4040,Fleece size L  3100-30+LOGO,09/05/2012,91491,69.90,Revenue,GUARDSMAN LTD,130321
South Ribble Council,http://statistics.data.gov.uk/doc/local-authority/30UN,Neighbourhood Admin & Support,Materials General,4040,Ballistic Trousers size Small S918,09/05/2012,91491,166.40,Revenue,GUARDSMAN LTD,130321
South Ribble Council,http://statistics.data.gov.uk/doc/local-authority/30UN,Neighbourhood Admin & Support,Materials General,4040,Work safety boots Size 8  Toe B912,09/05/2012,91491,44.85,Revenue,GUARDSMAN LTD,130321
South Ribble Council,http://statistics.data.gov.uk/doc/local-authority/30UN,Neighbourhood Admin & Support,Materials General,4040,Work safety boots Size 9  Toe B912,09/05/2012,91491,59.80,Revenue,GUARDSMAN LTD,130321
South Ribble Council,http://statistics.data.gov.uk/doc/local-authority/30UN,Neighbourhood Admin & Support,Materials General,4040,Ballistic trousers Size XL  S918,09/05/2012,91491,145.60,Revenue,GUARDSMAN LTD,130321
South Ribble Council,http://statistics.data.gov.uk/doc/local-authority/30UN,Neighbourhood Admin & Support,Materials General,4040,grab n Grip Glove,09/05/2012,91491,20.88,Revenue,GUARDSMAN LTD,130321
South Ribble Council,http://statistics.data.gov.uk/doc/local-authority/30UN,Area 2 - Waste & Transport/Eastern & Central Teams,Materials General,4040,ASSORTED FILTERS FOR VEHICLE MAINT USE,02/05/2012,91183,552.76,Revenue,H & J SERVICES LTD,114446
South Ribble Council,http://statistics.data.gov.uk/doc/local-authority/30UN,Area 2 - Waste & Transport/Eastern & Central Teams,Materials General,4040,"2 switches - BIN 362, 2 switches - BIN 368, 3 switches - BIN 369, 3 switches - BIN 374",11/05/2012,91417,728.91,Revenue,H & J SERVICES LTD,114446
South Ribble Council,http://statistics.data.gov.uk/doc/local-authority/30UN,Area 2 - Waste & Transport/Eastern & Central Teams,Materials General,4040,6 sets DISC PADS BIN539,11/05/2012,91545,542.70,Revenue,H & J SERVICES LTD,114446
South Ribble Council,http://statistics.data.gov.uk/doc/local-authority/30UN,Area 2 - Waste & Transport/Eastern & Central Teams,Materials General,4040,"2 switches - BIN 362, 2 switches - BIN 368, 3 switches - BIN 369, 3 switches - BIN 374",16/05/2012,92070,"1,128.61",Revenue,H & J SERVICES LTD,114446
South Ribble Council,http://statistics.data.gov.uk/doc/local-authority/30UN,Area 3 - Parks/Leyland East & West,GM Refurbishment,4657,1x 616731 unimini sloping climbing wall (no fixings),16/05/2012,91602,387.00,Revenue,HAGSPLAY LTD,23249
South Ribble Council,http://statistics.data.gov.uk/doc/local-authority/30UN,Area 3 - Parks/Leyland East & West,GM Refurbishment,4657,1x 69673110 Fixing pack (no ground fixings),16/05/2012,91602,64.00,Revenue,HAGSPLAY LTD,23249
South Ribble Council,http://statistics.data.gov.uk/doc/local-authority/30UN,Area 3 - Parks/Leyland East & West,GM Refurbishment,4657,carriage,16/05/2012,91602,68.00,Revenue,HAGSPLAY LTD,23249
South Ribble Council,http://statistics.data.gov.uk/doc/local-authority/30UN,Area 2 - Waste & Transport/Eastern & Central Teams,Materials General,4040,1 HYDRAULIC RAM KX09 ASZ VM51353,11/05/2012,91478,935.33,Revenue,HAKO MACHINES LTD,57972
South Ribble Council,http://statistics.data.gov.uk/doc/local-authority/30UN,Area 2 - Waste & Transport/Eastern & Central Teams,Materials General,4040,"1 RAM, 3 BUSHES, 1 PIN - KX09 ATF - VM51371 - BN",30/05/2012,92465,632.66,Revenue,HAKO MACHINES LTD,57972
South Ribble Council,http://statistics.data.gov.uk/doc/local-authority/30UN,Area 2 - Waste & Transport/Eastern & Central Teams,Materials General,4040,"1 RAM, 3 BUSHES, 1 PIN, 1 BAFFLE PLATE - KX09 ASZ - VM51378 - BN",30/05/2012,92468,515.63,Revenue,HAKO MACHINES LTD,57972
South Ribble Council,http://statistics.data.gov.uk/doc/local-authority/30UN,Area 2 - Waste & Transport/Eastern & Central Teams,External Contractors Charges,4570,"Tree cutting as per the drawings, plus associated grass cutting and litter collection",02/05/2012,86046,"8,725.00",Revenue,KAYS TRAFFIC MANAGEMENT LTD,72342
South Ribble Council,http://statistics.data.gov.uk/doc/local-authority/30UN,Area 1 - Penwortham & Western Parishes,External Contractors Charges,4570,TRAFFIC MANAGEMENT FOR BY-PASS WORKS - 23/4/12 UNTIL 27/4/12 AND 30/4/12 UNTIL 4/5/12,23/05/2012,92072,"8,700.00",Revenue,KAYS TRAFFIC MANAGEMENT LTD,72342
South Ribble Council,http://statistics.data.gov.uk/doc/local-authority/30UN,Neighbourhood Admin & Support,Waste Disposal Chgs Bulk Con,5112,March 2012 - incineration of clinical waste,23/05/2012,92146,644.10,Revenue,LANCASHIRE TEACHING FT,120715
South Ribble Council,http://statistics.data.gov.uk/doc/local-authority/30UN,Area 1 - Penwortham & Western Parishes,Processing Centre Charges,4516,PARKING ENFORCEMENT LEVY JANUARY 2012,02/05/2012,91186,710.19,Revenue,LANCS COUNTY COUNCIL,41645
South Ribble Council,http://statistics.data.gov.uk/doc/local-authority/30UN,Area 1 - Penwortham & Western Parishes,Processing Centre Charges,4516,PARKING ENFORCEMENT LEVY FEBRUARY 2012,02/05/2012,91186,558.44,Revenue,LANCS COUNTY COUNCIL,41645
South Ribble Council,http://statistics.data.gov.uk/doc/local-authority/30UN,Area 1 - Penwortham & Western Parishes,Processing Centre Charges,4516,PARKING ENFORCEMENT LEVY MARCH 2012,02/05/2012,91186,352.06,Revenue,LANCS COUNTY COUNCIL,41645
South Ribble Council,http://statistics.data.gov.uk/doc/local-authority/30UN,Area 3 - Parks/Leyland East & West,GM Refurbishment,4657,"Formation of concrete slab and associated works to Quay, Priory Park, Penwortham",23/05/2012,92406,"8,880.30",Revenue,LANDSCAPE ENGINEERING LIMITED,130416
South Ribble Council,http://statistics.data.gov.uk/doc/local-authority/30UN,Area 2 - Waste & Transport/Eastern & Central Teams,External Contractors Charges,4570,SPEC REPAIR - OW1069 (DESIGN & MANUFACTURE EXTENDED PLATFORM STEPS) BC,30/05/2012,92496,"2,290.00",Revenue,NORTH HYDRAULIC SERVICES LTD,119551
South Ribble Council,http://statistics.data.gov.uk/doc/local-authority/30UN,Area 1 - Penwortham & Western Parishes,Parking Attendants,4514,DEPLOYMENT OF OFFICERS MARCH 2012,23/05/2012,85508,922.88,Revenue,NSL LTD,116868
South Ribble Council,http://statistics.data.gov.uk/doc/local-authority/30UN,Area 1 - Penwortham & Western Parishes,Cash Collection Charges Car Parks,4855,CASH COLLECTION MARCH 2012,23/05/2012,85508,296.10,Revenue,NSL LTD,116868
South Ribble Council,http://statistics.data.gov.uk/doc/local-authority/30UN,Area 2 - Waste & Transport/Eastern & Central Teams,Cap Vehicles,C440,FORD TRANSIT MWB 350 CHASSIS TIPPER C/W TOOLBOX/TAIL LIFT/ELECTRICS,16/05/2012,86291,"68,205.30",Capital,OMEGA COMMERCIALS LTD,130260
South Ribble Council,http://statistics.data.gov.uk/doc/local-authority/30UN,Area 2 - Waste & Transport/Eastern & Central Teams,Diesel Fuel,3132,Fuel Charges for April 2012,23/05/2012,92145,919.73,Revenue,PETROMEX MILLBROOK WAY SERVI,62572
South Ribble Council,http://statistics.data.gov.uk/doc/local-authority/30UN,Area 2 - Waste & Transport/Eastern & Central Teams,Materials General,4040,15w/40 ENGINE OIL,02/05/2012,91272,"1,340.00",Revenue,PILKINGTON OILS,113531
South Ribble Council,http://statistics.data.gov.uk/doc/local-authority/30UN,Neighbourhood Admin & Support,Transport Licenses,3137,road tax,23/05/2012,92142,430.00,Revenue,POST OFFICE LTD,31354
South Ribble Council,http://statistics.data.gov.uk/doc/local-authority/30UN,Neighbourhood Admin & Support,Transport Licenses,3137,,23/05/2012,92142,430.00,Revenue,POST OFFICE LTD,31354
South Ribble Council,http://statistics.data.gov.uk/doc/local-authority/30UN,Neighbourhood Admin & Support,Transport Licenses,3137,,23/05/2012,92142,215.00,Revenue,POST OFFICE LTD,31354
South Ribble Council,http://statistics.data.gov.uk/doc/local-authority/30UN,Neighbourhood Admin & Support,Transport Licenses,3137,,23/05/2012,92142,430.00,Revenue,POST OFFICE LTD,31354
South Ribble Council,http://statistics.data.gov.uk/doc/local-authority/30UN,Neighbourhood Admin & Support,Transport Licenses,3137,,23/05/2012,92142,215.00,Revenue,POST OFFICE LTD,31354
South Ribble Council,http://statistics.data.gov.uk/doc/local-authority/30UN,Neighbourhood Admin & Support,Transport Licenses,3137,,23/05/2012,92142,430.00,Revenue,POST OFFICE LTD,31354
South Ribble Council,http://statistics.data.gov.uk/doc/local-authority/30UN,Neighbourhood Admin & Support,Transport Licenses,3137,,23/05/2012,92142,215.00,Revenue,POST OFFICE LTD,31354
South Ribble Council,http://statistics.data.gov.uk/doc/local-authority/30UN,Neighbourhood Admin & Support,Transport Licenses,3137,,23/05/2012,92142,215.00,Revenue,POST OFFICE LTD,31354
South Ribble Council,http://statistics.data.gov.uk/doc/local-authority/30UN,Neighbourhood Admin & Support,Transport Licenses,3137,,23/05/2012,92142,215.00,Revenue,POST OFFICE LTD,31354
South Ribble Council,http://statistics.data.gov.uk/doc/local-authority/30UN,Area 2 - Waste & Transport/Eastern & Central Teams,Materials General,4040,6 NEW TYRES - PN07 HHZ - VM51235 - AW,16/05/2012,92080,"1,403.00",Revenue,PRESTON TYRE SPECIALISTS,109516
South Ribble Council,http://statistics.data.gov.uk/doc/local-authority/30UN,Area 2 - Waste & Transport/Eastern & Central Teams,Materials General,4040,TYRE REPAIRS - TR100 - GA,23/05/2012,92179,695.30,Revenue,PRESTON TYRE SPECIALISTS,109516
South Ribble Council,http://statistics.data.gov.uk/doc/local-authority/30UN,Area 3 - Parks/Leyland East & West,Materials General,4040,HALF PALLET (36 X 10 LTR) IMPACT GOLD LINE MARKING PAINT,16/05/2012,91561,"1,116.00",Revenue,RIGBY TAYLOR LTD,33145
South Ribble Council,http://statistics.data.gov.uk/doc/local-authority/30UN,Area 2 - Waste & Transport/Eastern & Central Teams,Short Course,1402,"16th April PA1  - Dean Fisher, 17th April PA6 -  Dean Fisher, 18th April PA2 -  Brian Rhodes",11/05/2012,91562,350.00,Revenue,RIGBY TAYLOR LTD,33145
South Ribble Council,http://statistics.data.gov.uk/doc/local-authority/30UN,Area 2 - Waste & Transport/Eastern & Central Teams,Short Course,1402,"16th April PA1 - Alex Rigbye, 17th April PA6 - Alex Rigbye,18th April PA2 - Alex Rigbye",11/05/2012,91562,700.00,Revenue,RIGBY TAYLOR LTD,33145
South Ribble Council,http://statistics.data.gov.uk/doc/local-authority/30UN,Area 3 - Parks/Leyland East & West,Operational Equip & Tools,4010,Hi active gallup weedkiller (38.00 per 5ltrs),23/05/2012,92120,760.00,Revenue,RIGBY TAYLOR LTD,33145
South Ribble Council,http://statistics.data.gov.uk/doc/local-authority/30UN,Area 2 - Waste & Transport/Eastern & Central Teams,Hiring Expenses,3212,Hire of Mechanical Road Sweeper - On Hire 23.4.12 for 2 wks Hire (By-Pass Works),23/05/2012,91435,780.00,Revenue,RIVERSIDE TRUCK RENTAL LTD,77305
South Ribble Council,http://statistics.data.gov.uk/doc/local-authority/30UN,Area 2 - Waste & Transport/Eastern & Central Teams,Hiring Expenses,3212,delivery charge/collection,23/05/2012,91435,100.00,Revenue,RIVERSIDE TRUCK RENTAL LTD,77305
South Ribble Council,http://statistics.data.gov.uk/doc/local-authority/30UN,Area 3 - Parks/Leyland East & West,GM Refurbishment,4657,Emergency Surface repairs at Tardy Gate Play area as per your; est. 1110023,30/05/2012,48071,"1,300.00",Revenue,RTC SAFETY SURFACES LTD,93839
South Ribble Council,http://statistics.data.gov.uk/doc/local-authority/30UN,Area 3 - Parks/Leyland East & West,GM Refurbishment,4657,EMERGENCY SURFACE REPAIRS AT TARDY GATE,30/05/2012,97413,900.00,Revenue,RTC SAFETY SURFACES LTD,93839
South Ribble Council,http://statistics.data.gov.uk/doc/local-authority/30UN,Area 2 - Waste & Transport/Eastern & Central Teams,External Contractors Charges,4570,SPEC REPAIR - VX55 CNC - VM51302 - GA,16/05/2012,92039,630.00,Revenue,S MCMASTER,112079
South Ribble Council,http://statistics.data.gov.uk/doc/local-authority/30UN,Area 2 - Waste & Transport/Eastern & Central Teams,External Contractors Charges,4570,END OF LEASE REPAIRS - VM51171 - PJ04 XZB - BC,11/05/2012,91550,449.71,Revenue,SG EQUIPMENT FINANCE LTD,43821
South Ribble Council,http://statistics.data.gov.uk/doc/local-authority/30UN,Area 2 - Waste & Transport/Eastern & Central Teams,External Contractors Charges,4570,END OF LEASE REPAIRS - VM51172 - PJ04 XZL - BC,11/05/2012,91550,521.25,Revenue,SG EQUIPMENT FINANCE LTD,43821
South Ribble Council,http://statistics.data.gov.uk/doc/local-authority/30UN,Area 2 - Waste & Transport/Eastern & Central Teams,External Contractors Charges,4570,collection x 2,11/05/2012,91550,100.00,Revenue,SG EQUIPMENT FINANCE LTD,43821
South Ribble Council,http://statistics.data.gov.uk/doc/local-authority/30UN,Area 2 - Waste & Transport/Eastern & Central Teams,External Contractors Charges,4570,END OF LEASE REPAIRS - VM51191 - P721 DVN - BC,11/05/2012,91551,912.61,Revenue,SG EQUIPMENT FINANCE LTD,43821
South Ribble Council,http://statistics.data.gov.uk/doc/local-authority/30UN,Area 2 - Waste & Transport/Eastern & Central Teams,External Contractors Charges,4570,collection,11/05/2012,91551,100.00,Revenue,SG EQUIPMENT FINANCE LTD,43821
South Ribble Council,http://statistics.data.gov.uk/doc/local-authority/30UN,Area 1 - Penwortham & Western Parishes,External Contractors Charges,4570,"Bus Shelter - Liverpool Rd Longton , Removal of Old Perspex Panels Replace with Steel Panels.",23/05/2012,91274,780.00,Revenue,STEELWISE FABRICATIONS,53002
South Ribble Council,http://statistics.data.gov.uk/doc/local-authority/30UN,Area 2 - Waste & Transport/Eastern & Central Teams,External Contractors Charges,4570,Spec Repair carried out on VU11 HVT following accident damage,18/05/2012,92123,"1,258.32",Revenue,TERBERG MATEC UK LTD,58625
South Ribble Council,http://statistics.data.gov.uk/doc/local-authority/30UN,Area 2 - Waste & Transport/Eastern & Central Teams,External Contractors Charges,4570,SPEC REPAIR - VM51356 - VX55 CNN - BC,18/05/2012,92124,"2,095.60",Revenue,TERBERG MATEC UK LTD,58625
South Ribble Council,http://statistics.data.gov.uk/doc/local-authority/30UN,Area 2 - Waste & Transport/Eastern & Central Teams,Materials General,4040,6 X SPLITTER BOXES - BIN 375 - GA,23/05/2012,92199,738.46,Revenue,TERBERG MATEC UK LTD,58625
South Ribble Council,http://statistics.data.gov.uk/doc/local-authority/30UN,Area 3 - Parks/Leyland East & West,Professional Fees,4510,ANNUAL MAINTENANCE CONTRACT 1.4.12 - 31.3.13,11/05/2012,91553,"1,500.00",Revenue,TREEWISE SOLUTIONS LIMITED,130001
South Ribble Council,http://statistics.data.gov.uk/doc/local-authority/30UN,Property Services,Water Charges(Metered),2511,1/4/12 to 31/3/13,11/05/2012,79705,"1,405.62",Revenue,UNITED UTILITIES WATER PLC,29845
South Ribble Council,http://statistics.data.gov.uk/doc/local-authority/30UN,Property Services,Water Charges(Metered),2511,4/1/12to5/4/12,11/05/2012,85482,640.50,Revenue,UNITED UTILITIES WATER PLC,29845
South Ribble Council,http://statistics.data.gov.uk/doc/local-authority/30UN,Area 2 - Waste & Transport/Eastern & Central Teams,Transport Licenses,3137,TOP UP ACCOUNT FOR HGV TESTING - ACCOUNT REF. 23467,23/05/2012,92403,"1,500.00",Revenue,VOSA,116839
South Ribble Council,http://statistics.data.gov.uk/doc/local-authority/30UN,Housing,Ness Scheme,C278,Purchase order for works committed 2011 - 12,02/05/2012,91210,838.10,Capital,A & M INSULATIONS LTD,78414
South Ribble Council,http://statistics.data.gov.uk/doc/local-authority/30UN,Housing,Ness Scheme,C278,Purchase order for works committed 2011 - 12,02/05/2012,91211,647.62,Capital,A & M INSULATIONS LTD,78414
South Ribble Council,http://statistics.data.gov.uk/doc/local-authority/30UN,Planning,Professional Fees,4510,"LDF spend to 28th March 2012 - Total spend - 132,261.24 + VAT of which SRBC pays one third.",16/05/2012,85164,"44,087.08",Revenue,CHORLEY BOROUGH COUNCIL,17352
South Ribble Council,http://statistics.data.gov.uk/doc/local-authority/30UN,Housing,Temporary Accomodation,5311,Block order for REDACTED hotel,11/05/2012,91534,540.00,Revenue,REDACTED HOTEL,130219
South Ribble Council,http://statistics.data.gov.uk/doc/local-authority/30UN,Housing,Temporary Accomodation,5311,Block order for REDACTED hotel,11/05/2012,91535,975.00,Revenue,REDACTED HOTEL,130219
South Ribble Council,http://statistics.data.gov.uk/doc/local-authority/30UN,Housing,Security Measures,4272,sanctuary works,02/05/2012,91222,"1,030.00",Revenue,COMMUNITY GATEWAY HOUSING AS,101682
South Ribble Council,http://statistics.data.gov.uk/doc/local-authority/30UN,Housing,Contributions General,4730,Select Move management fee,23/05/2012,92134,585.43,Revenue,COMMUNITY GATEWAY HOUSING AS,101682
South Ribble Council,http://statistics.data.gov.uk/doc/local-authority/30UN,Planning,Consultancy Fees,4541,Wesley Street Mill Project,23/05/2012,85440,"3,504.00",Revenue,DWF LLP,130216
South Ribble Council,http://statistics.data.gov.uk/doc/local-authority/30UN,Shared Financial Services,Professional Fees,4510,lamac: annual fee 2012/13,04/05/2012,85317,"1,592.98",Revenue,GEMINI CONSULTANTS LTD,23061
South Ribble Council,http://statistics.data.gov.uk/doc/local-authority/30UN,Shared Financial Services,Professional Fees,4510,lamac: annual professional indemnity insurance 2012/13,04/05/2012,85317,727.48,Revenue,GEMINI CONSULTANTS LTD,23061
South Ribble Council,http://statistics.data.gov.uk/doc/local-authority/30UN,Planning,Operational Equip & Tools,4010,Renewal subscription of Development control practice notes,23/05/2012,91489,975.00,Revenue,HAYMARKET PUBLISHING SERVICES ,23346
South Ribble Council,http://statistics.data.gov.uk/doc/local-authority/30UN,Housing,Temporary Accomodation,5311,Placements to end of year,23/05/2012,92154,507.00,Revenue,REDACTED HOTEL,99147
South Ribble Council,http://statistics.data.gov.uk/doc/local-authority/30UN,Housing,Temporary Accomodation,5311,Placements to end of year,23/05/2012,92155,690.00,Revenue,REDACTED HOTEL,99147
South Ribble Council,http://statistics.data.gov.uk/doc/local-authority/30UN,Housing,Temporary Accomodation,5311,Placements to end of year,23/05/2012,92163,"1,209.00",Revenue,REDACTED HOTEL,99147
South Ribble Council,http://statistics.data.gov.uk/doc/local-authority/30UN,Housing,Contributions General,4730,Housing Advise and mediation for young people aged 16-25,23/05/2012,92029,"3,750.00",Revenue,KEY,98601
South Ribble Council,http://statistics.data.gov.uk/doc/local-authority/30UN,Planning,Legal,4821,"South Ribble BC V Planning Inspectorate and Wainhomes (Northwest) Ltd ( Long Moss Lane, Longton)",02/05/2012,78772,"6,400.00",Revenue,MARTIN CARTER,19211
South Ribble Council,http://statistics.data.gov.uk/doc/local-authority/30UN,Housing,Enforcing Housing Act and grant work,C280,Grant to replace gas boiler and controls,16/05/2012,91404,"1,000.00",Capital,REDACTED,130426
South Ribble Council,http://statistics.data.gov.uk/doc/local-authority/30UN,Housing,Enforcing Housing Act and grant work,C280,"REDACTED, Walmer Bridge. Grant Case ID - SRHS1693190 for replacement boiler.",30/05/2012,92482,823.20,Capital,REDACTED,130449
South Ribble Council,http://statistics.data.gov.uk/doc/local-authority/30UN,Planning,Professional Fees,4510,Full External Re-decoration at 108 Watkin Lane Lostock Hall,16/05/2012,85204,756.36,Revenue,PDP PROPERTY SERVICES LTD,106975
South Ribble Council,http://statistics.data.gov.uk/doc/local-authority/30UN,Regeneration,Misc Capital Payments,C234,Bus shelter & flag brackets etc.,23/05/2012,85490,"10,703.14",Capital,QUEENSBURY SHELTERS LTD,84576
South Ribble Council,http://statistics.data.gov.uk/doc/local-authority/30UN,Housing,Temporary Accomodation,5311,6 months for 4 rooms at Old Steam mill 1/4/2012 to 30/9/2012,18/05/2012,86251,"8,233.34",Revenue,REDDY & CO,108177
South Ribble Council,http://statistics.data.gov.uk/doc/local-authority/30UN,Healthy Communities,Cost of Food,4310,juice,04/05/2012,91276,57.96,Revenue,3663,130430
South Ribble Council,http://statistics.data.gov.uk/doc/local-authority/30UN,Regeneration,Miscellaneous Expenses,4851,Electrical goods per quote 5044.,11/05/2012,91595,972.40,Revenue,ACTIVE AUDIO VISUAL,14274
South Ribble Council,http://statistics.data.gov.uk/doc/local-authority/30UN,Regeneration,Publicity & Promotion,4842,Purchase of display equipment (2 items),25/05/2012,91554,514.00,Revenue,AINSWORTH & PARKINSON,130107
South Ribble Council,http://statistics.data.gov.uk/doc/local-authority/30UN,Regeneration,Investment & Improvement,485K,As above,25/05/2012,91554,514.00,Revenue,AINSWORTH & PARKINSON,130107
South Ribble Council,http://statistics.data.gov.uk/doc/local-authority/30UN,Healthy Communities,Maintenance & Repair,4013,repair to dishwasher pump and pressure switch,04/05/2012,91295,689.60,Revenue,COMMERCIAL KITCHEN SERVICES L,19538
South Ribble Council,http://statistics.data.gov.uk/doc/local-authority/30UN,Healthy Communities,Operational Equip & Tools,4010,supply of new grill to coppice in april 2012,23/05/2012,92185,"1,005.00",Revenue,COMMERCIAL KITCHEN SERVICES L,19538
South Ribble Council,http://statistics.data.gov.uk/doc/local-authority/30UN,Regeneration,Misc Capital Payments,C234,Walmer Bridge (final installment),11/05/2012,91539,"1,040.00",Capital,DP STRUCTURES LTD,120485
South Ribble Council,http://statistics.data.gov.uk/doc/local-authority/30UN,Healthy Communities,Fuel Oil,2301,ply of gas oil for mworden on 240412,16/05/2012,86044,"2,037.50",Revenue,GEO BROUGHTON & CO,102555
South Ribble Council,http://statistics.data.gov.uk/doc/local-authority/30UN,Healthy Communities,Fuel Oil,2301,supply of heating oil to worden for may 2012,30/05/2012,92429,"1,134.81",Revenue,GEO BROUGHTON & CO,102555
South Ribble Council,http://statistics.data.gov.uk/doc/local-authority/30UN,Regeneration,Miscellaneous Expenses,4851,j4b grant advisor,04/05/2012,66295,"3,450.00",Revenue,IDOX PLC,104485
South Ribble Council,http://statistics.data.gov.uk/doc/local-authority/30UN,Regeneration,Miscellaneous Expenses,4851,Grantfinder System.,04/05/2012,85329,"1,725.00",Revenue,IDOX PLC,104485
South Ribble Council,http://statistics.data.gov.uk/doc/local-authority/30UN,Healthy Communities,Cost of Drinks,4311,supply of beer and wines to civic bar on 090512,18/05/2012,92144,"1,558.75",Revenue,MATTHEW CLARK WHOLESALE LTD,47720
South Ribble Council,http://statistics.data.gov.uk/doc/local-authority/30UN,Regeneration,Economic Regeneration,485A,Annuals for visitleyland site.,18/05/2012,92110,"1,800.00",Revenue,NEW MIND INTERNET CONSULTANC,83328
South Ribble Council,http://statistics.data.gov.uk/doc/local-authority/30UN,Regeneration,Misc Capital Payments,C234,Fencing for Mill Street.,11/05/2012,91406,511.17,Capital,PRESTON FENCING,130363
South Ribble Council,http://statistics.data.gov.uk/doc/local-authority/30UN,Healthy Communities,Grants and Subscriptions,4741,annual support grant 2012/13,23/05/2012,92405,"19,052.96",Revenue,SOUTH RIBBLE COMMUNITY LEISUR,95002
South Ribble Council,http://statistics.data.gov.uk/doc/local-authority/30UN,Human Resources,Short Course,1402,12 Seminar Places - Environmental Health,09/05/2012,91410,"1,870.00",Revenue,AEA TECHNOLOGY,130440
South Ribble Council,http://statistics.data.gov.uk/doc/local-authority/30UN,Revenues,Bank Charges,4811,postoffice/pay point/ret chqs,09/05/2012,91477,"1,374.95",Revenue,ALLPAY LTD,122276
South Ribble Council,http://statistics.data.gov.uk/doc/local-authority/30UN,Revenues,Bank Charges,4811,webconnect mthly charge,09/05/2012,91477,33.01,Revenue,ALLPAY LTD,122276
South Ribble Council,http://statistics.data.gov.uk/doc/local-authority/30UN,Shared Financial Services,External Audit Fees,4512,bc grants 2011/12,18/05/2012,91632,62.00,Revenue,AUDIT COMMISSION,6075
South Ribble Council,http://statistics.data.gov.uk/doc/local-authority/30UN,Shared Financial Services,External Audit Fees,4512,fee instalment 11 of 12,18/05/2012,91632,"8,009.00",Revenue,AUDIT COMMISSION,6075
South Ribble Council,http://statistics.data.gov.uk/doc/local-authority/30UN,Information Services,Cap Contract Payment,C230,Annual billing for GSi Convergence Framework,02/05/2012,91202,"1,800.25",Capital,CABLE & WIRELESS,114381
South Ribble Council,http://statistics.data.gov.uk/doc/local-authority/30UN,Information Services,Telecomms- Switchboard,4269,"ISDN lines, various line rentals and call charges April 2012 - March 2013",11/05/2012,91465,"1,459.74",Revenue,CABLE & WIRELESS,114381
South Ribble Council,http://statistics.data.gov.uk/doc/local-authority/30UN,Information Services,Network Support,4247,"Moss Side link, internet & router April 2012 - March 2013",11/05/2012,91533,"1,664.00",Revenue,CABLE & WIRELESS,114381
South Ribble Council,http://statistics.data.gov.uk/doc/local-authority/30UN,Information Services,Cap Contract Payment,C230,Annual billing for GSi Convergence Framework,25/05/2012,92411,999.00,Capital,CABLE & WIRELESS,114381
South Ribble Council,http://statistics.data.gov.uk/doc/local-authority/30UN,Human Resources,Corporate,1405,providing support to employee,16/05/2012,92096,600.00,Revenue,CAREER EVOLUTION LTD,130259
South Ribble Council,http://statistics.data.gov.uk/doc/local-authority/30UN,Benefits,External Contractors Charges,4570,Shared Service Salary Charge - Keith Parkinson - August 2011 to March 2012.,02/05/2012,91278,"11,100.80",Revenue,CHORLEY BOROUGH COUNCIL,17352
South Ribble Council,http://statistics.data.gov.uk/doc/local-authority/30UN,Human Resources,College Course,1403,IIA DIPLOMA IN INTERNAL AUDIT PRACTICEnOVEMBER 2011 - NOVEMBER 2012,09/05/2012,91181,"1,125.00",Revenue,CIIA (CHARTERED INST OF INT AUDI,24934
South Ribble Council,http://statistics.data.gov.uk/doc/local-authority/30UN,Legal,Other Fees,4520,CRB Checks x 14 @ 44.00 (D Millband -  C Calder),23/05/2012,91505,616.00,Revenue,CRIMINAL RECORDS BUREAU,61984
South Ribble Council,http://statistics.data.gov.uk/doc/local-authority/30UN,Property Services,Fixtures and Fittings,2611,"2012 / 2013 annual contract for maintenance of Moveable doors at the Civic Centre, Leyland",09/05/2012,91537,"1,274.00",Revenue,DORMA UK LTD,103305
South Ribble Council,http://statistics.data.gov.uk/doc/local-authority/30UN,Information Services,Misc Capital Payments,C234,"Civica & Telephonetics Integration 3000 per annum up to 31 March 2014, total 9000",02/05/2012,86012,"3,000.00",Capital,FIRMSTEP,114022
South Ribble Council,http://statistics.data.gov.uk/doc/local-authority/30UN,Information Services,Applications Systems,4248,Annual Licence 01/04/12 - 31/03/13,02/05/2012,86012,"17,400.00",Revenue,FIRMSTEP,114022
South Ribble Council,http://statistics.data.gov.uk/doc/local-authority/30UN,Revenues,Sals - Agency Staff,1121,Agency Staff - REDACTED Period engaged - 1.4.12 to 30.9.12,02/05/2012,91280,600.00,Revenue,GRADEWELL LIMITED,130411
South Ribble Council,http://statistics.data.gov.uk/doc/local-authority/30UN,Revenues,Sals - Agency Staff,1121,Agency Staff - REDACTED Period engaged - 1.4.12 to 30.9.12,16/05/2012,91623,600.00,Revenue,GRADEWELL LIMITED,130411
South Ribble Council,http://statistics.data.gov.uk/doc/local-authority/30UN,Revenues,Sals - Agency Staff,1121,Agency Staff - REDACTED Period engaged - 1.4.12 to 30.9.12,16/05/2012,91631,517.50,Revenue,GRADEWELL LIMITED,130411
South Ribble Council,http://statistics.data.gov.uk/doc/local-authority/30UN,Revenues,Sals - Agency Staff,1121,Agency Staff - REDACTED Period engaged - 1.4.12 to 30.9.12,23/05/2012,92462,630.00,Revenue,GRADEWELL LIMITED,130411
South Ribble Council,http://statistics.data.gov.uk/doc/local-authority/30UN,Democratic Services,Electoral Administration Act,4970,annual support for EROS + for VDF lic with connectivity kit (10users).  annual support 1/06 to 31/05/13,11/05/2012,91543,"5,765.80",Revenue,HALAROSE LTD,24358
South Ribble Council,http://statistics.data.gov.uk/doc/local-authority/30UN,Community Engagement1,Public Relations Strategy,4848,"SUMMER EDITION OF THE SRBC EVENTS GUIDE DESIGN, PRINT AND SUPPLY 6000 COPIES",02/05/2012,85500,"1,116.00",Revenue,HASLAM PRINTERS LTD,101608
South Ribble Council,http://statistics.data.gov.uk/doc/local-authority/30UN,Shared Financial Services,Conference Hotel Accomodation,2403,Credit Charges Hotel Accom,17/05/2012,92151,802.50,Revenue,HSBC Bank plc,130459
South Ribble Council,http://statistics.data.gov.uk/doc/local-authority/30UN,Shared Financial Services,Rail,3411,Credit Card Virgin trains,17/05/2012,92151,166.30,Revenue,HSBC Bank plc,130459
South Ribble Council,http://statistics.data.gov.uk/doc/local-authority/30UN,Shared Financial Services,Rail,3411,Credit Card Virgin,17/05/2012,92151,36.00,Revenue,HSBC Bank plc,130459
South Ribble Council,http://statistics.data.gov.uk/doc/local-authority/30UN,Shared Financial Services,Court Fees,4822,Credit Card Courts,17/05/2012,92152,"2,133.00",Revenue,HSBC Bank plc,130459
South Ribble Council,http://statistics.data.gov.uk/doc/local-authority/30UN,Information Services,Software Licensing,4243,Enterprise Agreement - 2nd year annual payment OfficeProPlus ALNG SA MVL,04/05/2012,91226,"19,087.50",Revenue,INSIGHT UK,120744
South Ribble Council,http://statistics.data.gov.uk/doc/local-authority/30UN,Information Services,Software Licensing,4243,WinPro ALNG UpgrdSAPk MVL Wmdop,04/05/2012,91226,"10,226.25",Revenue,INSIGHT UK,120744
South Ribble Council,http://statistics.data.gov.uk/doc/local-authority/30UN,Information Services,External Contractors Charges,4570,Network consultant on site to assess current network infrastructure and advise on best practice for upgrade,25/05/2012,92415,850.00,Revenue,INTRINSIC TECHNOLOGY LTD,130439
South Ribble Council,http://statistics.data.gov.uk/doc/local-authority/30UN,Property Services,Sals - Agency Staff,1121,2012 / 2013 Consulatancy fees,09/05/2012,91547,"1,005.86",Revenue,K J PROPERTY CONSULTANCY (LAN,100816
South Ribble Council,http://statistics.data.gov.uk/doc/local-authority/30UN,Scrutiny,Corp Subs to Professional Bodies,4720,LGA SUBSCRIPTIONS 2012/13,18/05/2012,85491,"10,725.00",Revenue,LGA (LOCAL GOVERNMENT ASSOCIA,42851
South Ribble Council,http://statistics.data.gov.uk/doc/local-authority/30UN,Revenues,Sals - Agency Staff,1121,Agency Staff - REDACTED Period engaged - 1.4.12 to 30.6.12,02/05/2012,91203,779.00,Revenue,MORGAN HUNT PUBLIC SECTOR LTD,120401
South Ribble Council,http://statistics.data.gov.uk/doc/local-authority/30UN,Revenues,Sals - Agency Staff,1121,Agency Staff - REDACTED Period engaged - 1.4.12 to 30.6.12,09/05/2012,91480,703.00,Revenue,MORGAN HUNT PUBLIC SECTOR LTD,120401
South Ribble Council,http://statistics.data.gov.uk/doc/local-authority/30UN,Revenues,Sals - Agency Staff,1121,Agency Staff - REDACTED Period engaged - 1.4.12 to 30.6.12,16/05/2012,91624,703.00,Revenue,MORGAN HUNT PUBLIC SECTOR LTD,120401
South Ribble Council,http://statistics.data.gov.uk/doc/local-authority/30UN,Benefits,Sals - Agency Staff,1121,REDACTED - period engaged 8.5.12 to 15.6.12,18/05/2012,92117,775.50,Revenue,MORGAN HUNT PUBLIC SECTOR LTD,120401
South Ribble Council,http://statistics.data.gov.uk/doc/local-authority/30UN,Benefits,Sals - Agency Staff,1121,REDACTED - period engaged 8.5.12 to 15.6.12,18/05/2012,92118,803.00,Revenue,MORGAN HUNT PUBLIC SECTOR LTD,120401
South Ribble Council,http://statistics.data.gov.uk/doc/local-authority/30UN,Revenues,Sals - Agency Staff,1121,Agency Staff - REDACTED Period engaged - 1.4.12 to 30.6.12,18/05/2012,92119,703.00,Revenue,MORGAN HUNT PUBLIC SECTOR LTD,120401
South Ribble Council,http://statistics.data.gov.uk/doc/local-authority/30UN,Benefits,Sals - Agency Staff,1121,REDACTED - period engaged 8.5.12 to 15.6.12,25/05/2012,92486,836.00,Revenue,MORGAN HUNT PUBLIC SECTOR LTD,120401
South Ribble Council,http://statistics.data.gov.uk/doc/local-authority/30UN,Revenues,Sals - Agency Staff,1121,Agency Staff - REDACTED Period engaged - 1.4.12 to 30.6.12,25/05/2012,92487,703.00,Revenue,MORGAN HUNT PUBLIC SECTOR LTD,120401
South Ribble Council,http://statistics.data.gov.uk/doc/local-authority/30UN,Benefits,Sals - Agency Staff,1121,REDACTED - period engaged 8.5.12 to 15.6.12,25/05/2012,92488,792.00,Revenue,MORGAN HUNT PUBLIC SECTOR LTD,120401
South Ribble Council,http://statistics.data.gov.uk/doc/local-authority/30UN,Information Services,Network Support,4247,HP 640GB Multi Level Cell PCle ioDrive Duo for Servers with 1 week sale or return,02/05/2012,91284,"2,750.00",Revenue,MYPREMIER LTD,130091
South Ribble Council,http://statistics.data.gov.uk/doc/local-authority/30UN,Information Services,Network Support,4247,Delivery,02/05/2012,91284,10.00,Revenue,MYPREMIER LTD,130091
South Ribble Council,http://statistics.data.gov.uk/doc/local-authority/30UN,Human Resources,Members,1406,APPEALS TRAINING FOR CLLRS - 10 APRIL 2012,09/05/2012,91189,517.90,Revenue,N WEST LOCAL AUTH EMPLOYERS O,29829
South Ribble Council,http://statistics.data.gov.uk/doc/local-authority/30UN,Human Resources,Corporate,1405,7 MARCH MANAGING ATTENDNACE - SOPHIE HARRISON,09/05/2012,91408,580.50,Revenue,N WEST LOCAL AUTH EMPLOYERS O,29829
South Ribble Council,http://statistics.data.gov.uk/doc/local-authority/30UN,Human Resources,Corporate,1405,21 MARCH RECRUITMENT & SELECTION - JUDY HINDS,09/05/2012,91409,555.30,Revenue,N WEST LOCAL AUTH EMPLOYERS O,29829
South Ribble Council,http://statistics.data.gov.uk/doc/local-authority/30UN,Legal,Operational Equip & Tools,4010,200 MOGO Licence Plate Set  (Printed & Clear) - Private Hire - Rear,11/05/2012,91229,996.00,Revenue,NEWAUTO LTD T/A MOGO (UK),81566
South Ribble Council,http://statistics.data.gov.uk/doc/local-authority/30UN,Legal,Operational Equip & Tools,4010,200 MOGO Licence Plate Set (Printed & Clear) - Hackney Carriage - Rear,11/05/2012,91229,996.00,Revenue,NEWAUTO LTD T/A MOGO (UK),81566
South Ribble Council,http://statistics.data.gov.uk/doc/local-authority/30UN,Legal,Operational Equip & Tools,4010,100 MOGO Licence Plate Set (Printed & Clear) - Hackney Carriage - Small FX4,11/05/2012,91229,498.00,Revenue,NEWAUTO LTD T/A MOGO (UK),81566
South Ribble Council,http://statistics.data.gov.uk/doc/local-authority/30UN,Legal,Operational Equip & Tools,4010,POSTAGE & PACKING,11/05/2012,91229,19.90,Revenue,NEWAUTO LTD T/A MOGO (UK),81566
South Ribble Council,http://statistics.data.gov.uk/doc/local-authority/30UN,Housing,Corp Subs to Professional Bodies,4720,membership fees 1/4/2012 to 31/3/2013,02/05/2012,91232,885.00,Revenue,NORTHERN HOUSING CONSORTIUM,46747
South Ribble Council,http://statistics.data.gov.uk/doc/local-authority/30UN,Information Services,Network Support,4247,Xerox Phaser 4400 High capacity print cartridge,16/05/2012,91589,460.20,Revenue,PENKETHS LTD T/A THOMAS COMPU,37057
South Ribble Council,http://statistics.data.gov.uk/doc/local-authority/30UN,Information Services,Network Support,4247,Xerox Phaser 4500 black toner,16/05/2012,91589,112.90,Revenue,PENKETHS LTD T/A THOMAS COMPU,37057
South Ribble Council,http://statistics.data.gov.uk/doc/local-authority/30UN,Information Services,Network Support,4247,Converse 2200 Telephones Black BT30437,25/05/2012,92078,508.65,Revenue,PHILLIPS BUSINESS SOLUTIONS,32214
South Ribble Council,http://statistics.data.gov.uk/doc/local-authority/30UN,Information Services,Business Continuity,4245,Disaster Recovery Services 01/07/12-30/09/12,23/05/2012,92104,"2,282.50",Revenue,PHOENIX (FORMERLY ICM),97220
South Ribble Council,http://statistics.data.gov.uk/doc/local-authority/30UN,Property Services,Sals - Agency Staff,1121,Professional Services in Property Services April 2012 -September 2012,09/05/2012,91310,"2,911.00",Revenue,ROGER HANDSCOMBE FRICS CHART,104634
South Ribble Council,http://statistics.data.gov.uk/doc/local-authority/30UN,Revenues,Postage General,4291,Revenues Postage - quarter one,16/05/2012,92089,863.81,Revenue,TNT POST NORTH LTD,119629
South Ribble Council,http://statistics.data.gov.uk/doc/local-authority/30UN,Revenues,Postage General,4291,Revenues Postage - quarter one,23/05/2012,92431,545.09,Revenue,TNT POST NORTH LTD,119629
South Ribble Council,http://statistics.data.gov.uk/doc/local-authority/30UN,Revenues,Postage General,4291,hand sorted,23/05/2012,92431,2.29,Revenue,TNT POST NORTH LTD,119629
South Ribble Council,http://statistics.data.gov.uk/doc/local-authority/30UN,Property Services,Water Charges(Metered),2511,14/2/12 to 30/4/12,11/05/2012,91405,"2,205.27",Revenue,UNITED UTILITIES WATER PLC,29845
South Ribble Council,http://statistics.data.gov.uk/doc/local-authority/30UN,Property Services,Alarm Service Contract,2035,"2012 / 2013 annual contract for CCTV maintenance at the Civic Centre, Leyland",09/05/2012,91239,"2,788.00",Revenue,VIDEO TEC LTD,79196
South Ribble Council,http://statistics.data.gov.uk/doc/local-authority/30UN,Information Services,Misc Capital Payments,C234,Galaxy S2 Smart phones,11/05/2012,91485,"4,400.00",Capital,VODAFONE CORPORATE LTD,48949
South Ribble Council,http://statistics.data.gov.uk/doc/local-authority/30UN,Policy,Community Bids,C305,comm bids fund grant,18/05/2012,92115,"1,750.00",Capital,WALMER BRIDGE VILLAGE HALL ASS,130119
South Ribble Council,http://statistics.data.gov.uk/doc/local-authority/30UN,Property Services,Planned Repair & Maintenance,2021,2012 / 2013 annual contract for quarterly servicing of Water Boilers,02/05/2012,85553,960.91,Revenue,ZIP HEATERS (UK) LTD,68259
South Ribble Council,http://statistics.data.gov.uk/doc/local-authority/30UN,Property Services,Rep & Maint Fixed Plant,2035,2012 / 2013 annual contract for maintenance of intruder alarms at the Civic Centre,01/06/2012,92508,"2,697.47",Revenue,CHUBB ELECTRONIC SECURITY SYS,90625
South Ribble Council,http://statistics.data.gov.uk/doc/local-authority/30UN,Property Services,Rep & Maint Fixed Plant,2034,"2012 / 2013 annual contract for maintenance of intruder alarms at the Muesum, Leyland",01/06/2012,92509,715.98,Revenue,CHUBB ELECTRONIC SECURITY SYS,90625
South Ribble Council,http://statistics.data.gov.uk/doc/local-authority/30UN,Property Services,Rep & Maint Premises,2021,"2012 / 2013 annual contract for intruder alarms at the Derby wing & theatre at Worden Arts Centre, Leyland",01/06/2012,92510,699.27,Revenue,CHUBB ELECTRONIC SECURITY SYS,90625
South Ribble Council,http://statistics.data.gov.uk/doc/local-authority/30UN,Property Services,Rep & Maint Fixed Plant,2035,2012 / 2013 annual contract for Intruder alarm maintenance at Moss Side Depot,01/06/2012,92511,"1,775.23",Revenue,CHUBB ELECTRONIC SECURITY SYS,90625
South Ribble Council,http://statistics.data.gov.uk/doc/local-authority/30UN,Area 2 - Waste & Transport/Eastern & Central Teams,Waste Disposal Charges,5110,SUBSISTENCE CHARGES IN RESPECT OF PERMIT SP3897CV/A001 FOR 01/04/2012 - 31/03/2013,01/06/2012,85473,"1,833.50",Revenue,ENVIRONMENT AGENCY,9755
South Ribble Council,http://statistics.data.gov.uk/doc/local-authority/30UN,Housing,Equipment,C280,"Repairs Grant for full rewire at REDACTED, Leyland.",01/06/2012,97414,890.00,Capital,REDACTED,130376
South Ribble Council,http://statistics.data.gov.uk/doc/local-authority/30UN,Property Services,Rep & Maint Premises,2020,"Please supply materials & labour to install 3 water mains Station Road, Bamber Bridge",01/06/2012,97443,"1,150.00",Revenue,FLO TEC,95468
South Ribble Council,http://statistics.data.gov.uk/doc/local-authority/30UN,Area 1 - Penwortham & Western Parishes,Materials General,4040,1X ST JOHNS GREEN (SRBC SPEC GALVANISED A FRAME WHITE LETTERING ON BLUE PLATE),01/06/2012,92518,46.20,Revenue,G & G SIGNS,28273
South Ribble Council,http://statistics.data.gov.uk/doc/local-authority/30UN,Area 1 - Penwortham & Western Parishes,Materials General,4040,2X EARNSHAW DRIVE  (SRBC SPEC GALVANISED A FRAME WHITE LETTERING ON BLUE PLATE),01/06/2012,92518,94.88,Revenue,G & G SIGNS,28273
South Ribble Council,http://statistics.data.gov.uk/doc/local-authority/30UN,Area 1 - Penwortham & Western Parishes,Materials General,4040,1X OLD SCHOOL CLOSE  (SRBC SPEC GALVANISED A FRAME WHITE LETTERING ON BLUE PLATE),01/06/2012,92518,48.68,Revenue,G & G SIGNS,28273
South Ribble Council,http://statistics.data.gov.uk/doc/local-authority/30UN,Area 1 - Penwortham & Western Parishes,Materials General,4040,2X LARCHWOOD  (SRBC SPEC GALVANISED A FRAME WHITE LETTERING ON BLUE PLATE),01/06/2012,92518,84.96,Revenue,G & G SIGNS,28273
South Ribble Council,http://statistics.data.gov.uk/doc/local-authority/30UN,Area 1 - Penwortham & Western Parishes,Materials General,4040,1X HAWKHURST ROAD T  (SRBC SPEC GALVANISED A FRAME WHITE LETTERING ON BLUE PLATE),01/06/2012,92518,53.38,Revenue,G & G SIGNS,28273
South Ribble Council,http://statistics.data.gov.uk/doc/local-authority/30UN,Area 1 - Penwortham & Western Parishes,Materials General,4040,3X HAWKHURST ROAD  (SRBC SPEC GALVANISED A FRAME WHITE LETTERING ON BLUE PLATE),01/06/2012,92518,142.32,Revenue,G & G SIGNS,28273
South Ribble Council,http://statistics.data.gov.uk/doc/local-authority/30UN,Area 1 - Penwortham & Western Parishes,Materials General,4040,CARRIAGE CHARGE,01/06/2012,92518,47.52,Revenue,G & G SIGNS,28273
South Ribble Council,http://statistics.data.gov.uk/doc/local-authority/30UN,Housing,Contractors Charges 5,5311,Block order for placements,01/06/2012,92156,763.00,Revenue,REDACTED HOTEL,99147
South Ribble Council,http://statistics.data.gov.uk/doc/local-authority/30UN,Housing,Contractors Charges 5,5311,Block order for placements,01/06/2012,92157,752.00,Revenue,REDACTED HOTEL,99147
South Ribble Council,http://statistics.data.gov.uk/doc/local-authority/30UN,Housing,Contractors Charges 5,5311,Block order for placements,01/06/2012,92160,"1,443.00",Revenue,REDACTED HOTEL,99147
South Ribble Council,http://statistics.data.gov.uk/doc/local-authority/30UN,Housing,Contractors Charges 5,5311,Block order for placements,01/06/2012,92161,624.00,Revenue,REDACTED HOTEL,99147
South Ribble Council,http://statistics.data.gov.uk/doc/local-authority/30UN,Housing,Contractors Charges 5,5311,Block order for placements,01/06/2012,92162,"1,014.00",Revenue,REDACTED HOTEL,99147
South Ribble Council,http://statistics.data.gov.uk/doc/local-authority/30UN,Housing,Contractors Charges 5,5311,Block order for placements,01/06/2012,92164,"1,170.00",Revenue,REDACTED HOTEL,99147
South Ribble Council,http://statistics.data.gov.uk/doc/local-authority/30UN,Area 3 - Parks/Leyland East & West,Materials General,4046,JUBILEE INSTAPLANT CARPET BED 4.2m x 4.4m SHIELD SHAPE (AS PER QUOTATION Q81 DATED 2.2.12),01/06/2012,97470,"2,350.00",Revenue,KERNOCK PARK PLANTS,81304
South Ribble Council,http://statistics.data.gov.uk/doc/local-authority/30UN,Area 2 - Waste & Transport/Eastern & Central Teams,Contractors Charges 5,5412,"Quarter 3 disposal fee, landfill tax & 5% admin fee",01/06/2012,97481,"36,433.08",Revenue,LANCS COUNTY COUNCIL,41645
South Ribble Council,http://statistics.data.gov.uk/doc/local-authority/30UN,Area 2 - Waste & Transport/Eastern & Central Teams,External Contractors Charges,4570,LOLER INSPECTION - VM51269 - PN57 NXX,01/06/2012,97484,59.50,Revenue,MUNICIPAL VEHICLE INSPECTION SE,96645
South Ribble Council,http://statistics.data.gov.uk/doc/local-authority/30UN,Area 2 - Waste & Transport/Eastern & Central Teams,External Contractors Charges,4570,LOLER INSPECTION - VM51270 - VK09 AHJ - BC,01/06/2012,97484,119.00,Revenue,MUNICIPAL VEHICLE INSPECTION SE,96645
South Ribble Council,http://statistics.data.gov.uk/doc/local-authority/30UN,Area 2 - Waste & Transport/Eastern & Central Teams,External Contractors Charges,4570,LOLER INSPECTION - VM51271 - VN58 GFU - BC,01/06/2012,97484,119.00,Revenue,MUNICIPAL VEHICLE INSPECTION SE,96645
South Ribble Council,http://statistics.data.gov.uk/doc/local-authority/30UN,Area 2 - Waste & Transport/Eastern & Central Teams,External Contractors Charges,4570,LOLER INSPECTION - VM51272 - VN58 GFV - BC,01/06/2012,97484,119.00,Revenue,MUNICIPAL VEHICLE INSPECTION SE,96645
South Ribble Council,http://statistics.data.gov.uk/doc/local-authority/30UN,Area 2 - Waste & Transport/Eastern & Central Teams,External Contractors Charges,4570,LOLER INSPECTION - VM51273 - VN58 GFX - BC,01/06/2012,97484,119.00,Revenue,MUNICIPAL VEHICLE INSPECTION SE,96645
South Ribble Council,http://statistics.data.gov.uk/doc/local-authority/30UN,Area 2 - Waste & Transport/Eastern & Central Teams,External Contractors Charges,4570,LOLER INSPECTION - VM51274 - VN10 DKL - BC,01/06/2012,97484,59.50,Revenue,MUNICIPAL VEHICLE INSPECTION SE,96645
South Ribble Council,http://statistics.data.gov.uk/doc/local-authority/30UN,Area 2 - Waste & Transport/Eastern & Central Teams,External Contractors Charges,4570,LOLER INSPECTION - VM51275 - VX55 CNA - BC,01/06/2012,97484,59.50,Revenue,MUNICIPAL VEHICLE INSPECTION SE,96645
South Ribble Council,http://statistics.data.gov.uk/doc/local-authority/30UN,Area 1 - Penwortham & Western Parishes,Professional Fees,4514,DEPLOYMENT OF OFFICERS APRIL 2012,01/06/2012,92111,"1,095.92",Revenue,NSL LTD,116868
South Ribble Council,http://statistics.data.gov.uk/doc/local-authority/30UN,Area 1 - Penwortham & Western Parishes,Other Misc,4855,CASH COLLECTION APRIL 2012,01/06/2012,92111,230.30,Revenue,NSL LTD,116868
South Ribble Council,http://statistics.data.gov.uk/doc/local-authority/30UN,Information Services,Peripherals,4245,Disaster Recovery Services for period 01/04/12-30/06/12,01/06/2012,97467,"2,282.50",Revenue,PHOENIX (FORMERLY ICM),97220
South Ribble Council,http://statistics.data.gov.uk/doc/local-authority/30UN,Shared Financial Services,Balance Sheet,30,May - 12 deductions,01/06/2012,97431,"1,980.00",Revenue,SOUTH RIBBLE CONSERVATIVE FUN,119483
South Ribble Council,http://statistics.data.gov.uk/doc/local-authority/30UN,Area 2 - Waste & Transport/Eastern & Central Teams,Operational Furniture & Equip,4010,2 Husquvana 21`` Push mowers,06/06/2012,92172,950.00,Revenue,GIBSONS GARDEN MACHINERY LTD,59051
South Ribble Council,http://statistics.data.gov.uk/doc/local-authority/30UN,Housing,Contractors Charges 5,5311,Block order for placements,06/06/2012,97478,"2,160.00",Revenue,REDACTED HOTEL,99147
South Ribble Council,http://statistics.data.gov.uk/doc/local-authority/30UN,Healthy Communities,Consultancy Fees,4536,Repairs and Maintenance Fee.,06/06/2012,91436,"13,944.00",Revenue,SERCO LEISURE (OP) LTD,94906
South Ribble Council,http://statistics.data.gov.uk/doc/local-authority/30UN,Healthy Communities,Consultancy Fees,4536,Repairs and Maintenance Fee.,06/06/2012,92507,"13,944.00",Revenue,SERCO LEISURE (OP) LTD,94906
South Ribble Council,http://statistics.data.gov.uk/doc/local-authority/30UN,Healthy Communities,Capital Expenditure,C230,`Enabing  Works` at Bamber Bridge Leisure Centre. (Asbestos Survey to the former Creche area),06/06/2012,92532,729.75,Capital,SERCO LEISURE (OP) LTD,94906
South Ribble Council,http://statistics.data.gov.uk/doc/local-authority/30UN,Healthy Communities,Consultancy Fees,4532,Leisure Services Fee.,06/06/2012,86039,"29,813.51",Revenue,SOUTH RIBBLE COMMUNITY LEISUR,94210
South Ribble Council,http://statistics.data.gov.uk/doc/local-authority/30UN,Healthy Communities,Consultancy Fees,4532,Leisure Services Fee.,06/06/2012,92025,"29,813.51",Revenue,SOUTH RIBBLE COMMUNITY LEISUR,94210
South Ribble Council,http://statistics.data.gov.uk/doc/local-authority/30UN,Human Resources,Balance Sheet,30,CHILDCARE VOUCHERS APRIL 2012 - MARCH 2013,08/06/2012,97654,"1,677.00",Revenue,COMPUTERSHARE VOUCHER SERVI,116499
South Ribble Council,http://statistics.data.gov.uk/doc/local-authority/30UN,Property Services,Rep & Maint Premises,2020,Carry out energy performance cert. on EPC x 2 at Civic Centre & Worden Park Properties also DEC renewal,08/06/2012,97663,"1,800.00",Revenue,ENERGY TEAM,108999
South Ribble Council,http://statistics.data.gov.uk/doc/local-authority/30UN,Property Services,Rep & Maint Premises,2020,Carry out energy performance cert. on EPC x 2 at Civic Centre & Worden Park Properties also DEC renewal,08/06/2012,97664,"1,050.00",Revenue,ENERGY TEAM,108999
South Ribble Council,http://statistics.data.gov.uk/doc/local-authority/30UN,Human Resources,Training Expense-Course Fees,1405,12 month contract 1st June  2012 - 31 May 2013,08/06/2012,97655,"2,500.00",Revenue,JOBSGOPUBLIC,40358
South Ribble Council,http://statistics.data.gov.uk/doc/local-authority/30UN,Healthy Communities,Provisions,4311,supply of beer and wine to civic bars on 240512,08/06/2012,97573,532.24,Revenue,MATTHEW CLARK WHOLESALE LTD,47720
South Ribble Council,http://statistics.data.gov.uk/doc/local-authority/30UN,Housing,Equipment,C280,REDACTED Repair grant reference SRS1723294 to replace boiler.,08/06/2012,97581,775.00,Capital,REDACTED,130450
South Ribble Council,http://statistics.data.gov.uk/doc/local-authority/30UN,Housing,Equipment,C280,REDACTED PR25 4XX. Grant reference SRHS1607197 to replace boiler.,08/06/2012,97582,631.30,Capital,REDACTED,130419
South Ribble Council,http://statistics.data.gov.uk/doc/local-authority/30UN,Property Services,Rep & Maint Premises,2020,Please carry out work to change the VIR cables at the Civic Centre as per your quotation,08/06/2012,97603,637.00,Revenue,NOBBS & JONES LIMITED,130227
South Ribble Council,http://statistics.data.gov.uk/doc/local-authority/30UN,Healthy Communities,Operational Furniture & Equip,4013,service contract for tills 1 at worden bar and 2 at civic bars,08/06/2012,97575,584.00,Revenue,NORCASH LTD,30245
South Ribble Council,http://statistics.data.gov.uk/doc/local-authority/30UN,Healthy Communities,Operational Furniture & Equip,4013,service contract for tills 1 at worden bar and 2 at civic bars,08/06/2012,97575,292.00,Revenue,NORCASH LTD,30245
South Ribble Council,http://statistics.data.gov.uk/doc/local-authority/30UN,Area 3 - Parks/Leyland East & West,Materials General,4046,SUMMER BEDDING PLANTS AS PER ATTACHED LIST,08/06/2012,97649,"2,904.69",Revenue,PENTLAND PLANTS LTD,101420
South Ribble Council,http://statistics.data.gov.uk/doc/local-authority/30UN,Property Services,Rep & Maint Premises,2020,LABOUR - carry out the work at Tennis Centre. install for LCC as per your quotation. To be recharged to LCC,08/06/2012,97589,864.00,Revenue,RED ROSE BUILDING MAINTENANCE,85410
South Ribble Council,http://statistics.data.gov.uk/doc/local-authority/30UN,Property Services,Rep & Maint Premises,2020,materials,08/06/2012,97589,508.00,Revenue,RED ROSE BUILDING MAINTENANCE,85410
South Ribble Council,http://statistics.data.gov.uk/doc/local-authority/30UN,Neighbourhood Admin & Support,Vehicle Running Costs,3134,GAS OIL (LITRES),08/06/2012,97625,"1,299.00",Revenue,SAMUEL COOKE & CO LTD,98449
South Ribble Council,http://statistics.data.gov.uk/doc/local-authority/30UN,Neighbourhood Admin & Support,Vehicle Running Costs,3132,DIESEL (LITRES),08/06/2012,97626,"13,312.89",Revenue,SAMUEL COOKE & CO LTD,98449
South Ribble Council,http://statistics.data.gov.uk/doc/local-authority/30UN,Human Resources,Training Expense-Course Fees,1420,1 PLACE MIKE NUTTALL - CHIEF EXECUTIVE CURRENT PRACTICE MEETING 1 & 2 MAY,08/06/2012,97657,586.27,Revenue,SOLACE,39990
South Ribble Council,http://statistics.data.gov.uk/doc/local-authority/30UN,Healthy Communities,Balance Sheet,140,dd`s collected for may,08/06/2012,97645,"14,958.43",Revenue,SOUTH RIBBLE COMMUNITY LEISUR,94210
South Ribble Council,http://statistics.data.gov.uk/doc/local-authority/30UN,Healthy Communities,Provisions,4310,supply of fresh vegetables for the two weeks 110512,08/06/2012,97570,663.14,Revenue,THOMAS MOSS,110550
South Ribble Council,http://statistics.data.gov.uk/doc/local-authority/30UN,Information Services,Peripherals,4260,Annual purchase order for mobile phones April 2012 - March 2013,08/06/2012,97594,"4,573.56",Revenue,VODAFONE CORPORATE LTD,48949
South Ribble Council,http://statistics.data.gov.uk/doc/local-authority/30UN,Information Services,Peripherals,4260,,08/06/2012,97594,1.21,Revenue,VODAFONE CORPORATE LTD,48949
South Ribble Council,http://statistics.data.gov.uk/doc/local-authority/30UN,Information Services,Peripherals,4260,Annual purchase order for mobile phones April 2012 - March 2013,08/06/2012,97595,727.12,Revenue,VODAFONE CORPORATE LTD,48949
South Ribble Council,http://statistics.data.gov.uk/doc/local-authority/30UN,Revenues,Financial,4811,webconnect mthly charge,13/06/2012,97644,33.01,Revenue,ALLPAY LTD,122276
South Ribble Council,http://statistics.data.gov.uk/doc/local-authority/30UN,Revenues,Financial,4811,post office & pay point transactions,13/06/2012,97644,"1,488.25",Revenue,ALLPAY LTD,122276
South Ribble Council,http://statistics.data.gov.uk/doc/local-authority/30UN,Property Services,Rep & Maint Premises,2021,"2012 / 2013 annual careplan contract for boiler & plant room maintenance at Civic Centre, Leyland",13/06/2012,98146,"3,987.23",Revenue,BRITISH GAS SERVICES (COMMERCI,16214
South Ribble Council,http://statistics.data.gov.uk/doc/local-authority/30UN,Property Services,Rep & Maint Premises,2021,2012 / 2013 annual careplan contract for boiler & plant room maintenance at Moss Side Depot,13/06/2012,98150,980.57,Revenue,BRITISH GAS SERVICES (COMMERCI,16214
South Ribble Council,http://statistics.data.gov.uk/doc/local-authority/30UN,Property Services,Rep & Maint Premises,2021,2012 / 2013 annual careplan contract for boiler & plant room maintenance at Moss Side Depot,13/06/2012,98151,680.65,Revenue,BRITISH GAS SERVICES (COMMERCI,16214
South Ribble Council,http://statistics.data.gov.uk/doc/local-authority/30UN,Information Services,Peripherals,4269,"ISDN lines, various line rentals and call charges April 2012 - March 2013",13/06/2012,97651,"1,442.87",Revenue,CABLE & WIRELESS,114381
South Ribble Council,http://statistics.data.gov.uk/doc/local-authority/30UN,Information Services,Peripherals,4248,"EDM & Workflow - Licence, Support & Maintenance 01/07/12 - 30/06/13",13/06/2012,97463,"12,982.00",Revenue,CIVICA UK LTD,102717
South Ribble Council,http://statistics.data.gov.uk/doc/local-authority/30UN,Area 2 - Waste & Transport/Eastern & Central Teams,Materials General,4040,"1 TANK, 2 STRAPS - VX55 CNE - VM51544 - GA",13/06/2012,97722,663.46,Revenue,DENNIS EAGLE LTD,19774
South Ribble Council,http://statistics.data.gov.uk/doc/local-authority/30UN,Property Services,Energy Costs,2303,charges 13/08/07 to 20/5/08,13/06/2012,97728,"1,084.94",Revenue,E.ON ENERGY,84356
South Ribble Council,http://statistics.data.gov.uk/doc/local-authority/30UN,Area 2 - Waste & Transport/Eastern & Central Teams,External Contractors Charges,4570,DOMESTIC COLLECTIONS 1.5.12 - 31.5.12,13/06/2012,98119,"81,083.43",Revenue,ENTERPRISE,26408
South Ribble Council,http://statistics.data.gov.uk/doc/local-authority/30UN,Area 2 - Waste & Transport/Eastern & Central Teams,External Contractors Charges,4570,COMMERCIAL COLLECTIONS 1.5.12 - 31.5.12,13/06/2012,98119,"6,296.13",Revenue,ENTERPRISE,26408
South Ribble Council,http://statistics.data.gov.uk/doc/local-authority/30UN,Area 2 - Waste & Transport/Eastern & Central Teams,External Contractors Charges,4570,FOOD WASTE COLLECTIONS 1.5.12 - 31.5.12,13/06/2012,98119,"6,003.07",Revenue,ENTERPRISE,26408
South Ribble Council,http://statistics.data.gov.uk/doc/local-authority/30UN,Area 2 - Waste & Transport/Eastern & Central Teams,External Contractors Charges,4570,DRY RECYCLABLE COLLECTIONS 1.5.12 - 31.5.12,13/06/2012,98119,"67,387.38",Revenue,ENTERPRISE,26408
South Ribble Council,http://statistics.data.gov.uk/doc/local-authority/30UN,Area 2 - Waste & Transport/Eastern & Central Teams,External Contractors Charges,4570,BULKY WASTE COLLECTIONS MAY 2012,13/06/2012,98135,"1,977.00",Revenue,EXSEL (INT) COMMUNITY INTEREST ,130150
South Ribble Council,http://statistics.data.gov.uk/doc/local-authority/30UN,Revenues,Agency Fees,1121,Agency Staff -REDACTED Period engaged - 1.4.12 to 30.9.12,13/06/2012,97468,630.00,Revenue,GRADEWELL LIMITED,130411
South Ribble Council,http://statistics.data.gov.uk/doc/local-authority/30UN,Neighbourhood Admin & Support,Materials General,4040,Corporate Workwear,13/06/2012,98154,"5,023.43",Revenue,GUARDSMAN LTD,130321
South Ribble Council,http://statistics.data.gov.uk/doc/local-authority/30UN,Information Services,Peripherals,4247,Supply and install horizontal cabling out of hours as per quote ref. 0032752,13/06/2012,98092,"1,553.37",Revenue,INS SUDLOWS LTD,2765
South Ribble Council,http://statistics.data.gov.uk/doc/local-authority/30UN,Area 3 - Parks/Leyland East & West,Grounds Maint Cntrctrs Chgs,4657,HIRE OF 1 TON MINI EXCAVATOR - ON HIRE 19.4.12 FOR APPROX 1 WEEKS HIRE,13/06/2012,97750,769.60,Revenue,K H HIRE SERVICES,12933
South Ribble Council,http://statistics.data.gov.uk/doc/local-authority/30UN,Regeneration,Other Misc,4851,South Ribble VCFS Network.,13/06/2012,92132,"1,775.00",Revenue,LANCASHIRE WEST CITIZENS ADVIC,17349
South Ribble Council,http://statistics.data.gov.uk/doc/local-authority/30UN,Regeneration,Operational Furniture & Equip,4010,Contribution to green partnership awards 2012/13,13/06/2012,97479,"1,000.00",Revenue,LANCS COUNTY COUNCIL,41645
South Ribble Council,http://statistics.data.gov.uk/doc/local-authority/30UN,Regeneration,Other Misc,4851,Contribution to Green Partnership Awars 2012/13.,13/06/2012,97480,"1,000.00",Revenue,LANCS COUNTY COUNCIL,41645
South Ribble Council,http://statistics.data.gov.uk/doc/local-authority/30UN,Housing,Equipment,C280,grant for replacement boiler,13/06/2012,97619,"1,000.00",Capital,REDACTED,130434
South Ribble Council,http://statistics.data.gov.uk/doc/local-authority/30UN,Housing,Equipment,C277,"Enforcement Grant reference 12/00071/HAWKDF for repairs to gable, front and rear walls at REDACTED",13/06/2012,85964,"2,750.40",Capital,NORTH STAR ESTATES LTD,130318
South Ribble Council,http://statistics.data.gov.uk/doc/local-authority/30UN,Area 3 - Parks/Leyland East & West,Grounds Maint Cntrctrs Chgs,4657,Supply and install wet pour surfacing at:- Hurst Grange Park - option 2 - overlay to whole area on climber.,13/06/2012,97453,"3,350.00",Revenue,PLAYGROUNDS UK LTD,120456
South Ribble Council,http://statistics.data.gov.uk/doc/local-authority/30UN,Area 3 - Parks/Leyland East & West,Grounds Maint Cntrctrs Chgs,4657,Moss Side - Area one and two together,13/06/2012,97453,"1,800.00",Revenue,PLAYGROUNDS UK LTD,120456
South Ribble Council,http://statistics.data.gov.uk/doc/local-authority/30UN,Area 3 - Parks/Leyland East & West,Grounds Maint Cntrctrs Chgs,4657,Seven Stars - cut back and install wet pour on roundabout.,13/06/2012,97453,"1,200.00",Revenue,PLAYGROUNDS UK LTD,120456
South Ribble Council,http://statistics.data.gov.uk/doc/local-authority/30UN,Area 2 - Waste & Transport/Eastern & Central Teams,Vehicle Running Costs,3137,raod tax,13/06/2012,98111,165.00,Revenue,POST OFFICE LTD,31354
South Ribble Council,http://statistics.data.gov.uk/doc/local-authority/30UN,Area 2 - Waste & Transport/Eastern & Central Teams,Vehicle Running Costs,3137,,13/06/2012,98111,215.00,Revenue,POST OFFICE LTD,31354
South Ribble Council,http://statistics.data.gov.uk/doc/local-authority/30UN,Area 2 - Waste & Transport/Eastern & Central Teams,Vehicle Running Costs,3137,,13/06/2012,98111,430.00,Revenue,POST OFFICE LTD,31354
South Ribble Council,http://statistics.data.gov.uk/doc/local-authority/30UN,Area 2 - Waste & Transport/Eastern & Central Teams,Vehicle Running Costs,3137,,13/06/2012,98111,215.00,Revenue,POST OFFICE LTD,31354
South Ribble Council,http://statistics.data.gov.uk/doc/local-authority/30UN,Area 2 - Waste & Transport/Eastern & Central Teams,Vehicle Running Costs,3137,,13/06/2012,98111,215.00,Revenue,POST OFFICE LTD,31354
South Ribble Council,http://statistics.data.gov.uk/doc/local-authority/30UN,Area 2 - Waste & Transport/Eastern & Central Teams,Vehicle Running Costs,3137,,13/06/2012,98111,"1,300.00",Revenue,POST OFFICE LTD,31354
South Ribble Council,http://statistics.data.gov.uk/doc/local-authority/30UN,Regeneration,Other Misc,485A,8 Metal Signs per Quote ref 1920.,13/06/2012,85427,"1,195.05",Revenue,PRYOR SIGN,109312
South Ribble Council,http://statistics.data.gov.uk/doc/local-authority/30UN,Property Services,Rep & Maint Premises,2020,property surveys. excavate main sewer - New Manhole cover,13/06/2012,98145,648.00,Revenue,RED ROSE BUILDING MAINTENANCE,85410
South Ribble Council,http://statistics.data.gov.uk/doc/local-authority/30UN,Property Services,Rep & Maint Premises,2020,materials,13/06/2012,98145,490.00,Revenue,RED ROSE BUILDING MAINTENANCE,85410
South Ribble Council,http://statistics.data.gov.uk/doc/local-authority/30UN,Information Services,Lease Rental Charges,4036,1/5/12 to 31/7/12,13/06/2012,97647,"1,484.57",Revenue,RICOH (UK) LTD,82976
South Ribble Council,http://statistics.data.gov.uk/doc/local-authority/30UN,Information Services,Lease Rental Charges,4036,1/2/12 to 30/4/12,13/06/2012,98113,601.74,Revenue,RICOH (UK) LTD,82976
South Ribble Council,http://statistics.data.gov.uk/doc/local-authority/30UN,Area 2 - Waste & Transport/Eastern & Central Teams,Contract Hire & Lease Costs,3212,HIRE OF MECHANICAL ROAD SWEEPER - ON HIRE 23.4.12 FOR 2 WEEKS HIRE,13/06/2012,91435,780.00,Revenue,RIVERSIDE TRUCK RENTAL LTD,77305
South Ribble Council,http://statistics.data.gov.uk/doc/local-authority/30UN,Area 2 - Waste & Transport/Eastern & Central Teams,Contract Hire & Lease Costs,3212,delivery charge/collection,13/06/2012,91435,100.00,Revenue,RIVERSIDE TRUCK RENTAL LTD,77305
South Ribble Council,http://statistics.data.gov.uk/doc/local-authority/30UN,Housing,Microfilming,4151,"Collection of 32 boxes of files from Anchor office in Bradford, image files onto disk and confidentially dispose",13/06/2012,97658,"1,350.00",Revenue,UK DOCUMENT IMAGING,111999
South Ribble Council,http://statistics.data.gov.uk/doc/local-authority/30UN,Area 1 - Penwortham & Western Parishes,External Contractors Charges,4570,Sign cleaning in SRBC - 2 WEEKS CLEANING WEEKS COMMENCING 14.5.12 AND 28.5.12,13/06/2012,97659,"1,400.00",Revenue,ULTRA CLEAN CONSERVATORIES,130034
South Ribble Council,http://statistics.data.gov.uk/doc/local-authority/30UN,Property Services,Rep & Maint Premises,2021,2012 / 2013 annual careplan contract for boiler & plant room maintenance at Leyland Market,15/06/2012,98158,"1,288.63",Revenue,BRITISH GAS SERVICES (COMMERCI,16214
South Ribble Council,http://statistics.data.gov.uk/doc/local-authority/30UN,Property Services,Rep & Maint Premises,2021,2012 / 2013 annual careplan contract for boiler & plant room maintenance at Holland House Farm Pavilion,15/06/2012,98159,642.72,Revenue,BRITISH GAS SERVICES (COMMERCI,16214
South Ribble Council,http://statistics.data.gov.uk/doc/local-authority/30UN,Property Services,Rep & Maint Premises,2020,"Please install a new gas supply into the 1st floor property at 63 Pope Lane, Penwortham PR1 9BY",15/06/2012,98197,"7,120.00",Revenue,BRITISH GAS SERVICES (COMMERCI,16214
South Ribble Council,http://statistics.data.gov.uk/doc/local-authority/30UN,Property Services,Rep & Maint Premises,2021,2012/2013 annual contract,15/06/2012,92512,709.71,Revenue,CHUBB ELECTRONIC SECURITY SYS,90625
South Ribble Council,http://statistics.data.gov.uk/doc/local-authority/30UN,Property Services,Energy Costs,2303,3/5/12 to 31/5/12,15/06/2012,98129,694.72,Revenue,E.ON ENERGY,84356
South Ribble Council,http://statistics.data.gov.uk/doc/local-authority/30UN,Property Services,Energy Costs,2303,21/10/08  to 23/01/09,15/06/2012,98188,510.80,Revenue,E.ON ENERGY,84356
South Ribble Council,http://statistics.data.gov.uk/doc/local-authority/30UN,Property Services,Rep & Maint Premises,2020,"Please disconnect the electricity supply to the changing unit at the Holme Pavilion, Bridge Street",15/06/2012,98257,464.42,Revenue,ELECTRICITY NORTH WEST LTD,120142
South Ribble Council,http://statistics.data.gov.uk/doc/local-authority/30UN,Property Services,Rep & Maint Premises,2020,"Please provide 3 phase supply to the feeder pillar sited at the Holme Pavilion, Bamber Bridge",15/06/2012,98257,"5,508.79",Revenue,ELECTRICITY NORTH WEST LTD,120142
South Ribble Council,http://statistics.data.gov.uk/doc/local-authority/30UN,Revenues,Agency Fees,1121,Agency Staff -REDACTED Period engaged - 1.4.12 to 30.9.12,15/06/2012,98236,630.00,Revenue,GRADEWELL LIMITED,130411
South Ribble Council,http://statistics.data.gov.uk/doc/local-authority/30UN,Shared Financial Services,Legal,4822,Courts,15/06/2012,98260,"1,317.00",Revenue,HSBC Bank plc,130459
South Ribble Council,http://statistics.data.gov.uk/doc/local-authority/30UN,Housing,Capital Expenditure,C284,bond guarentee,15/06/2012,97641,600.00,Capital,REDACTED,130431
South Ribble Council,http://statistics.data.gov.uk/doc/local-authority/30UN,Healthy Communities,Provisions,4311,SUPPLY OF BEER AND WINE TO CIVIC BAR ON 310512,15/06/2012,98204,696.01,Revenue,MATTHEW CLARK WHOLESALE LTD,47720
South Ribble Council,http://statistics.data.gov.uk/doc/local-authority/30UN,Shared Financial Services,Balance Sheet,1,refund to clear credit balance,15/06/2012,98263,"4,054.26",Revenue,MERITEC LTD,96506
South Ribble Council,http://statistics.data.gov.uk/doc/local-authority/30UN,Property Services,Rep & Maint Premises,2020,Please supply & fit new ceiling system in 3 toilet areas in the central stairwell at the civic centre to include grid & tiles,15/06/2012,98196,540.00,Revenue,MODULAR CEILINGS & INTERIORS LT,105989
South Ribble Council,http://statistics.data.gov.uk/doc/local-authority/30UN,Benefits,Agency Fees,1121,REDACTED - period engaged 8.5.12 to 15.6.12,15/06/2012,98251,770.00,Revenue,MORGAN HUNT PUBLIC SECTOR LTD,120401
South Ribble Council,http://statistics.data.gov.uk/doc/local-authority/30UN,Benefits,Agency Fees,1121,REDACTED - period engaged 8.5.12 to 15.6.12,15/06/2012,98252,764.50,Revenue,MORGAN HUNT PUBLIC SECTOR LTD,120401
South Ribble Council,http://statistics.data.gov.uk/doc/local-authority/30UN,Revenues,Agency Fees,1121,Agency Staff -REDACTED Period engaged - 1.4.12 to 30.6.12,15/06/2012,98253,703.00,Revenue,MORGAN HUNT PUBLIC SECTOR LTD,120401
South Ribble Council,http://statistics.data.gov.uk/doc/local-authority/30UN,Revenues,Agency Fees,1121,Agency Staff -REDACTED Period engaged - 1.4.12 to 30.6.12,15/06/2012,98254,836.00,Revenue,MORGAN HUNT PUBLIC SECTOR LTD,120401
South Ribble Council,http://statistics.data.gov.uk/doc/local-authority/30UN,Benefits,Agency Fees,1121,Alan Kearns - period engaged 8.5.12 to 15.6.12,15/06/2012,98255,825.00,Revenue,MORGAN HUNT PUBLIC SECTOR LTD,120401
South Ribble Council,http://statistics.data.gov.uk/doc/local-authority/30UN,Property Services,Energy Costs,2303,1/5/12 to 31/5/12,15/06/2012,98270,"4,244.51",Revenue,NPOWER LTD,63814
South Ribble Council,http://statistics.data.gov.uk/doc/local-authority/30UN,Property Services,Energy Costs,2307,levy,15/06/2012,98270,221.46,Revenue,NPOWER LTD,63814
South Ribble Council,http://statistics.data.gov.uk/doc/local-authority/30UN,Healthy Communities,Licence Fees,4882,prs for civic and leyland market for year april 2012 to march 2013,15/06/2012,98093,397.90,Revenue,PERFORMING RIGHT SOCIETY LTD,31260
South Ribble Council,http://statistics.data.gov.uk/doc/local-authority/30UN,Healthy Communities,Licence Fees,4882,prs for civic and leyland market for year april 2012 to march 2013,15/06/2012,98093,535.50,Revenue,PERFORMING RIGHT SOCIETY LTD,31260
South Ribble Council,http://statistics.data.gov.uk/doc/local-authority/30UN,Property Services,Rents,2401,Forward industrial estate rent for 2012 / 2013,15/06/2012,98246,"12,537.50",Revenue,STONEWELL PROPERTY COMPANY ,118138
South Ribble Council,http://statistics.data.gov.uk/doc/local-authority/30UN,Benefits,Operational Furniture & Equip,4010,NAFN fees 2012/13,15/06/2012,98245,"1,715.00",Revenue,TAMESIDE METROPOLITAN BOROUG,37293
South Ribble Council,http://statistics.data.gov.uk/doc/local-authority/30UN,Revenues,Postage,4291,Revenues Postage - quarter one,15/06/2012,98243,615.16,Revenue,TNT POST NORTH LTD,119629
South Ribble Council,http://statistics.data.gov.uk/doc/local-authority/30UN,Revenues,Postage,4291,hand sorted,15/06/2012,98243,1.63,Revenue,TNT POST NORTH LTD,119629
South Ribble Council,http://statistics.data.gov.uk/doc/local-authority/30UN,Property Services,Energy Costs,2304,invoice,20/06/2012,73881,"1,768.99",Revenue,BRITISH GAS BUSINESS,102458
South Ribble Council,http://statistics.data.gov.uk/doc/local-authority/30UN,Property Services,Energy Costs,2307,,20/06/2012,73881,70.56,Revenue,BRITISH GAS BUSINESS,102458
South Ribble Council,http://statistics.data.gov.uk/doc/local-authority/30UN,Property Services,Energy Costs,2304,16/1/12 to 16/4/12,20/06/2012,92434,"2,100.75",Revenue,BRITISH GAS BUSINESS,102458
South Ribble Council,http://statistics.data.gov.uk/doc/local-authority/30UN,Property Services,Energy Costs,2307,levy,20/06/2012,92434,84.00,Revenue,BRITISH GAS BUSINESS,102458
South Ribble Council,http://statistics.data.gov.uk/doc/local-authority/30UN,Information Services,Peripherals,4247,"Moss Side link, internet & router April 2012 - March 2013",20/06/2012,98277,"1,664.00",Revenue,CABLE & WIRELESS,114381
South Ribble Council,http://statistics.data.gov.uk/doc/local-authority/30UN,Environmental Health,Licence Fees,488B,mgmt fee july 12,20/06/2012,98516,"1,125.00",Revenue,Carr Street Community Centre,130312
South Ribble Council,http://statistics.data.gov.uk/doc/local-authority/30UN,Revenues,Agency Fees,1121,Agency Staff - REDACTED Period engaged - 1.4.12 to 30.9.12,20/06/2012,98485,600.00,Revenue,GRADEWELL LIMITED,130411
South Ribble Council,http://statistics.data.gov.uk/doc/local-authority/30UN,Democratic Services,Other Misc,4851,WORKSHOP & USER GROUP MARTIN O`LOUGHLIN + KATE GASCOIGNE,20/06/2012,97665,880.00,Revenue,HALAROSE LTD,24358
South Ribble Council,http://statistics.data.gov.uk/doc/local-authority/30UN,Environmental Health,Licence Fees,488B,mgmt fee july 12,20/06/2012,98517,"1,000.00",Revenue,HIGHER WALTON COMMUNITY CENT,70535
South Ribble Council,http://statistics.data.gov.uk/doc/local-authority/30UN,Property Services,Agency Fees,1121,2012 / 2013 Consulatancy fees,20/06/2012,98285,"1,050.79",Revenue,K J PROPERTY CONSULTANCY (LAN,100816
South Ribble Council,http://statistics.data.gov.uk/doc/local-authority/30UN,Benefits,Agency Fees,1121,Alan Kearns - period engaged 8.5.12 to 15.6.12,20/06/2012,98250,896.50,Revenue,MORGAN HUNT PUBLIC SECTOR LTD,120401
South Ribble Council,http://statistics.data.gov.uk/doc/local-authority/30UN,Revenues,Agency Fees,1121,Agency Staff - REDACTED Period engaged - 1.4.12 to 30.6.12,20/06/2012,98282,551.00,Revenue,MORGAN HUNT PUBLIC SECTOR LTD,120401
South Ribble Council,http://statistics.data.gov.uk/doc/local-authority/30UN,Healthy Communities,Licence Fees,488B,2nd qtr mgmt fee july 12,20/06/2012,98515,"1,375.00",Revenue,MOSS SIDE COMMUNITY FORUM,98724
South Ribble Council,http://statistics.data.gov.uk/doc/local-authority/30UN,Human Resources,Training Expense-Course Fees,1405,DISCIPLINARY/GRIEVANCE TRAINING 24 APRIL,20/06/2012,98297,580.50,Revenue,N WEST LOCAL AUTH EMPLOYERS O,29829
South Ribble Council,http://statistics.data.gov.uk/doc/local-authority/30UN,Legal,Training Expense-Course Fees,1420,NWLC course subscription 2012/13 for Legal Dept their invoice transaction number = 295859,20/06/2012,98501,500.00,Revenue,SEFTON M B COUNCIL,117058
South Ribble Council,http://statistics.data.gov.uk/doc/local-authority/30UN,Area 2 - Waste & Transport/Eastern & Central Teams,Contract Hire & Lease Costs,3216,LEASE OF VEHICLE VN58 GFX - JUNE 2012 UNTIL MAY 2013 - AS PER AGREEMENT 104407,20/06/2012,98305,"33,800.00",Revenue,SPECIALIST FLEET SERVICES LTD,118659
South Ribble Council,http://statistics.data.gov.uk/doc/local-authority/30UN,Area 2 - Waste & Transport/Eastern & Central Teams,Contract Hire & Lease Costs,3216,LEASE OF VK09 AHJ - TO COVER JUNE 2012 UNTIL MAY 2013 - AS PER AGREEMENT NO. 104409,20/06/2012,98306,"33,800.00",Revenue,SPECIALIST FLEET SERVICES LTD,118659
South Ribble Council,http://statistics.data.gov.uk/doc/local-authority/30UN,Property Services,Water Charges,2511,24/2/12 to 17/5/12,20/06/2012,92441,"5,250.63",Revenue,UNITED UTILITIES WATER PLC,29845
South Ribble Council,http://statistics.data.gov.uk/doc/local-authority/30UN,Property Services,Water Charges,2511,changing accomodation moss side,20/06/2012,97617,622.51,Revenue,UNITED UTILITIES WATER PLC,29845
South Ribble Council,http://statistics.data.gov.uk/doc/local-authority/30UN,Shared Financial Services,Rates,2412,Wastewater apr 12 - mar 13,20/06/2012,97731,121.00,Revenue,UNITED UTILITIES WATER PLC,29845
South Ribble Council,http://statistics.data.gov.uk/doc/local-authority/30UN,Shared Financial Services,Rates,2412,Wastewater apr 12 - mar 13,20/06/2012,97731,121.00,Revenue,UNITED UTILITIES WATER PLC,29845
South Ribble Council,http://statistics.data.gov.uk/doc/local-authority/30UN,Shared Financial Services,Rates,2412,wastewater apr 12 - mar 13,20/06/2012,97731,121.00,Revenue,UNITED UTILITIES WATER PLC,29845
South Ribble Council,http://statistics.data.gov.uk/doc/local-authority/30UN,Shared Financial Services,Rates,2412,wastewater apr 12 - mar 13,20/06/2012,97731,121.00,Revenue,UNITED UTILITIES WATER PLC,29845
South Ribble Council,http://statistics.data.gov.uk/doc/local-authority/30UN,Shared Financial Services,Rates,2412,wastewater apr 12 - mar 13,20/06/2012,97731,121.00,Revenue,UNITED UTILITIES WATER PLC,29845
South Ribble Council,http://statistics.data.gov.uk/doc/local-authority/30UN,Shared Financial Services,Rates,2412,wastewater apr 12 -mar 13,20/06/2012,97731,121.00,Revenue,UNITED UTILITIES WATER PLC,29845
South Ribble Council,http://statistics.data.gov.uk/doc/local-authority/30UN,Shared Financial Services,Rates,2412,wastewater apr 12 - mar 13,20/06/2012,97731,121.00,Revenue,UNITED UTILITIES WATER PLC,29845
South Ribble Council,http://statistics.data.gov.uk/doc/local-authority/30UN,Shared Financial Services,Rates,2412,wastewater apr 12 - mar 13,20/06/2012,97731,121.00,Revenue,UNITED UTILITIES WATER PLC,29845
South Ribble Council,http://statistics.data.gov.uk/doc/local-authority/30UN,Shared Financial Services,Rates,2412,wastewater apr 12 - mar 13,20/06/2012,97731,"1,343.88",Revenue,UNITED UTILITIES WATER PLC,29845
South Ribble Council,http://statistics.data.gov.uk/doc/local-authority/30UN,Shared Financial Services,Rates,2412,wastewater apr 12 - amr 13,20/06/2012,97731,"6,371.02",Revenue,UNITED UTILITIES WATER PLC,29845
South Ribble Council,http://statistics.data.gov.uk/doc/local-authority/30UN,Shared Financial Services,Rates,2412,wastewater apr 12 - mar 13,20/06/2012,97731,"1,343.88",Revenue,UNITED UTILITIES WATER PLC,29845
South Ribble Council,http://statistics.data.gov.uk/doc/local-authority/30UN,Shared Financial Services,Rates,2412,wastewater apr 12 - amr 13,20/06/2012,97731,266.36,Revenue,UNITED UTILITIES WATER PLC,29845
South Ribble Council,http://statistics.data.gov.uk/doc/local-authority/30UN,Shared Financial Services,Rates,2412,wastewater apr 12 - mar 13 higher walton & moss side comm ctr,20/06/2012,97731,860.28,Revenue,UNITED UTILITIES WATER PLC,29845
South Ribble Council,http://statistics.data.gov.uk/doc/local-authority/30UN,Shared Financial Services,Rates,2412,wastewater apr 12 - mar 13 public conv lostock hall,20/06/2012,97731,107.18,Revenue,UNITED UTILITIES WATER PLC,29845
South Ribble Council,http://statistics.data.gov.uk/doc/local-authority/30UN,Shared Financial Services,Rates,2412,waterwater apr 12 - mar 13 withy grove,20/06/2012,97731,107.18,Revenue,UNITED UTILITIES WATER PLC,29845
South Ribble Council,http://statistics.data.gov.uk/doc/local-authority/30UN,Shared Financial Services,Rates,2412,civic ctr wastewater apr 12 - mar13,20/06/2012,97731,"11,874.46",Revenue,UNITED UTILITIES WATER PLC,29845
South Ribble Council,http://statistics.data.gov.uk/doc/local-authority/30UN,Shared Financial Services,Rates,2412,arts ctr wastewater apr 12 - mar 13,20/06/2012,97731,107.18,Revenue,UNITED UTILITIES WATER PLC,29845
South Ribble Council,http://statistics.data.gov.uk/doc/local-authority/30UN,Neighbourhood Admin & Support,External Contractors Charges,4570,REFUSE COLLECTION - BUCKSHAW VILLAGE 2011/12,22/06/2012,92461,"46,334.40",Revenue,CHORLEY BOROUGH COUNCIL,17352
South Ribble Council,http://statistics.data.gov.uk/doc/local-authority/30UN,Property Services,Rep & Maint Premises,2020,LABOUR - decorate an sprach up the paintwork at the Museum - re-putty window & paint,22/06/2012,98475,"1,512.00",Revenue,COOPER BESPOKE JOINERY LTD,104456
South Ribble Council,http://statistics.data.gov.uk/doc/local-authority/30UN,Property Services,Rep & Maint Premises,2020,materials,22/06/2012,98475,186.00,Revenue,COOPER BESPOKE JOINERY LTD,104456
South Ribble Council,http://statistics.data.gov.uk/doc/local-authority/30UN,Property Services,Rep & Maint Premises,2020,"LABOUR - patch up rendering 4 Farmyard Cottage, paint in the new work to match existing",22/06/2012,98476,301.50,Revenue,COOPER BESPOKE JOINERY LTD,104456
South Ribble Council,http://statistics.data.gov.uk/doc/local-authority/30UN,Property Services,Rep & Maint Premises,2020,materials,22/06/2012,98476,261.85,Revenue,COOPER BESPOKE JOINERY LTD,104456
South Ribble Council,http://statistics.data.gov.uk/doc/local-authority/30UN,Property Services,Rep & Maint Premises,2025,LABOUR - carry out the work pe quotE at Carr St Comm. Ctr. Repairs to Fire door/plaster board wall,22/06/2012,98477,330.00,Revenue,COOPER BESPOKE JOINERY LTD,104456
South Ribble Council,http://statistics.data.gov.uk/doc/local-authority/30UN,Property Services,Rep & Maint Premises,2025,materials,22/06/2012,98477,575.00,Revenue,COOPER BESPOKE JOINERY LTD,104456
South Ribble Council,http://statistics.data.gov.uk/doc/local-authority/30UN,Property Services,Rep & Maint Premises,2020,"LABOUR - decorate stair wells at lower floor each wing, paint stair edgings on end wings",22/06/2012,98478,"1,605.50",Revenue,COOPER BESPOKE JOINERY LTD,104456
South Ribble Council,http://statistics.data.gov.uk/doc/local-authority/30UN,Property Services,Rep & Maint Premises,2020,materials,22/06/2012,98478,190.00,Revenue,COOPER BESPOKE JOINERY LTD,104456
South Ribble Council,http://statistics.data.gov.uk/doc/local-authority/30UN,Property Services,Rep & Maint Premises,2020,LABOUR - refurbish toilets at Civic Centre,22/06/2012,98479,"2,218.00",Revenue,COOPER BESPOKE JOINERY LTD,104456
South Ribble Council,http://statistics.data.gov.uk/doc/local-authority/30UN,Property Services,Rep & Maint Premises,2020,materials,22/06/2012,98479,"4,492.28",Revenue,COOPER BESPOKE JOINERY LTD,104456
South Ribble Council,http://statistics.data.gov.uk/doc/local-authority/30UN,Area 2 - Waste & Transport/Eastern & Central Teams,Materials General,4040,1 ABS CONTROLLER VX55 CNC VM51549,22/06/2012,97724,717.79,Revenue,DENNIS EAGLE LTD,19774
South Ribble Council,http://statistics.data.gov.uk/doc/local-authority/30UN,Area 2 - Waste & Transport/Eastern & Central Teams,External Contractors Charges,4570,Spec Repair PJ04 XGA VM51575,22/06/2012,98291,624.29,Revenue,FLEET SERVICES LTD,120498
South Ribble Council,http://statistics.data.gov.uk/doc/local-authority/30UN,Neighbourhood Admin & Support,Grounds Maint Cntrctrs Chgs,4657,Sutcliffe Slide,22/06/2012,86045,"1,440.00",Revenue,GROUNDWORK LEISURE SERVICES ,130104
South Ribble Council,http://statistics.data.gov.uk/doc/local-authority/30UN,Risk,Subs to Statutory Bodies,4721,SRBC Contribution to LRF Admin Funding 2012/13,22/06/2012,92416,894.00,Revenue,LANCS POLICE AUTHORITY,26851
South Ribble Council,http://statistics.data.gov.uk/doc/local-authority/30UN,Revenues,Agency Fees,1121,Agency Staff - REDACTED Period engaged - 1.4.12 to 30.6.12,22/06/2012,98576,798.00,Revenue,MORGAN HUNT PUBLIC SECTOR LTD,120401
South Ribble Council,http://statistics.data.gov.uk/doc/local-authority/30UN,Benefits,Agency Fees,1121,REDACTED - period engaged 8.5.12 to 15.6.12,22/06/2012,98577,797.50,Revenue,MORGAN HUNT PUBLIC SECTOR LTD,120401
South Ribble Council,http://statistics.data.gov.uk/doc/local-authority/30UN,Information Services,Capital Expenditure,C234,Cisco Catalyst 3750X-48P-L - Switch - Managed - 48 x 10/100/1000 - rack mountable - PoE,22/06/2012,98578,"3,410.00",Capital,MYPREMIER LTD,130091
South Ribble Council,http://statistics.data.gov.uk/doc/local-authority/30UN,Human Resources,Advertising,4848,PRINTING 4 ISSUES OF FORWARD 2012/2013,22/06/2012,98556,"4,165.00",Revenue,NEWSQUEST MEDIA GROUP LTD,121934
South Ribble Council,http://statistics.data.gov.uk/doc/local-authority/30UN,Human Resources,Advertising,4848,delivery,22/06/2012,98556,365.00,Revenue,NEWSQUEST MEDIA GROUP LTD,121934
South Ribble Council,http://statistics.data.gov.uk/doc/local-authority/30UN,Area 2 - Waste & Transport/Eastern & Central Teams,External Contractors Charges,4570,1 SPEC REPAIR NX58 FJZ  VM51494,22/06/2012,97640,651.46,Revenue,NORTH HYDRAULIC SERVICES LTD,119551
South Ribble Council,http://statistics.data.gov.uk/doc/local-authority/30UN,Neighbourhood Admin & Support,Professional Fees,4514,DEPLOYMENT OF OFFICERS MAY 2012,22/06/2012,98249,"1,095.92",Revenue,NSL LTD,116868
South Ribble Council,http://statistics.data.gov.uk/doc/local-authority/30UN,Neighbourhood Admin & Support,Professional Fees,4514,CASH COLLECTION MAY 2012,22/06/2012,98249,236.88,Revenue,NSL LTD,116868
South Ribble Council,http://statistics.data.gov.uk/doc/local-authority/30UN,Property Services,Rep & Maint Premises,2020,LABOUR attend Crossroads toilets on 4th June 2012 to unblock the drain excavate around the pipe work,22/06/2012,98583,552.00,Revenue,RED ROSE BUILDING MAINTENANCE,85410
South Ribble Council,http://statistics.data.gov.uk/doc/local-authority/30UN,Property Services,Rep & Maint Premises,2020,materials,22/06/2012,98583,110.00,Revenue,RED ROSE BUILDING MAINTENANCE,85410
South Ribble Council,http://statistics.data.gov.uk/doc/local-authority/30UN,Property Services,Rep & Maint Premises,2020,"LABOUR Relay block paving, 2 area approximately 4m2, exposed kerb edging and clear pathway.",22/06/2012,98585,432.00,Revenue,RED ROSE BUILDING MAINTENANCE,85410
South Ribble Council,http://statistics.data.gov.uk/doc/local-authority/30UN,Property Services,Rep & Maint Premises,2020,materials,22/06/2012,98585,69.00,Revenue,RED ROSE BUILDING MAINTENANCE,85410
South Ribble Council,http://statistics.data.gov.uk/doc/local-authority/30UN,Housing,Contractors Charges 5,5311,Rooms at the REDACTED in Preston block booking,22/06/2012,98502,500.00,Revenue,REDDY & CO,108177
South Ribble Council,http://statistics.data.gov.uk/doc/local-authority/30UN,Property Services,Agency Fees,1121,Professional Services in Property Services April 2012 -September 2012,22/06/2012,98301,"1,460.00",Revenue,ROGER HANDSCOMBE FRICS CHART,104634
South Ribble Council,http://statistics.data.gov.uk/doc/local-authority/30UN,Area 2 - Waste & Transport/Eastern & Central Teams,External Contractors Charges,4570,Spec Repair VX55 CNE VM51568,22/06/2012,98545,"2,980.00",Revenue,S MCMASTER,112079
South Ribble Council,http://statistics.data.gov.uk/doc/local-authority/30UN,Property Services,Energy Costs,2304,9/5/12 to 10/6/12,22/06/2012,98311,976.08,Revenue,SCOTTISH HYDRO ELECTRIC,130051
South Ribble Council,http://statistics.data.gov.uk/doc/local-authority/30UN,Property Services,Energy Costs,2307,levy,22/06/2012,98311,44.49,Revenue,SCOTTISH HYDRO ELECTRIC,130051
South Ribble Council,http://statistics.data.gov.uk/doc/local-authority/30UN,Property Services,Energy Costs,2303,13/3/12 to 13/6/12,22/06/2012,98592,"2,024.45",Revenue,SCOTTISH HYDRO ELECTRIC,130051
South Ribble Council,http://statistics.data.gov.uk/doc/local-authority/30UN,Property Services,Energy Costs,2307,levy,22/06/2012,98592,90.64,Revenue,SCOTTISH HYDRO ELECTRIC,130051
South Ribble Council,http://statistics.data.gov.uk/doc/local-authority/30UN,Area 2 - Waste & Transport/Eastern & Central Teams,External Contractors Charges,4570,Spec repair VX55 CAN VM51275,22/06/2012,98162,"1,766.77",Revenue,TERBERG MATEC UK LTD,58625
South Ribble Council,http://statistics.data.gov.uk/doc/local-authority/30UN,Area 2 - Waste & Transport/Eastern & Central Teams,Cap Vehicles,C440,1 Schmidt Swingo,27/06/2012,98312,"59,157.24",Capital,AEBI SCHMIDT UK LTD,85672
South Ribble Council,http://statistics.data.gov.uk/doc/local-authority/30UN,Area 2 - Waste & Transport/Eastern & Central Teams,Cap Vehicles,C440,freight,27/06/2012,98312,365.00,Capital,AEBI SCHMIDT UK LTD,85672
South Ribble Council,http://statistics.data.gov.uk/doc/local-authority/30UN,Area 2 - Waste & Transport/Eastern & Central Teams,Cap Vehicles,C440,reg fee & road fund licence,27/06/2012,98312,230.00,Capital,AEBI SCHMIDT UK LTD,85672
South Ribble Council,http://statistics.data.gov.uk/doc/local-authority/30UN,Area 2 - Waste & Transport/Eastern & Central Teams,Materials General,4040,"4 TRAILER BOARDS, 1 SET SCREWS - PO4 - VM51364 - BN",27/06/2012,92480,356.00,Revenue,BARLOW TRAILERS LTD,16120
South Ribble Council,http://statistics.data.gov.uk/doc/local-authority/30UN,Area 2 - Waste & Transport/Eastern & Central Teams,Materials General,4040,"4 TRAILER BOARDS, 1 SET SCREWS - PO1 - VM51359 - BN",27/06/2012,92480,356.00,Revenue,BARLOW TRAILERS LTD,16120
South Ribble Council,http://statistics.data.gov.uk/doc/local-authority/30UN,Property Services,Rep & Maint Premises,2020,Attend site on 14th April to assist contractors with work. ,27/06/2012,98695,522.27,Revenue,BELEC,130290
South Ribble Council,http://statistics.data.gov.uk/doc/local-authority/30UN,Property Services,Rep & Maint Premises,2020,"Supply & install gas heater at 125 Brookfield Place, Walton Summit as per your quotation.",27/06/2012,98702,"5,872.00",Revenue,GEORGE MORRISON (ELP) LTD,118442
South Ribble Council,http://statistics.data.gov.uk/doc/local-authority/30UN,Area 2 - Waste & Transport/Eastern & Central Teams,Materials General,4040,"2 COVERS, 3 FASTENERS, 5 MOUNTINGS,  KX09 ATF - VM51178 - BN",27/06/2012,98541,890.66,Revenue,HAKO MACHINES LTD,57972
South Ribble Council,http://statistics.data.gov.uk/doc/local-authority/30UN,Area 2 - Waste & Transport/Eastern & Central Teams,Waste Disposal Charges,5112,April 2012 - INCINERATION OF CLINICAL WASTE,27/06/2012,97725,555.94,Revenue,LANCASHIRE TEACHING FT,120715
South Ribble Council,http://statistics.data.gov.uk/doc/local-authority/30UN,Regeneration,Capital Expenditure,C234,"plants/shrubs and delivery to Mill Street, Farington as part of Mill Sreet Improvement Plan.",27/06/2012,98575,599.00,Capital,NEWGATE NURSERIES,69591
South Ribble Council,http://statistics.data.gov.uk/doc/local-authority/30UN,Property Services,Energy Costs,2303,11/3/12 to 11/6/12,27/06/2012,102034,"1,937.41",Revenue,SCOTTISH HYDRO ELECTRIC,130051
South Ribble Council,http://statistics.data.gov.uk/doc/local-authority/30UN,Property Services,Energy Costs,2303,levy,27/06/2012,102034,102.90,Revenue,SCOTTISH HYDRO ELECTRIC,130051
South Ribble Council,http://statistics.data.gov.uk/doc/local-authority/30UN,Property Services,Energy Costs,2303,9/5/12 to 10/6/12,27/06/2012,102396,721.70,Revenue,SCOTTISH HYDRO ELECTRIC,130051
South Ribble Council,http://statistics.data.gov.uk/doc/local-authority/30UN,Property Services,Energy Costs,2307,levy,27/06/2012,102396,39.85,Revenue,SCOTTISH HYDRO ELECTRIC,130051
South Ribble Council,http://statistics.data.gov.uk/doc/local-authority/30UN,Area 2 - Waste & Transport/Eastern & Central Teams,Contract Hire & Lease Costs,3216,LEASE OF VN58 GFU - TO COVER JUNE 2012 UNTIL MAY 2013,27/06/2012,98308,"33,800.00",Revenue,SPECIALIST FLEET SERVICES LTD,118659
South Ribble Council,http://statistics.data.gov.uk/doc/local-authority/30UN,Area 2 - Waste & Transport/Eastern & Central Teams,Contract Hire & Lease Costs,3216,LEASE OF VN58 GFV - TO COVER JUNE 2012 UNTIL MAY 2013,27/06/2012,98309,"33,800.00",Revenue,SPECIALIST FLEET SERVICES LTD,118659
South Ribble Council,http://statistics.data.gov.uk/doc/local-authority/30UN,Area 2 - Waste & Transport/Eastern & Central Teams,External Contractors Charges,4570,SPEC REPAIR - VM51652 - VX55 CNC - BC,27/06/2012,98718,645.00,Revenue,TERBERG MATEC UK LTD,58625
South Ribble Council,http://statistics.data.gov.uk/doc/local-authority/30UN,Information Services,Peripherals,4247,Annual contract renewal 01/06/12 - 31/05/13 as per quote no. SMQSHB12-169 dated 04/04/12,29/06/2012,98688,500.00,Revenue,AIREDALE INTERNATIONAL LTD,110136
South Ribble Council,http://statistics.data.gov.uk/doc/local-authority/30UN,Area 2 - Waste & Transport/Eastern & Central Teams,External Contractors Charges,4570,SPEC REPAIR - VM51547 - VK09 AHJ - BC,29/06/2012,103561,"1,111.63",Revenue,DENNIS EAGLE LTD,19774
South Ribble Council,http://statistics.data.gov.uk/doc/local-authority/30UN,Property Services,Capital Expenditure,C230,carry out the works on the PV generation at the Civic Centre as per your quotation ref Y42924/D,29/06/2012,103659,"1,780.00",Capital,ELECTRICITY NORTH WEST LTD,120142
South Ribble Council,http://statistics.data.gov.uk/doc/local-authority/30UN,Neighbourhood Admin & Support,Vehicle Running Costs,3132,15000 ltrs diesel @ 108.20p per ltr,29/06/2012,98700,"15,581.88",Revenue,EMO OIL,130299
South Ribble Council,http://statistics.data.gov.uk/doc/local-authority/30UN,Neighbourhood Admin & Support,Vehicle Running Costs,3134,2500 ltrs gas oil @ 60.78p per ltr,29/06/2012,98701,"1,519.50",Revenue,EMO OIL,130299
South Ribble Council,http://statistics.data.gov.uk/doc/local-authority/30UN,Property Services,Rep & Maint Premises,2020,Please supply and fit a new water boiler to feed 2 basins cheapest way possible.,29/06/2012,98292,682.95,Revenue,GEORGE MORRISON (ELP) LTD,118442
South Ribble Council,http://statistics.data.gov.uk/doc/local-authority/30UN,Revenues,Agency Fees,1121,Agency Staff -REDACTED Period engaged - 1.4.12 to 30.9.12,29/06/2012,98703,600.00,Revenue,GRADEWELL LIMITED,130411
South Ribble Council,http://statistics.data.gov.uk/doc/local-authority/30UN,Area 3 - Parks/Leyland East & West,Grounds Maint Cntrctrs Chgs,4657,LAY NOTTSSPORT CHILDSPLAY 1150 IN OLIVE GREEN TO AREA BENEATH JUNIOR SWINGS ,29/06/2012,97460,"1,288.00",Revenue,GROUNDWORK LEISURE SERVICES ,130104
South Ribble Council,http://statistics.data.gov.uk/doc/local-authority/30UN,Area 3 - Parks/Leyland East & West,Grounds Maint Cntrctrs Chgs,4657,2x 1.2 x 1.2 prosafe self closing gates c/w post (Ral yellow 6005),29/06/2012,97469,"1,077.04",Revenue,IAE,117401
South Ribble Council,http://statistics.data.gov.uk/doc/local-authority/30UN,Area 3 - Parks/Leyland East & West,Grounds Maint Cntrctrs Chgs,4657,2x 800mm wide x 1.5m high prosafe self closing gates c/w posts in black,29/06/2012,97469,"1,230.00",Revenue,IAE,117401
South Ribble Council,http://statistics.data.gov.uk/doc/local-authority/30UN,Neighbourhood Admin & Support,Materials General,4040,QC10 quickset  24905 10mm,29/06/2012,98706,"1,135.68",Revenue,INSTARMAC GROUP PLC,24905
South Ribble Council,http://statistics.data.gov.uk/doc/local-authority/30UN,Area 2 - Waste & Transport/Eastern & Central Teams,External Contractors Charges,4570,SPEC REPAIR - VM51635 - VX55 CNA - BC,29/06/2012,103573,"1,950.00",Revenue,NORTH HYDRAULIC SERVICES LTD,119551
South Ribble Council,http://statistics.data.gov.uk/doc/local-authority/30UN,Area 3 - Parks/Leyland East & West,Materials General,4046,SUMMER BEDDING PLANTS AS PER ATTACHED LIST,29/06/2012,103575,"3,276.85",Revenue,PENTLAND PLANTS LTD,101420
South Ribble Council,http://statistics.data.gov.uk/doc/local-authority/30UN,Housing,Contributions,4730,Grant to Clare House,29/06/2012,98562,"1,000.00",Revenue,PROGRESS CARE HOUSING ASSOC ,3133
South Ribble Council,http://statistics.data.gov.uk/doc/local-authority/30UN,Area 3 - Parks/Leyland East & West,Grounds Maint Cntrctrs Chgs,4657,Stump grinding approx 75 rhododendron stumps near hall car park Worden Park as per quote,29/06/2012,98167,600.00,Revenue,RUSS ASPINALL T/A BEARDWOOD T,120443
South Ribble Council,http://statistics.data.gov.uk/doc/local-authority/30UN,Property Services,Energy Costs,2303,8/2/12 to 11/5/12,29/06/2012,103555,738.14,Revenue,SCOTTISH HYDRO ELECTRIC,130051
South Ribble Council,http://statistics.data.gov.uk/doc/local-authority/30UN,Property Services,Energy Costs,2307,levy,29/06/2012,103555,38.13,Revenue,SCOTTISH HYDRO ELECTRIC,130051
South Ribble Council,http://statistics.data.gov.uk/doc/local-authority/30UN,Property Services,Energy Costs,2303,5/5/12 to 6/6/12,29/06/2012,103560,"1,412.17",Revenue,SCOTTISH HYDRO ELECTRIC,130051
South Ribble Council,http://statistics.data.gov.uk/doc/local-authority/30UN,Property Services,Energy Costs,2307,levy,29/06/2012,103560,81.86,Revenue,SCOTTISH HYDRO ELECTRIC,130051
South Ribble Council,http://statistics.data.gov.uk/doc/local-authority/30UN,Neighbourhood Admin & Support,Materials General,4040,Litter pickers  HA2340,29/06/2012,98715,599.40,Revenue,SPALDINGS,70849
South Ribble Council,http://statistics.data.gov.uk/doc/local-authority/30UN,Healthy Communities,Provisions,4310,supply of dried goods to civic kitchens,06/07/2012,98725,470.06,Revenue,3663,130430
South Ribble Council,http://statistics.data.gov.uk/doc/local-authority/30UN,Healthy Communities,Provisions,4310,juice and wash powder,06/07/2012,98725,67.87,Revenue,3663,130430
South Ribble Council,http://statistics.data.gov.uk/doc/local-authority/30UN,Area 1 - Penwortham & Western Parishes,Grounds Maintanance,2040,ROAD MARKINGS AT LEYLAND LEISURE CENTRE,13/07/2012,98271,900.00,Revenue,A1 STREEMLINE ROAD MARKING,71217
South Ribble Council,http://statistics.data.gov.uk/doc/local-authority/30UN,Information Services,Peripherals,4245,Call-out to SRBC on 26/06/12,13/07/2012,104509,995.50,Revenue,AIREDALE INTERNATIONAL LTD,110136
South Ribble Council,http://statistics.data.gov.uk/doc/local-authority/30UN,Regeneration,Other Misc,4851,Leyland Festival Programmes ,20/07/2012,104536,"1,949.00",Revenue,ALLCOLOURS PRINTERS LTD,130483
South Ribble Council,http://statistics.data.gov.uk/doc/local-authority/30UN,Regeneration,Other Misc,4851,Leyland Festival tickets,20/07/2012,104537,571.00,Revenue,ALLCOLOURS PRINTERS LTD,130483
South Ribble Council,http://statistics.data.gov.uk/doc/local-authority/30UN,Revenues,Financial,4811,post office & pay point transactions,06/07/2012,103870,"1,321.35",Revenue,ALLPAY LTD,122276
South Ribble Council,http://statistics.data.gov.uk/doc/local-authority/30UN,Revenues,Financial,4811,webconnect,06/07/2012,103870,33.01,Revenue,ALLPAY LTD,122276
South Ribble Council,http://statistics.data.gov.uk/doc/local-authority/30UN,Shared Financial Services,Professional Fees,4512,fee instalment 12 of 12,11/07/2012,98209,"8,007.00",Revenue,AUDIT COMMISSION,6075
South Ribble Council,http://statistics.data.gov.uk/doc/local-authority/30UN,Shared Financial Services,Professional Fees,4512,ctax benefits scheme,18/07/2012,104548,"2,589.00",Revenue,AUDIT COMMISSION,6075
South Ribble Council,http://statistics.data.gov.uk/doc/local-authority/30UN,Shared Financial Services,Professional Fees,4512,non dom rates return,18/07/2012,104548,425.00,Revenue,AUDIT COMMISSION,6075
South Ribble Council,http://statistics.data.gov.uk/doc/local-authority/30UN,Property Services,Capital Expenditure,C234,labour & materials for work at the Civic Centre,13/07/2012,104512,921.24,Capital,BELEC,130290
South Ribble Council,http://statistics.data.gov.uk/doc/local-authority/30UN,Property Services,Capital Expenditure,C234,labour & materials for IT services,27/07/2012,109873,964.37,Capital,BELEC,130290
South Ribble Council,http://statistics.data.gov.uk/doc/local-authority/30UN,Property Services,Capital Fees,C210,consultancy heat & vent system,18/07/2012,103853,"1,222.69",Capital,BLEZARD PARTNERSHIP,41959
South Ribble Council,http://statistics.data.gov.uk/doc/local-authority/30UN,Property Services,Capital Fees,C210,consultancy heat & vent system,18/07/2012,103993,987.25,Capital,BLEZARD PARTNERSHIP,41959
South Ribble Council,http://statistics.data.gov.uk/doc/local-authority/30UN,Property Services,Capital Fees,C210,consultancy heat & vent system,27/07/2012,104777,"2,168.13",Capital,BLEZARD PARTNERSHIP,41959
South Ribble Council,http://statistics.data.gov.uk/doc/local-authority/30UN,Regeneration,Other Misc,4851,Brothers of Charity input to SR Community food Growing see attached work schedule.,11/07/2012,98471,"2,940.00",Revenue,BROTHERS OF CHARITY SERVICES,86956
South Ribble Council,http://statistics.data.gov.uk/doc/local-authority/30UN,Neighbourhood Admin & Support,Materials General,4040,40ltr Post Mounted dog bin-band,06/07/2012,103847,"2,780.00",Revenue,BROXAP LTD,28736
South Ribble Council,http://statistics.data.gov.uk/doc/local-authority/30UN,Information Services,Peripherals,4269,"ISDN lines, line rentals and call charges April 2012 - March 2013",06/07/2012,103877,"1,463.54",Revenue,CABLE & WIRELESS,114381
South Ribble Council,http://statistics.data.gov.uk/doc/local-authority/30UN,Information Services,Peripherals,4247,"Moss Side link, internet & router April 2012 - March 2013",27/07/2012,109829,"1,664.00",Revenue,CABLE & WIRELESS,114381
South Ribble Council,http://statistics.data.gov.uk/doc/local-authority/30UN,Information Services,Capital Expenditure,C230,Annual billing for GSi Convergence Framework,27/07/2012,109830,"2,777.84",Capital,CABLE & WIRELESS,114381
South Ribble Council,http://statistics.data.gov.uk/doc/local-authority/30UN,Human Resources,Other Misc,4851,reimbursement of pay,13/07/2012,104441,500.00,Revenue,CAROLE HOOLE,130536
South Ribble Council,http://statistics.data.gov.uk/doc/local-authority/30UN,Property Services,Capital Expenditure,C234,"Please supply 10, 15, 20 & 30 m of patch lead to the Civic Centre",11/07/2012,104079,540.38,Capital,CHORLEY ELECTRICAL TRADERS LT,18597
South Ribble Council,http://statistics.data.gov.uk/doc/local-authority/30UN,Shared Financial Services,Consultancy Fees,4541,lease consultancy fee 1/4/12 to 31/3/13,11/07/2012,98598,500.00,Revenue,CHRYSTAL CONSULTING LTD,47717
South Ribble Council,http://statistics.data.gov.uk/doc/local-authority/30UN,Housing,Contractors Charges 5,5311,Block order for REDACTED,11/07/2012,104468,540.00,Revenue,REDACTED,130219
South Ribble Council,http://statistics.data.gov.uk/doc/local-authority/30UN,Regeneration,Other Misc,4851,"3 x train the trainer courses - 8th, 22nd & 29 Feb 12",25/07/2012,104864,600.00,Revenue,CLIMATE FRIENDLY FOOD CIC,120812
South Ribble Council,http://statistics.data.gov.uk/doc/local-authority/30UN,Area 3 - Parks/Leyland East & West,Grounds Maint Cntrctrs Chgs,4657,COLLECTION AND DISPOSAL OF APROX 20T WASTE RUBBER PLAYGROUND SURFACING,11/07/2012,104083,722.88,Revenue,CLIVE HURT (PLANT HIRE) LTD,23553
South Ribble Council,http://statistics.data.gov.uk/doc/local-authority/30UN,Healthy Communities,Operational Furniture & Equip,4013,repair to main kitchen ovens in june 2012,20/07/2012,98103,"1,002.74",Revenue,COMMERCIAL KITCHEN SERVICES LT,19538
South Ribble Council,http://statistics.data.gov.uk/doc/local-authority/30UN,Area 3 - Parks/Leyland East & West,External Contractors Charges,4570,Supply and apply weed and feed to 40 football pitches within South Ribble Borough.,11/07/2012,104060,"3,780.00",Revenue,COMPLETE WEED CONTROL (MERSEYSIDE,76775
South Ribble Council,http://statistics.data.gov.uk/doc/local-authority/30UN,Human Resources,Balance Sheet,30,CHILDCARE VOUCHERS APRIL 2012 - MARCH 2013,11/07/2012,104009,"1,611.96",Revenue,COMPUTERSHARE VOUCHER SERVI,116499
South Ribble Council,http://statistics.data.gov.uk/doc/local-authority/30UN,Healthy Communities,Other Misc,4851,"Compare for South Ribble Sports Awards on the 29th June,2012.",06/07/2012,103879,575.00,Revenue,CORPORATE GOLD ENTERTAINMENT,95743
South Ribble Council,http://statistics.data.gov.uk/doc/local-authority/30UN,Human Resources,Balance Sheet,30,"BIKE, HELMET & OTHER EQUIPMENT",04/07/2012,98275,633.32,Revenue,CYCLESCHEME CO  UK,130237
South Ribble Council,http://statistics.data.gov.uk/doc/local-authority/30UN,Human Resources,Balance Sheet,30,helmet,04/07/2012,98275,49.99,Revenue,CYCLESCHEME CO  UK,130237
South Ribble Council,http://statistics.data.gov.uk/doc/local-authority/30UN,Healthy Communities,Sports Dev Expenses,4894,Week-long Roadshow around SR to 31 Schools.,11/07/2012,103987,"2,158.00",Revenue,DAVID FORD,130528
South Ribble Council,http://statistics.data.gov.uk/doc/local-authority/30UN,Area 3 - Parks/Leyland East & West,Materials General,4040,x30 bags of Pro Master 79,25/07/2012,104867,"1,200.00",Revenue,DLF TRIFOLIUM LTD,9632
South Ribble Council,http://statistics.data.gov.uk/doc/local-authority/30UN,Area 3 - Parks/Leyland East & West,Materials General,4040,x30 bags of Pro Master 79,25/07/2012,104867,"1,200.00",Revenue,DLF TRIFOLIUM LTD,9632
South Ribble Council,http://statistics.data.gov.uk/doc/local-authority/30UN,Area 3 - Parks/Leyland East & West,Materials General,4040,x30 bags of Pro Master 79,25/07/2012,104867,"1,200.00",Revenue,DLF TRIFOLIUM LTD,9632
South Ribble Council,http://statistics.data.gov.uk/doc/local-authority/30UN,Policy,Other Misc,4851,comm bids fund grant - summer prog,18/07/2012,103864,900.00,Revenue,DOUBLE R ARTS,130525
South Ribble Council,http://statistics.data.gov.uk/doc/local-authority/30UN,Property Services,Rep & Maint Premises,2020,"PLEASE CARRY OUT WORK AT WORDEN PARK, SUB STATION. ",11/07/2012,104484,"6,325.71",Revenue,ELECTRICITY NORTH WEST LTD,120142
South Ribble Council,http://statistics.data.gov.uk/doc/local-authority/30UN,Area 2 - Waste & Transport/Eastern & Central Teams,External Contractors Charges,4570,DOMESTIC WASTE COLLECTIONS 1.6.12 - 30.6.12,13/07/2012,104046,"78,467.84",Revenue,ENTERPRISE,26408
South Ribble Council,http://statistics.data.gov.uk/doc/local-authority/30UN,Area 2 - Waste & Transport/Eastern & Central Teams,External Contractors Charges,4570,COMMERCIAL WASTE COLLECTIONS 1.6.12 - 30.6.12,13/07/2012,104046,"6,093.03",Revenue,ENTERPRISE,26408
South Ribble Council,http://statistics.data.gov.uk/doc/local-authority/30UN,Area 2 - Waste & Transport/Eastern & Central Teams,External Contractors Charges,4570,FOOD WASTE COLLECTIONS 1.6.12 - 30.6.12,13/07/2012,104046,"5,809.43",Revenue,ENTERPRISE,26408
South Ribble Council,http://statistics.data.gov.uk/doc/local-authority/30UN,Area 2 - Waste & Transport/Eastern & Central Teams,External Contractors Charges,4570,DRY RECYCLABLE COLLECTIONS 1.6.12 - 30.6.12,13/07/2012,104046,"65,213.59",Revenue,ENTERPRISE,26408
South Ribble Council,http://statistics.data.gov.uk/doc/local-authority/30UN,Area 2 - Waste & Transport/Eastern & Central Teams,Balance Sheet,31,RELEASE OF RENETION MONIES 2011-12,25/07/2012,104806,"46,678.16",Revenue,ENTERPRISE,26408
South Ribble Council,http://statistics.data.gov.uk/doc/local-authority/30UN,Area 2 - Waste & Transport/Eastern & Central Teams,External Contractors Charges,4570,BULKY WASTE COLLECTIONS JUNE 2012,11/07/2012,104473,"1,286.00",Revenue,EXSEL (INT) COMMUNITY INTEREST COMPANY,130150
South Ribble Council,http://statistics.data.gov.uk/doc/local-authority/30UN,Property Services,Rep & Maint Premises,2020,FABRICATE NEW RAILING AND MAKE ALTERATION TO EXISTING,11/07/2012,104485,543.00,Revenue,FAIRCLOUGH FABRICATIONS,21856
South Ribble Council,http://statistics.data.gov.uk/doc/local-authority/30UN,Property Services,Rep & Maint Premises,2020,Please make repairs to the compound gate damaged by a 3rd party at Leyland Market.,27/07/2012,104740,45.00,Revenue,FAIRCLOUGH FABRICATIONS,21856
South Ribble Council,http://statistics.data.gov.uk/doc/local-authority/30UN,Property Services,Capital Expenditure,C230,Metal electricity box and fit at the pavilion over the existing.,27/07/2012,104740,595.00,Capital,FAIRCLOUGH FABRICATIONS,21856
South Ribble Council,http://statistics.data.gov.uk/doc/local-authority/30UN,Neighbourhood Admin & Support,Vehicle Running Costs,3132,12000 ltrs @ 105.90p per ltr,06/07/2012,103937,"12,706.94",Revenue,GEO BROUGHTON & CO,102555
South Ribble Council,http://statistics.data.gov.uk/doc/local-authority/30UN,Neighbourhood Admin & Support,Vehicle Running Costs,3134,3500 ltrs @ 62.70p per ltr,25/07/2012,104870,"2,194.50",Revenue,GEO BROUGHTON & CO,102555
South Ribble Council,http://statistics.data.gov.uk/doc/local-authority/30UN,Neighbourhood Admin & Support,Vehicle Running Costs,3132,12000 ltrs @ 109.90p per ltr,25/07/2012,104871,"13,188.00",Revenue,GEO BROUGHTON & CO,102555
South Ribble Council,http://statistics.data.gov.uk/doc/local-authority/30UN,Property Services,Rep & Maint Premises,2020,Work to the central toilets at the Cvic Centre ,04/07/2012,103651,"1,710.81",Revenue,GEORGE MORRISON (ELP) LTD,118442
South Ribble Council,http://statistics.data.gov.uk/doc/local-authority/30UN,Healthy Communities,Other Misc,4851,grant funding,11/07/2012,103887,866.00,Revenue,GIANT VEGGIE PATCH STEERING GR,121031
South Ribble Council,http://statistics.data.gov.uk/doc/local-authority/30UN,Area 2 - Waste & Transport/Eastern & Central Teams,Materials General,4040,1 HOUSING - SRC 26/11 - VM51182 - BN,06/07/2012,103829,580.51,Revenue,GIBSONS GARDEN MACHINERY LTD,59051
South Ribble Council,http://statistics.data.gov.uk/doc/local-authority/30UN,Revenues,Agency Fees,1121,Agency Staff - REDACTED Period engaged - 1.4.12 to 30.9.12,06/07/2012,103975,600.00,Revenue,GRADEWELL LIMITED,130411
South Ribble Council,http://statistics.data.gov.uk/doc/local-authority/30UN,Revenues,Agency Fees,1121,"Agency Staff - REDACTED
Period engaged - 1.4.12 to 30.9.13",11/07/2012,104474,600.00,Revenue,GRADEWELL LIMITED,130411
South Ribble Council,http://statistics.data.gov.uk/doc/local-authority/30UN,Revenues,Agency Fees,1121,"Agency Staff - REDACTED
Period engaged - 1.4.12 to 30.9.14",25/07/2012,104872,600.00,Revenue,GRADEWELL LIMITED,130411
South Ribble Council,http://statistics.data.gov.uk/doc/local-authority/30UN,Revenues,Agency Fees,1121,"Agency Staff - REDACTED
Period engaged - 1.4.12 to 30.9.15",27/07/2012,109834,585.00,Revenue,GRADEWELL LIMITED,130411
South Ribble Council,http://statistics.data.gov.uk/doc/local-authority/30UN,Property Services,Capital Fees,C213,survey and report on the proposed overcladding of the roof at Moss Side Depot,06/07/2012,103831,"1,250.00",Capital,GRAHAM SCHOFIELD ASSOCIATES,35334
South Ribble Council,http://statistics.data.gov.uk/doc/local-authority/30UN,Area 2 - Waste & Transport/Eastern & Central Teams,Materials General,4040,"BRAKE ADJUSTERS, SHOCK ABSORBERS, BUMP STOPS, WEAR SKIRTS ",25/07/2012,104785,760.38,Revenue,HAKO MACHINES LTD,57972
South Ribble Council,http://statistics.data.gov.uk/doc/local-authority/30UN,Area 3 - Parks/Leyland East & West,External Contractors Charges,4570,Installation of Palisade fencing at Cockshott Wood. Removal of existing fencing and steps. ,25/07/2012,104787,"5,158.20",Revenue,HELMRIG,130464
South Ribble Council,http://statistics.data.gov.uk/doc/local-authority/30UN,Housing,Contractors Charges 5,5311,Block order for placements,04/07/2012,98681,624.00,Revenue,HILL VIEW (PRIVATE HOTEL),99147
South Ribble Council,http://statistics.data.gov.uk/doc/local-authority/30UN,Housing,Contractors Charges 5,5311,Block order for placements,04/07/2012,98682,"1,209.00",Revenue,HILL VIEW (PRIVATE HOTEL),99147
South Ribble Council,http://statistics.data.gov.uk/doc/local-authority/30UN,Housing,Contractors Charges 5,5311,Block order for placements,04/07/2012,98683,"1,209.00",Revenue,HILL VIEW (PRIVATE HOTEL),99147
South Ribble Council,http://statistics.data.gov.uk/doc/local-authority/30UN,Housing,Contractors Charges 5,5311,Block order for placements,04/07/2012,98684,"3,318.00",Revenue,HILL VIEW (PRIVATE HOTEL),99147
South Ribble Council,http://statistics.data.gov.uk/doc/local-authority/30UN,Shared Financial Services,Balance Sheet,140,,13/07/2012,98596,"1,457.70",Revenue,HM REVENUE & CUSTOMS,24837
South Ribble Council,http://statistics.data.gov.uk/doc/local-authority/30UN,Shared Financial Services,Contractors Charges 5,5311,Premeir Inn,18/07/2012,104545,986.50,Revenue,HSBC Bank plc,130459
South Ribble Council,http://statistics.data.gov.uk/doc/local-authority/30UN,Shared Financial Services,Contractors Charges 5,5311,premier inn,18/07/2012,104545,203.75,Revenue,HSBC Bank plc,130459
South Ribble Council,http://statistics.data.gov.uk/doc/local-authority/30UN,Shared Financial Services,Contractors Charges 5,5311,premier inn,18/07/2012,104545,742.53,Revenue,HSBC Bank plc,130459
South Ribble Council,http://statistics.data.gov.uk/doc/local-authority/30UN,Shared Financial Services,Contractors Charges 5,5311,ibis,18/07/2012,104545,328.00,Revenue,HSBC Bank plc,130459
South Ribble Council,http://statistics.data.gov.uk/doc/local-authority/30UN,Shared Financial Services,Legal,4822,HM Courts,18/07/2012,104545,"2,790.00",Revenue,HSBC Bank plc,130459
South Ribble Council,http://statistics.data.gov.uk/doc/local-authority/30UN,Shared Financial Services,General Travel Costs,3411,trains,18/07/2012,104545,80.60,Revenue,HSBC Bank plc,130459
South Ribble Council,http://statistics.data.gov.uk/doc/local-authority/30UN,Shared Financial Services,General Travel Costs,3411,trains,18/07/2012,104545,136.00,Revenue,HSBC Bank plc,130459
South Ribble Council,http://statistics.data.gov.uk/doc/local-authority/30UN,Shared Financial Services,Rents,2403,Travel Lodge,18/07/2012,104545,57.17,Revenue,HSBC Bank plc,130459
South Ribble Council,http://statistics.data.gov.uk/doc/local-authority/30UN,Shared Financial Services,General Travel Costs,3411,trains,18/07/2012,104545,129.15,Revenue,HSBC Bank plc,130459
South Ribble Council,http://statistics.data.gov.uk/doc/local-authority/30UN,Shared Financial Services,Other Misc,4851,fosters schoolwear,18/07/2012,104545,79.20,Revenue,HSBC Bank plc,130459
South Ribble Council,http://statistics.data.gov.uk/doc/local-authority/30UN,Shared Financial Services,Other Misc,4851,pdk,18/07/2012,104545,49.57,Revenue,HSBC Bank plc,130459
South Ribble Council,http://statistics.data.gov.uk/doc/local-authority/30UN,Healthy Communities,Other Misc,4851,Taxi travel between primary schools with in South Ribble for the Olympic Torch Relay,06/07/2012,103907,600.00,Revenue,ISMAIL EBRAHIM ESAT,130499
South Ribble Council,http://statistics.data.gov.uk/doc/local-authority/30UN,Internal Audit,Consultancy Fees,4548,Annual Reg incl surv visit period April 2012 - April 2013,06/07/2012,85177,670.00,Revenue,ISOQAR LTD,25111
South Ribble Council,http://statistics.data.gov.uk/doc/local-authority/30UN,Property Services,Agency Fees,1121,2012 / 2013 Consulatancy fees,25/07/2012,104790,"1,038.51",Revenue,K J PROPERTY CONSULTANCY (LANCASTER,100816
South Ribble Council,http://statistics.data.gov.uk/doc/local-authority/30UN,Area 3 - Parks/Leyland East & West,External Contractors Charges,4570,Traffic Management on the High Speed Roads as per the Drawings. ,25/07/2012,104893,"3,000.00",Revenue,KAYS TRAFFIC MANAGEMENT LTD,72342
South Ribble Council,http://statistics.data.gov.uk/doc/local-authority/30UN,Housing,Contributions,4730,Housing Advise and mediation for youg people aged 16-25,06/07/2012,103942,"3,750.00",Revenue,KEY,98601
South Ribble Council,http://statistics.data.gov.uk/doc/local-authority/30UN,Housing,Contractors Charges 5,5311,funding,20/07/2012,104708,"4,614.50",Revenue,KEY,98601
South Ribble Council,http://statistics.data.gov.uk/doc/local-authority/30UN,Housing,Contractors Charges 5,5311,funding,20/07/2012,104709,"4,614.50",Revenue,KEY,98601
South Ribble Council,http://statistics.data.gov.uk/doc/local-authority/30UN,Environmental Health,Materials General,4041,Various poisons.,06/07/2012,103944,970.22,Revenue,KILLGERM CHEMICALS LTD,25894
South Ribble Council,http://statistics.data.gov.uk/doc/local-authority/30UN,Area 2 - Waste & Transport/Eastern & Central Teams,Waste Disposal Charges,5112,MAY 2012 - INCINERATION OF CLINICAL WASTE,11/07/2012,104477,509.96,Revenue,LANCASHIRE TEACHING FT,120715
South Ribble Council,http://statistics.data.gov.uk/doc/local-authority/30UN,Area 2 - Waste & Transport/Eastern & Central Teams,Waste Disposal Charges,5112,JUNE 2012 - INCINERATION OF CLINICAL WASTE,20/07/2012,104702,620.73,Revenue,LANCASHIRE TEACHING FT,120715
South Ribble Council,http://statistics.data.gov.uk/doc/local-authority/30UN,Legal,Other Local Authorities,4530,June 2012 Land Charges,27/07/2012,104493,942.00,Revenue,LANCS COUNTY COUNCIL,41645
South Ribble Council,http://statistics.data.gov.uk/doc/local-authority/30UN,Scrutiny,Subs to Statutory Bodies,4720,CORPORATE MEMBERSHIP - APRIL 2012 - MARCH 2013,18/07/2012,97593,500.00,Revenue,LANCS WILDLIFE TRUST,27009
South Ribble Council,http://statistics.data.gov.uk/doc/local-authority/30UN,Legal,Consultancy Fees,4541,charges for 2011/2012 for Legal Support in respect of anticipated litigation,11/07/2012,97747,850.30,Revenue,LGA (LOCAL GOVERNMENT ASSOCIATION,42851
South Ribble Council,http://statistics.data.gov.uk/doc/local-authority/30UN,Policy,Capital Expenditure,C305,comm bids fund grant - equip to support inside out project,18/07/2012,103865,"3,500.00",Capital,LONGTON COMMUNITY CHURCH,130488
South Ribble Council,http://statistics.data.gov.uk/doc/local-authority/30UN,Regeneration,Other Misc,4851,65 Hanging baskets,04/07/2012,98687,938.00,Revenue,M J Cornall,130397
South Ribble Council,http://statistics.data.gov.uk/doc/local-authority/30UN,Property Services,Rep & Maint Premises,2021,gutter inspection / cleaning at Carr Street Community Centre,25/07/2012,104889,89.00,Revenue,MAINCOAT LTD,99244
South Ribble Council,http://statistics.data.gov.uk/doc/local-authority/30UN,Property Services,Rep & Maint Premises,2021,gutter inspection / cleaning at Higher Walton Community Centre,25/07/2012,104889,89.00,Revenue,MAINCOAT LTD,99244
South Ribble Council,http://statistics.data.gov.uk/doc/local-authority/30UN,Property Services,Rep & Maint Premises,2021,gutter inspection / cleaning at Hurst Grange Park,25/07/2012,104889,35.25,Revenue,MAINCOAT LTD,99244
South Ribble Council,http://statistics.data.gov.uk/doc/local-authority/30UN,Property Services,Rep & Maint Premises,2021,gutter inspection / cleaning at Kingsfold Community Centre,25/07/2012,104889,35.25,Revenue,MAINCOAT LTD,99244
South Ribble Council,http://statistics.data.gov.uk/doc/local-authority/30UN,Property Services,Rep & Maint Premises,2021,gutter inspection / cleaning at Leland Market,25/07/2012,104889,107.50,Revenue,MAINCOAT LTD,99244
South Ribble Council,http://statistics.data.gov.uk/doc/local-authority/30UN,Property Services,Rep & Maint Premises,2021,Gutter inspection / cleaning at Longton Brickcroft,25/07/2012,104889,107.50,Revenue,MAINCOAT LTD,99244
South Ribble Council,http://statistics.data.gov.uk/doc/local-authority/30UN,Property Services,Rep & Maint Premises,2021,Gutter inspection / cleaning at Moss Side Depot,25/07/2012,104889,181.50,Revenue,MAINCOAT LTD,99244
South Ribble Council,http://statistics.data.gov.uk/doc/local-authority/30UN,Property Services,Rep & Maint Premises,2021,Gutter inspection / cleaning at Moss Side Community Centre,25/07/2012,104889,89.00,Revenue,MAINCOAT LTD,99244
South Ribble Council,http://statistics.data.gov.uk/doc/local-authority/30UN,Property Services,Rep & Maint Premises,2021,"Gutter inspection / cleaning at the Museum, Leyland",25/07/2012,104889,89.00,Revenue,MAINCOAT LTD,99244
South Ribble Council,http://statistics.data.gov.uk/doc/local-authority/30UN,Property Services,Rep & Maint Premises,2021,Gutter inspection / cleaning at Penwortham Holme,25/07/2012,104889,70.50,Revenue,MAINCOAT LTD,99244
South Ribble Council,http://statistics.data.gov.uk/doc/local-authority/30UN,Property Services,Rep & Maint Premises,2021,Gutter inspection / cleaning at Penwortham Leisure Centre,25/07/2012,104889,181.50,Revenue,MAINCOAT LTD,99244
South Ribble Council,http://statistics.data.gov.uk/doc/local-authority/30UN,Property Services,Rep & Maint Premises,2021,Gutter inspection / cleaning at SRBC public conveniences,25/07/2012,104889,230.00,Revenue,MAINCOAT LTD,99244
South Ribble Council,http://statistics.data.gov.uk/doc/local-authority/30UN,Property Services,Rep & Maint Premises,2021,"Gutter inspection / cleaning at Sports Pavilions - Gregson Lane, Hern Ave, St Cuthberts, Withy Grove, Holme, Longton, Hutton, Much Hoole, Worden Park & Moss Side",25/07/2012,104889,564.00,Revenue,MAINCOAT LTD,99244
South Ribble Council,http://statistics.data.gov.uk/doc/local-authority/30UN,Property Services,Rep & Maint Premises,2021,Gutter inspection / cleaning at SR Tennis Centre,25/07/2012,104889,181.50,Revenue,MAINCOAT LTD,99244
South Ribble Council,http://statistics.data.gov.uk/doc/local-authority/30UN,Property Services,Rep & Maint Premises,2021,Gutter inspection / cleaning at Holland House Farm,25/07/2012,104889,70.50,Revenue,MAINCOAT LTD,99244
South Ribble Council,http://statistics.data.gov.uk/doc/local-authority/30UN,Property Services,Rep & Maint Premises,2021,Gutter inspection / cleaning,25/07/2012,104889,181.50,Revenue,MAINCOAT LTD,99244
South Ribble Council,http://statistics.data.gov.uk/doc/local-authority/30UN,Property Services,Rep & Maint Premises,2021,"Gutter inspection / cleaning at 3 Farmyard Cottages, Coffee Shop, Offices, Rangers Office",25/07/2012,104889,89.00,Revenue,MAINCOAT LTD,99244
South Ribble Council,http://statistics.data.gov.uk/doc/local-authority/30UN,Property Services,Rep & Maint Premises,2021,Gutter inspection / cleaning at Leyland Leisure Centre,25/07/2012,104889,181.50,Revenue,MAINCOAT LTD,99244
South Ribble Council,http://statistics.data.gov.uk/doc/local-authority/30UN,Property Services,Rep & Maint Premises,2021,Gutter inspection / cleaning at Bamber Bridge Leisure Centre,25/07/2012,104889,181.50,Revenue,MAINCOAT LTD,99244
South Ribble Council,http://statistics.data.gov.uk/doc/local-authority/30UN,Healthy Communities,Provisions,4311,"supply of beers, wine and soft drinks to Worden bar",18/07/2012,104525,"1,642.35",Revenue,MATTHEW CLARK WHOLESALE LTD,47720
South Ribble Council,http://statistics.data.gov.uk/doc/local-authority/30UN,Housing,Contributions,4730,Agreed Contribution,06/07/2012,103892,"2,500.00",Revenue,METHODIST ACTION (A PLACE TO LIVE,130329
South Ribble Council,http://statistics.data.gov.uk/doc/local-authority/30UN,Revenues,Agency Fees,1121,Agency Staff,06/07/2012,103978,703.00,Revenue,MORGAN HUNT PUBLIC SECTOR LTD,120401
South Ribble Council,http://statistics.data.gov.uk/doc/local-authority/30UN,Revenues,Agency Fees,1121,Agency Staff,06/07/2012,103979,863.50,Revenue,MORGAN HUNT PUBLIC SECTOR LTD,120401
South Ribble Council,http://statistics.data.gov.uk/doc/local-authority/30UN,Revenues,Agency Fees,1121,Agency Staff,25/07/2012,104700,995.50,Revenue,MORGAN HUNT PUBLIC SECTOR LTD,120401
South Ribble Council,http://statistics.data.gov.uk/doc/local-authority/30UN,Revenues,Agency Fees,1121,Agency Staff,25/07/2012,104701,703.00,Revenue,MORGAN HUNT PUBLIC SECTOR LTD,120401
South Ribble Council,http://statistics.data.gov.uk/doc/local-authority/30UN,Revenues,Agency Fees,1121,Agency Staff,25/07/2012,104791,646.00,Revenue,MORGAN HUNT PUBLIC SECTOR LTD,120401
South Ribble Council,http://statistics.data.gov.uk/doc/local-authority/30UN,Revenues,Agency Fees,1121,Agency Staff,25/07/2012,104792,814.00,Revenue,MORGAN HUNT PUBLIC SECTOR LTD,120401
South Ribble Council,http://statistics.data.gov.uk/doc/local-authority/30UN,Revenues,Agency Fees,1121,Agency Staff,27/07/2012,109878,808.50,Revenue,MORGAN HUNT PUBLIC SECTOR LTD,120401
South Ribble Council,http://statistics.data.gov.uk/doc/local-authority/30UN,Revenues,Agency Fees,1121,Agency Staff,27/07/2012,109879,841.50,Revenue,MORGAN HUNT PUBLIC SECTOR LTD,120401
South Ribble Council,http://statistics.data.gov.uk/doc/local-authority/30UN,Housing,Equipment,C280,Grant payment for a replacement gas boiler at REDACTED,06/07/2012,103964,906.00,Capital,REDACTED,130465
South Ribble Council,http://statistics.data.gov.uk/doc/local-authority/30UN,Housing,Equipment,C280,Grant payment for a replacement gas boiler at REDACTED,04/07/2012,103633,"1,000.00",Capital,REDACTED,130494
South Ribble Council,http://statistics.data.gov.uk/doc/local-authority/30UN,Housing,Equipment,C280,Repairs Grant Reference to REDACTED,20/07/2012,104759,"1,000.00",Capital,REDACTED,130537
South Ribble Council,http://statistics.data.gov.uk/doc/local-authority/30UN,Housing,Equipment,C280,Heating Grant for REDACTED,20/07/2012,104707,"1,000.00",Capital,REDACTED,130514
South Ribble Council,http://statistics.data.gov.uk/doc/local-authority/30UN,Housing,Equipment,C278,Repairs Grant Reference REDACTED,20/07/2012,104766,"1,000.00",Capital,REDACTED,130485
South Ribble Council,http://statistics.data.gov.uk/doc/local-authority/30UN,Human Resources,Training Expense-Course Fees,1405,MEMBERSHIP NWEO 2012/2013,20/07/2012,98558,"4,195.05",Revenue,N WEST LOCAL AUTH EMPLOYERS O,29829
South Ribble Council,http://statistics.data.gov.uk/doc/local-authority/30UN,Human Resources,Training Expense-Course Fees,1406,Equality & Diversity Training ,13/07/2012,104041,530.50,Revenue,N WEST LOCAL AUTH EMPLOYERS O,29829
South Ribble Council,http://statistics.data.gov.uk/doc/local-authority/30UN,Human Resources,Training Expense-Course Fees,1406,Chairing Skills For Councillors ,13/07/2012,104042,541.12,Revenue,N WEST LOCAL AUTH EMPLOYERS O,29829
South Ribble Council,http://statistics.data.gov.uk/doc/local-authority/30UN,Scrutiny,Training Expense-Course Fees,1420,QUESTIONING TECHNIQUES - SCRUTINY TRAINING COURSE ,18/07/2012,104043,532.30,Revenue,N WEST LOCAL AUTH EMPLOYERS O,29829
South Ribble Council,http://statistics.data.gov.uk/doc/local-authority/30UN,Area 2 - Waste & Transport/Eastern & Central Teams,External Contractors Charges,4570,STEAM CLEAN - VM51041 - VN10 DKV - BC,18/07/2012,97735,62.14,Revenue,NAYLORS TRANSPORT (LEYLAND) ltd,114828
South Ribble Council,http://statistics.data.gov.uk/doc/local-authority/30UN,Area 2 - Waste & Transport/Eastern & Central Teams,External Contractors Charges,4570,STEAM CLEAN - VM51046 - VN10 DKO - BC,18/07/2012,97735,62.14,Revenue,NAYLORS TRANSPORT (LEYLAND) ltd,114828
South Ribble Council,http://statistics.data.gov.uk/doc/local-authority/30UN,Area 2 - Waste & Transport/Eastern & Central Teams,External Contractors Charges,4570,STEAM CLEAN - VM51043 - VX55 CNE - BC,18/07/2012,97735,62.14,Revenue,NAYLORS TRANSPORT (LEYLAND) ltd,114828
South Ribble Council,http://statistics.data.gov.uk/doc/local-authority/30UN,Area 2 - Waste & Transport/Eastern & Central Teams,External Contractors Charges,4570,STEAM CLEAN - VM51044 - VK09 AHJ - BC,18/07/2012,97735,62.14,Revenue,NAYLORS TRANSPORT (LEYLAND) ltd,114828
South Ribble Council,http://statistics.data.gov.uk/doc/local-authority/30UN,Area 2 - Waste & Transport/Eastern & Central Teams,External Contractors Charges,4570,STEAM CLEAN - VM51045 - VX55 CNK - BC,18/07/2012,97735,62.14,Revenue,NAYLORS TRANSPORT (LEYLAND) ltd,114828
South Ribble Council,http://statistics.data.gov.uk/doc/local-authority/30UN,Area 2 - Waste & Transport/Eastern & Central Teams,External Contractors Charges,4570,STEAM CLEAN - VM51048 - NX58 FJZ - BC,18/07/2012,97735,62.14,Revenue,NAYLORS TRANSPORT (LEYLAND) ltd,114828
South Ribble Council,http://statistics.data.gov.uk/doc/local-authority/30UN,Area 2 - Waste & Transport/Eastern & Central Teams,External Contractors Charges,4570,STEAM CLEAN - VM51050 - VX55 CNA - BC,18/07/2012,97735,62.14,Revenue,NAYLORS TRANSPORT (LEYLAND) ltd,114828
South Ribble Council,http://statistics.data.gov.uk/doc/local-authority/30UN,Area 2 - Waste & Transport/Eastern & Central Teams,External Contractors Charges,4570,STEAM CLEAN - VM51051 - VN58 GFU - BC,18/07/2012,97735,62.14,Revenue,NAYLORS TRANSPORT (LEYLAND) ltd,114828
South Ribble Council,http://statistics.data.gov.uk/doc/local-authority/30UN,Area 2 - Waste & Transport/Eastern & Central Teams,External Contractors Charges,4570,STEAM CLEAN - VM51052 - VX55 CNF - BC,18/07/2012,97735,62.14,Revenue,NAYLORS TRANSPORT (LEYLAND) ltd,114828
South Ribble Council,http://statistics.data.gov.uk/doc/local-authority/30UN,Area 2 - Waste & Transport/Eastern & Central Teams,External Contractors Charges,4570,STEAM CLEAN - VM51055 - MX04 YNL - BC,18/07/2012,97735,62.14,Revenue,NAYLORS TRANSPORT (LEYLAND) ltd,114828
South Ribble Council,http://statistics.data.gov.uk/doc/local-authority/30UN,Area 2 - Waste & Transport/Eastern & Central Teams,External Contractors Charges,4570,STEAM CLEAN - VM51057 - VN58 GFV - BC,18/07/2012,97735,62.15,Revenue,NAYLORS TRANSPORT (LEYLAND) ltd,114828
South Ribble Council,http://statistics.data.gov.uk/doc/local-authority/30UN,Area 2 - Waste & Transport/Eastern & Central Teams,External Contractors Charges,4570,STEAM CLEAN - VM51058 - VX55 CNC - BC,18/07/2012,97735,62.15,Revenue,NAYLORS TRANSPORT (LEYLAND) ltd,114828
South Ribble Council,http://statistics.data.gov.uk/doc/local-authority/30UN,Area 2 - Waste & Transport/Eastern & Central Teams,External Contractors Charges,4570,STEAM CLEAN - VM51061 - PN57 NXX - BC,18/07/2012,97735,62.15,Revenue,NAYLORS TRANSPORT (LEYLAND) ltd,114828
South Ribble Council,http://statistics.data.gov.uk/doc/local-authority/30UN,Area 2 - Waste & Transport/Eastern & Central Teams,External Contractors Charges,4570,STEAM CLEAN - VM51063 - VN58 GFX - BC,18/07/2012,97735,62.15,Revenue,NAYLORS TRANSPORT (LEYLAND) ltd,114828
South Ribble Council,http://statistics.data.gov.uk/doc/local-authority/30UN,Policy,Other Misc,4851,comm bids fund grant - core costs support for blood bikers activities,18/07/2012,103866,"1,000.00",Revenue,NORTH WEST BLOOD BIKERS LANCS ,130489
South Ribble Council,http://statistics.data.gov.uk/doc/local-authority/30UN,Property Services,Energy Costs,2303,1/6/12 -30/6/12,11/07/2012,104443,"3,882.93",Revenue,NPOWER LTD,63814
South Ribble Council,http://statistics.data.gov.uk/doc/local-authority/30UN,Property Services,Energy Costs,2303,ccl,11/07/2012,104443,202.28,Revenue,NPOWER LTD,63814
South Ribble Council,http://statistics.data.gov.uk/doc/local-authority/30UN,Information Services,Peripherals,4247,"Dell Plug-in for vCenter v1.5, 3 Server Ltd, 3Yr",06/07/2012,103883,585.00,Revenue,NVIRON LTD,28781
South Ribble Council,http://statistics.data.gov.uk/doc/local-authority/30UN,Property Services,Rep & Maint Premises,2025,Please repair the roof at Northbrook Barn following storm damage,06/07/2012,103949,"7,011.00",Revenue,ORVIA ENTERPRISE LTD,130039
South Ribble Council,http://statistics.data.gov.uk/doc/local-authority/30UN,Area 3 - Parks/Leyland East & West,Grounds Maint Cntrctrs Chgs,4657,SUPPLY ONLY MAST AND PLASTIC COMPONENTS FOR VIKING SHIP,20/07/2012,103584,348.00,Revenue,PARKDALE PLAY & LEISURE LTD,32023
South Ribble Council,http://statistics.data.gov.uk/doc/local-authority/30UN,Area 3 - Parks/Leyland East & West,Grounds Maint Cntrctrs Chgs,4657,REMOVE TIMBER BOARDS FROM EXISTING PANEL POST AND REPLACE WITH NEW ,20/07/2012,103584,400.00,Revenue,PARKDALE PLAY & LEISURE LTD,32023
South Ribble Council,http://statistics.data.gov.uk/doc/local-authority/30UN,Area 3 - Parks/Leyland East & West,Grounds Maint Cntrctrs Chgs,4657,EXTEND RUBBER MULCH SURFACE UNDER AERIAL RUNWAY,20/07/2012,103584,"4,167.00",Revenue,PARKDALE PLAY & LEISURE LTD,32023
South Ribble Council,http://statistics.data.gov.uk/doc/local-authority/30UN,Area 3 - Parks/Leyland East & West,Grounds Maint Cntrctrs Chgs,4657,RELOCATE AERIAL RUNWAY LAUNCH RAMP 0.4m CLOSER. ,20/07/2012,103584,300.00,Revenue,PARKDALE PLAY & LEISURE LTD,32023
South Ribble Council,http://statistics.data.gov.uk/doc/local-authority/30UN,Area 3 - Parks/Leyland East & West,Grounds Maint Cntrctrs Chgs,4657,REPAIR HOLE IN TARMAC SURFACE AND SUPPLY TEMPORARY SECURITY FENCING,20/07/2012,103584,300.00,Revenue,PARKDALE PLAY & LEISURE LTD,32023
South Ribble Council,http://statistics.data.gov.uk/doc/local-authority/30UN,Area 3 - Parks/Leyland East & West,Grounds Maint Cntrctrs Chgs,4657,CARRIAGE,20/07/2012,103584,75.00,Revenue,PARKDALE PLAY & LEISURE LTD,32023
South Ribble Council,http://statistics.data.gov.uk/doc/local-authority/30UN,Area 1 - Penwortham & Western Parishes,Operational Furniture & Equip,4013,5p & 10p COIN UPGRADE TO PAY AND DISPLAY MACHINES,18/07/2012,92077,"2,196.00",Revenue,PARKEON LTD,82918
South Ribble Council,http://statistics.data.gov.uk/doc/local-authority/30UN,Housing,Processing-Internal,4211,Annual support for homelessness database,20/07/2012,104698,"1,325.00",Revenue,PETER LALLY & ASSOCIATES,73493
South Ribble Council,http://statistics.data.gov.uk/doc/local-authority/30UN,Area 2 - Waste & Transport/Eastern & Central Teams,Vehicle Running Costs,3132,Fuel Charges May 2012,11/07/2012,98711,768.48,Revenue,PETROMEX MILLBROOK WAY SERVIC,62572
South Ribble Council,http://statistics.data.gov.uk/doc/local-authority/30UN,Area 2 - Waste & Transport/Eastern & Central Teams,Vehicle Running Costs,3132,Fuel Charges for June 2012,25/07/2012,104935,784.54,Revenue,PETROMEX MILLBROOK WAY SERVIC,62572
South Ribble Council,http://statistics.data.gov.uk/doc/local-authority/30UN,Regeneration,Printing,4120,Plotter sundries,20/07/2012,104497,950.00,Revenue,PHILLIPS BUSINESS SOLUTIONS,32214
South Ribble Council,http://statistics.data.gov.uk/doc/local-authority/30UN,Area 2 - Waste & Transport/Eastern & Central Teams,Materials General,4040,Hydraulic 32 - 800 litres,06/07/2012,103839,809.01,Revenue,PILKINGTON OILS,113531
South Ribble Council,http://statistics.data.gov.uk/doc/local-authority/30UN,Area 2 - Waste & Transport/Eastern & Central Teams,Materials General,4040,Commercial LS 10w40 Fully Synthetic - 20 litres,06/07/2012,103839,61.80,Revenue,PILKINGTON OILS,113531
South Ribble Council,http://statistics.data.gov.uk/doc/local-authority/30UN,Information Services,Postage,4292,3 Non fluorescent red ink cartridges   767-8RN,27/07/2012,109820,558.05,Revenue,PITNEY BOWES LTD,92733
South Ribble Council,http://statistics.data.gov.uk/doc/local-authority/30UN,Area 3 - Parks/Leyland East & West,Grounds Maint Cntrctrs Chgs,4657,Cut back existing wet pour by 150mm and install chase Riverside Playground Penwortham,18/07/2012,104029,"1,250.00",Revenue,PLAYGROUNDS UK LTD,120456
South Ribble Council,http://statistics.data.gov.uk/doc/local-authority/30UN,Area 3 - Parks/Leyland East & West,Grounds Maint Cntrctrs Chgs,4657,Emergency repairs to safer sufacing in junior area of Withy Grove Playground,25/07/2012,104542,950.00,Revenue,PLAYGROUNDS UK LTD,120456
South Ribble Council,http://statistics.data.gov.uk/doc/local-authority/30UN,Area 3 - Parks/Leyland East & West,Grounds Maint Cntrctrs Chgs,4657,Remove Existing ground anchors,18/07/2012,98527,"8,850.00",Revenue,PLAYSOUND SERVICE LTD,97660
South Ribble Council,http://statistics.data.gov.uk/doc/local-authority/30UN,Area 2 - Waste & Transport/Eastern & Central Teams,Vehicle Running Costs,3137,road tax,06/07/2012,103888,215.00,Revenue,POST OFFICE LTD,31354
South Ribble Council,http://statistics.data.gov.uk/doc/local-authority/30UN,Area 2 - Waste & Transport/Eastern & Central Teams,Vehicle Running Costs,3137,road tax,06/07/2012,103888,215.00,Revenue,POST OFFICE LTD,31354
South Ribble Council,http://statistics.data.gov.uk/doc/local-authority/30UN,Area 2 - Waste & Transport/Eastern & Central Teams,Vehicle Running Costs,3137,road tax,06/07/2012,103888,215.00,Revenue,POST OFFICE LTD,31354
South Ribble Council,http://statistics.data.gov.uk/doc/local-authority/30UN,Area 2 - Waste & Transport/Eastern & Central Teams,Vehicle Running Costs,3137,road tax,06/07/2012,103888,215.00,Revenue,POST OFFICE LTD,31354
South Ribble Council,http://statistics.data.gov.uk/doc/local-authority/30UN,Area 2 - Waste & Transport/Eastern & Central Teams,Vehicle Running Costs,3137,road tax,06/07/2012,103888,215.00,Revenue,POST OFFICE LTD,31354
South Ribble Council,http://statistics.data.gov.uk/doc/local-authority/30UN,Area 2 - Waste & Transport/Eastern & Central Teams,Vehicle Running Costs,3137,road tax,06/07/2012,103888,215.00,Revenue,POST OFFICE LTD,31354
South Ribble Council,http://statistics.data.gov.uk/doc/local-authority/30UN,Area 2 - Waste & Transport/Eastern & Central Teams,Vehicle Running Costs,3137,road tax,06/07/2012,103888,650.00,Revenue,POST OFFICE LTD,31354
South Ribble Council,http://statistics.data.gov.uk/doc/local-authority/30UN,Neighbourhood Admin & Support,Vehicle Running Costs,3137,road tax,25/07/2012,104885,220.00,Revenue,POST OFFICE LTD,31354
South Ribble Council,http://statistics.data.gov.uk/doc/local-authority/30UN,Neighbourhood Admin & Support,Vehicle Running Costs,3137,road tax,25/07/2012,104885,215.00,Revenue,POST OFFICE LTD,31354
South Ribble Council,http://statistics.data.gov.uk/doc/local-authority/30UN,Neighbourhood Admin & Support,Vehicle Running Costs,3137,road tax,25/07/2012,104885,215.00,Revenue,POST OFFICE LTD,31354
South Ribble Council,http://statistics.data.gov.uk/doc/local-authority/30UN,Information Services,Postage,4292,Franking Funds PBP38,20/07/2012,104696,"9,000.00",Revenue,POSTAGE BY PHONE,93923
South Ribble Council,http://statistics.data.gov.uk/doc/local-authority/30UN,Information Services,Postage,4292,franking funds with vat,20/07/2012,104696,9.00,Revenue,POSTAGE BY PHONE,93923
South Ribble Council,http://statistics.data.gov.uk/doc/local-authority/30UN,Human Resources,Training Expense-Course Fees,1405,SAFEGUARDING CHILDREN TRAINING,04/07/2012,103638,"2,000.00",Revenue,PW THRELFALL TRAINING & CONSULTANCY,130382
South Ribble Council,http://statistics.data.gov.uk/doc/local-authority/30UN,Property Services,Capital Expenditure,C230,clear all the office furniture and clutter & transfer to REDACTED.,06/07/2012,103981,950.00,Capital,RED ROSE BUILDING MAINTENANCE,85410
South Ribble Council,http://statistics.data.gov.uk/doc/local-authority/30UN,Property Services,Rep & Maint Premises,2020,Leyland Market re align the electricity box Kerb edgings ,25/07/2012,104941,270.00,Revenue,RED ROSE BUILDING MAINTENANCE,85410
South Ribble Council,http://statistics.data.gov.uk/doc/local-authority/30UN,Property Services,Rep & Maint Premises,2020,materials,25/07/2012,104941,325.00,Revenue,RED ROSE BUILDING MAINTENANCE,85410
South Ribble Council,http://statistics.data.gov.uk/doc/local-authority/30UN,Property Services,Rep & Maint Premises,2020,"Patch over drain spigot, make alterations to the outlet in the manhole in the canteen.",25/07/2012,104942,500.00,Revenue,RED ROSE BUILDING MAINTENANCE,85410
South Ribble Council,http://statistics.data.gov.uk/doc/local-authority/30UN,Environmental Health,External Contractors Charges,4570,Re-active flood response,18/07/2012,103995,"2,184.00",Revenue,REID CONSTRUCTION & LANDSCAPE SERVICES,115542
South Ribble Council,http://statistics.data.gov.uk/doc/local-authority/30UN,Environmental Health,External Contractors Charges,4570,WC Cleansing at various strategic sections & associated assets across the Borough.,18/07/2012,103996,"2,452.00",Revenue,REID CONSTRUCTION & LANDSCAPE SERVICES,115542
South Ribble Council,http://statistics.data.gov.uk/doc/local-authority/30UN,Environmental Health,External Contractors Charges,4570,Materials for concrete driveway.,18/07/2012,103997,600.00,Revenue,REID CONSTRUCTION & LANDSCAPE SERVICES,115542
South Ribble Council,http://statistics.data.gov.uk/doc/local-authority/30UN,Information Services,Lease Rental Charges,4036,MP C4000AD 30-may012,11/07/2012,104013,555.08,Revenue,RICOH (UK) LTD,82976
South Ribble Council,http://statistics.data.gov.uk/doc/local-authority/30UN,Information Services,Lease Rental Charges,4036,1-mar-12  to  30-may-12,11/07/2012,104014,902.69,Revenue,RICOH (UK) LTD,82976
South Ribble Council,http://statistics.data.gov.uk/doc/local-authority/30UN,Information Services,Lease Rental Charges,4036,b/w click charge 1-mar-12  to 30-may-12,11/07/2012,104015,"7,044.32",Revenue,RICOH (UK) LTD,82976
South Ribble Council,http://statistics.data.gov.uk/doc/local-authority/30UN,Information Services,Lease Rental Charges,4036,1/6/12  to 31/8/12,20/07/2012,104733,"1,610.79",Revenue,RICOH (UK) LTD,82976
South Ribble Council,http://statistics.data.gov.uk/doc/local-authority/30UN,Area 1 - Penwortham & Western Parishes,Materials General,4040,100 ltrs Trustee Amenity (28.00 per 5ltrs),06/07/2012,98123,560.00,Revenue,RIGBY TAYLOR LTD,33145
South Ribble Council,http://statistics.data.gov.uk/doc/local-authority/30UN,Neighbourhood Admin & Support,Materials General,4040,hi active gallup weedkiller (38.00 per 5ltrs),11/07/2012,104050,760.00,Revenue,RIGBY TAYLOR LTD,33145
South Ribble Council,http://statistics.data.gov.uk/doc/local-authority/30UN,Property Services,Agency Fees,1121,Professional Services in Property Services April 2012 -September 2012,06/07/2012,103911,"2,713.00",Revenue,ROGER HANDSCOMBE FRICS CHART,104634
South Ribble Council,http://statistics.data.gov.uk/doc/local-authority/30UN,Area 2 - Waste & Transport/Eastern & Central Teams,External Contractors Charges,4570,SPEC REPAIR - VX55 CNF - VM51796 - GA,25/07/2012,104755,575.00,Revenue,S MCMASTER,112079
South Ribble Council,http://statistics.data.gov.uk/doc/local-authority/30UN,Area 2 - Waste & Transport/Eastern & Central Teams,External Contractors Charges,4570,SPEC REPAIR - VX55 CNC - VM51718 - GA,25/07/2012,104756,"1,580.00",Revenue,S MCMASTER,112079
South Ribble Council,http://statistics.data.gov.uk/doc/local-authority/30UN,Property Services,Energy Costs,2304,11/6/12  to  9/7/12,25/07/2012,104763,501.15,Revenue,SCOTTISH HYDRO ELECTRIC,130051
South Ribble Council,http://statistics.data.gov.uk/doc/local-authority/30UN,Property Services,Energy Costs,2307,levy,25/07/2012,104763,22.84,Revenue,SCOTTISH HYDRO ELECTRIC,130051
South Ribble Council,http://statistics.data.gov.uk/doc/local-authority/30UN,Property Services,Energy Costs,2303,6/4/12  to  8/5/12,27/07/2012,109862,932.54,Revenue,SCOTTISH HYDRO ELECTRIC,130051
South Ribble Council,http://statistics.data.gov.uk/doc/local-authority/30UN,Property Services,Energy Costs,2307,levy,27/07/2012,109862,52.17,Revenue,SCOTTISH HYDRO ELECTRIC,130051
South Ribble Council,http://statistics.data.gov.uk/doc/local-authority/30UN,Property Services,Energy Costs,2303,9/5/12  to 10/6/12,27/07/2012,109863,899.17,Revenue,SCOTTISH HYDRO ELECTRIC,130051
South Ribble Council,http://statistics.data.gov.uk/doc/local-authority/30UN,Property Services,Energy Costs,2307,levy,27/07/2012,109863,49.42,Revenue,SCOTTISH HYDRO ELECTRIC,130051
South Ribble Council,http://statistics.data.gov.uk/doc/local-authority/30UN,Property Services,Energy Costs,2303,11/6/12  to  6/7/12,27/07/2012,109864,736.67,Revenue,SCOTTISH HYDRO ELECTRIC,130051
South Ribble Council,http://statistics.data.gov.uk/doc/local-authority/30UN,Property Services,Energy Costs,2307,levy,27/07/2012,109864,40.87,Revenue,SCOTTISH HYDRO ELECTRIC,130051
South Ribble Council,http://statistics.data.gov.uk/doc/local-authority/30UN,Property Services,Energy Costs,2303,7/6/12  to  5/7/12,27/07/2012,109866,"1,256.47",Revenue,SCOTTISH HYDRO ELECTRIC,130051
